Workbook

Sheet 1. ENTER DATA
A1: Row | B1: STORMWATER LOAD ANALYSIS TOOL (SLAT) - Beta Version
A2: 2 | B2: For full instructions, see user manual. | Q2: Internal Lists
A3: =A2+1 -> 3 | B3: (1) Enable Macros in the worksheet.
A4: 4 | B4: (2) If performing a new analysis, click "Restore Defaults" button to the right. | Q4: BMP 1 Options | R4: BMP 2 Options | S4: Conveyance Options | T4: WQV Options | U4: Drainage areas | V4: Infiltration Field Options
A5: 5 | B5: (3) Answer questions in the yellow cells. Move vertically from top to bottom. | Q5: None | R5: None | S5: Pumped | T5: Yes | U5: 1 | V5: Irrigation
A6: 6 | B6: (4) Click "View Full Results" button at bottom. | Q6: Biofiltration | R6: Infiltration Field | S6: Gravity Drained | T6: No | U6: 2 | V6: Level spread
A7: 7 | B7: Note: This worksheet assumes: SCMs IN SERIES that treat a specified drainage area, and the second SCM only receives treated volume (not bypass/overflow) from the first SCM. | Q7: Retention Basin | R7: Beneficial Reuse | U7: 3 | V7: N/A
A8: 8 | Q8: Rainwater Harvesting | R8: Alternative | U8: 4
A9: 9 | B9: KEY | C9: Required User Input | D9: Key User Input | E9: Internal Calculation | F9: Error | G9: Calculator Output | H9: Does Not Apply | Q9: Sedimentation/Filtration | T9: Splitter Options
A10: 10 | Q10: Alternative | T10: Yes (Off-Line)
A11: 11 | B11: Step 1: Input site characteristics in yellow highlighted cells | T11: No (On-Line)
A12: 12 | B12: Site Name | E12: Editor Name | G12: Date | H12: SLAT Beta - 8/2014 | J12: Simplified Schematic
A13: 13 | Q13: FOR PLOTTING | T13: Infiltration Options | U13: Infiltration Field Options
A14: 14 | B14: Is your site within the Barton Springs Zone? | E14: Yes | Q14: Captions | T14: Yes | U14: Yes
A15: 15 | B15: How many drainage areas, nmax, does your site have? | E15: 1 | Q15: Existing | R15: Developed, Untreated | S15: Proposed | T15: No; infiltrate all routed water | U15: No; calculate area
A16: 16 | E16: Drainage Area A | F16: Drainage Area B | G16: Drainage Area C | H16: Drainage Area D
A17: 17 | B17: Drainage area to the control, An (Acres) | E17: 1 | F17: 1 | G17: 1 | H17: 1 | Q17: Baseline Loads | T17: Compliance Factor
A18: 18 | B18: Base impervious cover of the drainage area, ICB (%) | E18: 0 | F18: 0 | G18: 0 | H18: 0 | T18: Compliance Factor (Compare to Baseline)
A19: 19 | B19: Developed impervious cover of the drainage area, ICD (%) | E19: 0 | F19: 0 | G19: 0 | H19: 0 | T19: Compliance Factor (Compare to Sed/Fil)
A20: 20 | B20: Annual average runoff for existing site, VEx (in/yr) | E20: ='3. CALCS_Loads'!C83 -> 1.184518771 | F20: ='3. CALCS_Loads'!D83 -> 0 | G20: ='3. CALCS_Loads'!E83 -> 0 | H20: ='3. CALCS_Loads'!M16 -> 0
A21: 21 | B21: Annual average runoff for developed site, Vd (in/yr) | E21: ='3. CALCS_Loads'!C88 -> 1.184518771 | F21: ='3. CALCS_Loads'!D88 -> 0 | G21: ='3. CALCS_Loads'!E88 -> 0 | H21: ='3. CALCS_Loads'!F88 -> 0
A22: 22
A23: 23 | B23: Step 2: Input SCM characteristics in yellow highlighted cells
A24: 24 | E24: Drainage Area A | F24: Drainage Area B | G24: Drainage Area C | H24: Drainage Area D
A25: 25 | B25: SCM 1 (First in Series) | E25: SCM A1 | F25: SCM B1 | G25: SCM C1 | H25: SCM D1
A26: 26 | B26: SCM Type | E26: Retention Basin | F26: Retention Basin | G26: Retention Basin | H26: Retention Basin
A27: 27 | B27: Is SCM 1 off-line? | E27: Yes (Off-Line) | F27: Yes (Off-Line) | G27: Yes (Off-Line) | H27: Yes (Off-Line)
A28: 28 | B28: What is the water quality volume, WQV, (in)? | E28: 2.5 | F28: 2.5 | G28: 2.5 | H28: 2.5 | J28: ='2. RESULTS'!G18 -> COMPLIANT
A29: 29 | B29: Minimum water quality volume (1/2" Plus Rule) | E29: ='3. CALCS_Loads'!C93 -> 0.5 | F29: ='3. CALCS_Loads'!D93 -> 0.5 | G29: ='3. CALCS_Loads'!E93 -> 0.5 | H29: ='3. CALCS_Loads'!F93 -> 0.5
A30: 30 | B30: SCM 1 Actual Volume (ft3) | E30: =WQV_A1*DA_A*3630 -> 9075 | F30: =WQV_B1*DA_B*3630 -> 9075 | G30: =WQV_C1*DA_C*3630 -> 9075 | H30: =WQV_D1*DA_D*3630 -> 9075
A31: 31 | B31: Drawdown Time, DDT (hrs) | E31: 60 | F31: 60 | G31: 60 | H31: 60
A32: 32 | B32: Do you already know the runoff capture efficiency? | E32: No | F32: No | G32: No | H32: No
A33: 33 | B33: User Entered Runoff Capture Efficiency, RCE (%) | E33: 0 | F33: 0 | G33: 0 | H33: 0
A34: 34 | B34: Runoff Capture Efficiency, RCE (%) | E34: =IF(E26="None",0,IF(E32="Yes",E33,RCE_A1_AP*100)) -> 99.95306241 | F34: =IF(F26="None",0,IF(F32="Yes",F33,RCE_B1_AP*100)) -> 99.95306241 | G34: =IF(G26="None",0,IF(G32="Yes",G33,RCE_C1_AP*100)) -> 99.95306241 | H34: =IF(H26="None",0,IF(H32="Yes",H33,RCE_D1_AP*100)) -> 99.95306241
A35: 35 | B35: Annual average volume treated by SCM 1, VT,1 (in/yr) | E35: ='3. CALCS_Loads'!C144 -> 1.183962786 | F35: ='3. CALCS_Loads'!D144 -> 0 | G35: ='3. CALCS_Loads'!E144 -> 0 | H35: ='3. CALCS_Loads'!F144 -> 0
A36: 36 | B36: Annual average bypass volume, Vby,1 (in/yr) | E36: ='3. CALCS_Loads'!C146 -> 0.000555984587 | F36: ='3. CALCS_Loads'!D146 -> 0 | G36: ='3. CALCS_Loads'!E146 -> 0 | H36: ='3. CALCS_Loads'!F146 -> 0
A37: 37 | B37: Conveyance
A38: 38 | B38: How is effluent from SCM 1 discharged? | E38: Pumped | F38: Pumped | G38: Pumped | H38: Pumped
A39: 39 | B39: Delay after end of rainfall before discharging SCM 1 (hrs) | E39: 12 | F39: 12 | G39: 12 | H39: 12
A40: 40
A41: 41 | B41: SCM 2 (Second in Series) | E41: SCM A2 | F41: SCM B2 | G41: SCM C2 | H41: SCM D2
A42: 42 | B42: SCM Type | E42: Infiltration Field | F42: Infiltration Field | G42: Infiltration Field | H42: Infiltration Field
A43: 43 | B43: Percent of SCM 1's WQV routed to SCM 2 | E43: 100 | F43: 100 | G43: 100 | H43: 100
A44: 44 | B44: Water quality volume routed to SCM 2 (in) | E44: =E43*WQV_A1/100 -> 2.5 | F44: =F43*WQV_B1/100 -> 2.5 | G44: =G43*WQV_C1/100 -> 2.5 | H44: =H43*WQV_D1/100 -> 2.5
A45: =A44+1 -> 45 | B45: Annual volume routed to SCM 2, VT,2+Vinf (in/yr) | E45: ='3. CALCS_Loads'!C150 -> 1.183962786 | F45: ='3. CALCS_Loads'!D150 -> 0 | G45: ='3. CALCS_Loads'!E150 -> 0 | H45: ='3. CALCS_Loads'!F150 -> 0
A46: =A45+1 -> 46 | B46: Does SCM 2 reduce volume, such as by infiltration? | E46: Yes | F46: Yes | G46: Yes | H46: Yes
A47: 47 | B47: Do you already know the infiltrated water quality volume? | E47: No; infiltrate all routed water | F47: No; infiltrate all routed water | G47: No; infiltrate all routed water | H47: No; infiltrate all routed water
A48: =A47+1 -> 48 | B48: User-entered infilt. water quality volume, WQVinf (in) | E48: 0 | F48: 0 | G48: 0 | H48: 0
A49: 49 | B49: Annual Infiltrated Volume, Vinf (in/yr) | E49: ='3. CALCS_Loads'!C152 -> 1.183962786 | F49: ='3. CALCS_Loads'!D152 -> 0 | G49: ='3. CALCS_Loads'!E152 -> 0 | H49: ='3. CALCS_Loads'!F152 -> 0
A50: 50 | B50: Annual Non-Infilt. Volume Treated by SCM 2, VT,2 (in/yr) | E50: ='3. CALCS_Loads'!C154 -> 0 | F50: ='3. CALCS_Loads'!D154 -> 0 | G50: ='3. CALCS_Loads'!E154 -> 0 | H50: ='3. CALCS_Loads'!F154 -> 0
A51: 51 | B51: How is water applied to the infiltration field? | E51: Irrigation | F51: Irrigation | G51: Irrigation | H51: Irrigation
A52: =A51+1 -> 52 | B52: Number of application zones | E52: 2 | F52: 2 | G52: 2 | H52: 2
A53: 53 | B53: Soil infiltration rate (in/hr) | E53: 0.2 | F53: 0.2 | G53: 0.2 | H53: 0.2
A54: 54 | B54: Total application time, tapp (hrs) | E54: =DDT_A1 -> 60 | F54: =DDT_B1 -> 60 | G54: =DDT_C1 -> 60 | H54: =DDT_D1 -> 60
A55: 55 | B55: Do you know the infiltration field area? | E55: No; calculate area | F55: No; calculate area | G55: No; calculate area | H55: No; calculate area
A56: 56 | B56: User-Entered Infiltration Field Area (Ac) | E56: 0 | F56: 0 | G56: 0 | H56: 0
A57: 57 | B57: Calculated Field Area for Given Volume (Ac) | E57: ='4. CALCS_Infiltration'!E39 -> 0.4166666667 | F57: ='4. CALCS_Infiltration'!F39 -> 0.4166666667 | G57: ='4. CALCS_Infiltration'!G39 -> 0.4166666667 | H57: ='4. CALCS_Infiltration'!H39 -> 0.4166666667
A58: 58 | B58: Min. Field Area for Load Compliance (Ac) | E58: =ROUNDUP('4. CALCS_Infiltration'!E33,3) -> 0.002 | F58: =ROUNDUP('4. CALCS_Infiltration'!F33,3) -> 0.002 | G58: =ROUNDUP('4. CALCS_Infiltration'!G33,3) -> 0.002 | H58: =ROUNDUP('4. CALCS_Infiltration'!H33,3) -> 0.002
A59: 59 | J59: =J28 -> COMPLIANT
A60: 60 | B60: Step 3: Input Effluent Data for Alternative SCMs
A61: 61 | E61: Drainage Area A | F61: Drainage Area B | G61: Drainage Area C | H61: Drainage Area D
A62: 62 | E62: SCM A1 | F62: SCM B1 | G62: SCM C1 | H62: SCM D1
A63: 63 | C63: Pollutant | D63: Units | E63: =E26 -> Retention Basin | F63: =F26 -> Retention Basin | G63: =G26 -> Retention Basin | H63: =H26 -> Retention Basin
A64: 64 | C64: COD | D64: mg/L
A65: 65 | C65: E. coli | D65: CFU/100mL
A66: 66 | C66: Pb | D66: mg/L
A67: 67 | C67: TN | D67: mg/L
A68: =A67+1 -> 68 | C68: TOC | D68: mg/L
A69: =A68+1 -> 69 | C69: TP | D69: mg/L
A70: 70 | C70: TSS | D70: mg/L
A71: 71 | C71: Zn | D71: mg/L
A72: 72 | E72: =E41 -> SCM A2 | F72: SCM B2 | G72: SCM C2 | H72: =H41 -> SCM D2
A73: 73 | C73: Pollutant | E73: Infiltration Field | F73: Infiltration Field | G73: Infiltration Field | H73: =H42 -> Infiltration Field
A74: 74 | C74: COD | D74: mg/L
A75: 75 | C75: E. coli | D75: CFU/100mL
A76: 76 | C76: Pb | D76: mg/L
A77: 77 | C77: TN | D77: mg/L
A78: 78 | C78: TOC | D78: mg/L
A79: 79 | C79: TP | D79: mg/L
A80: 80 | C80: TSS | D80: mg/L
A81: 81 | C81: Zn | D81: mg/L
A82: 82 | J82: =J59 -> COMPLIANT

Sheet 2. RESULTS
A1: SLAT: Stormwater Load Analysis Tool | J1: 1/2 | K1: SLAT: Stormwater Load Analysis Tool | S1: 2/2
A2: Site Name: | B2: ='1. ENTER DATA'!B12 -> Site Name | E2: By: | F2: ='1. ENTER DATA'!E12 -> Editor Name | H2: Date: | I2: ='1. ENTER DATA'!G12 -> Date | K2: Site Name: | L2: =B2 -> Site Name | O2: By: | P2: =F2 -> Editor Name | R2: Date: | S2: =I2 -> Date
A3: RESULTS: COMPLIANCE TABLE | J3: ='1. ENTER DATA'!H12 -> SLAT Beta - 8/2014 | K3: RESULTS: PLOTS | S3: ='1. ENTER DATA'!H12 -> SLAT Beta - 8/2014
A6: POLLUTANT | C6: DEVELOPED LOAD, WITH CONTROLS | H6: =IF('1. ENTER DATA'!E14="Yes","EXISTING LOAD, L_Ex","SED/FIL LOAD") -> EXISTING LOAD, L_Ex | I6: LOAD EQUIV. FACTOR, LEF | J6: COMPLIES?
C7: Drainage Area A | D7: Drainage Area B | E7: Drainage Area C | F7: Drainage Area D | G7: TOTAL LOAD, Lout
A8: COD | B8: lbs/yr | C8: ='3. CALCS_Loads'!Z178 -> 0.003145137383 | D8: ='3. CALCS_Loads'!AA178 -> 0 | E8: ='3. CALCS_Loads'!AB178 -> 0 | F8: ='3. CALCS_Loads'!AC178 -> 0 | G8: =SUM(C8:F8) -> 0.003145137383 | H8: =IF('1. ENTER DATA'!$E$14="Yes",'3. CALCS_Loads'!AD178,'3. CALCS_Loads'!AE178) -> 10.44583277 | I8: =IF('1. ENTER DATA'!$E$14="Yes",'3. CALCS_Loads'!AH178,'3. CALCS_Loads'!AI178) -> 0.0003010901526 | J8: =IF('1. ENTER DATA'!$E$14="Yes",'3. CALCS_Loads'!AJ178,'3. CALCS_Loads'!AK178) -> YES
A9: E. coli | B9: 10^6 MPN/yr | C9: ='3. CALCS_Loads'!Z179 -> 4.702987291 | D9: ='3. CALCS_Loads'!AA179 -> 0 | E9: ='3. CALCS_Loads'!AB179 -> 0 | F9: ='3. CALCS_Loads'!AC179 -> 0 | G9: =SUM(C9:F9) -> 4.702987291 | H9: =IF('1. ENTER DATA'!$E$14="Yes",'3. CALCS_Loads'!AD179,'3. CALCS_Loads'!AE179) -> 10193.46962 | I9: =IF('1. ENTER DATA'!$E$14="Yes",'3. CALCS_Loads'!AH179,'3. CALCS_Loads'!AI179) -> 0.0004613725713 | J9: =IF('1. ENTER DATA'!$E$14="Yes",'3. CALCS_Loads'!AJ179,'3. CALCS_Loads'!AK179) -> YES
A10: Pb | B10: lbs/yr | C10: ='3. CALCS_Loads'!Z180 -> 5.398366262e-07 | D10: ='3. CALCS_Loads'!AA180 -> 0 | E10: ='3. CALCS_Loads'!AB180 -> 0 | F10: ='3. CALCS_Loads'!AC180 -> 0 | G10: 5.398366262e-07 | H10: =IF('1. ENTER DATA'!$E$14="Yes",'3. CALCS_Loads'!AD180,'3. CALCS_Loads'!AE180) -> 0.001150115726 | I10: =IF('1. ENTER DATA'!$E$14="Yes",'3. CALCS_Loads'!AH180,'3. CALCS_Loads'!AI180) -> 0.0004693759192 | J10: =IF('1. ENTER DATA'!$E$14="Yes",'3. CALCS_Loads'!AJ180,'3. CALCS_Loads'!AK180) -> YES
A11: TN | B11: lbs/yr | C11: ='3. CALCS_Loads'!Z181 -> 0.0001684287566 | D11: ='3. CALCS_Loads'!AA181 -> 0 | E11: ='3. CALCS_Loads'!AB181 -> 0 | F11: ='3. CALCS_Loads'!AC181 -> 0 | G11: 0.0001684287566 | H11: =IF('1. ENTER DATA'!$E$14="Yes",'3. CALCS_Loads'!AD181,'3. CALCS_Loads'!AE181) -> 0.3195511824 | I11: =IF('1. ENTER DATA'!$E$14="Yes",'3. CALCS_Loads'!AH181,'3. CALCS_Loads'!AI181) -> 0.000527079122 | J11: =IF('1. ENTER DATA'!$E$14="Yes",'3. CALCS_Loads'!AJ181,'3. CALCS_Loads'!AK181) -> YES
A12: TOC | B12: lbs/yr | C12: ='3. CALCS_Loads'!Z182 -> 0.001198843776 | D12: ='3. CALCS_Loads'!AA182 -> 0 | E12: ='3. CALCS_Loads'!AB182 -> 0 | F12: ='3. CALCS_Loads'!AC182 -> 0 | G12: =SUM(C12:F12) -> 0.001198843776 | H12: =IF('1. ENTER DATA'!$E$14="Yes",'3. CALCS_Loads'!AD182,'3. CALCS_Loads'!AE182) -> 3.498951182 | I12: =IF('1. ENTER DATA'!$E$14="Yes",'3. CALCS_Loads'!AH182,'3. CALCS_Loads'!AI182) -> 0.0003426294662 | J12: =IF('1. ENTER DATA'!$E$14="Yes",'3. CALCS_Loads'!AJ182,'3. CALCS_Loads'!AK182) -> YES
A13: TP | B13: lbs/yr | C13: ='3. CALCS_Loads'!Z183 -> 2.111456003e-05 | D13: ='3. CALCS_Loads'!AA183 -> 0 | E13: ='3. CALCS_Loads'!AB183 -> 0 | F13: ='3. CALCS_Loads'!AC183 -> 0 | G13: 2.111456003e-05 | H13: =IF('1. ENTER DATA'!$E$14="Yes",'3. CALCS_Loads'!AD183,'3. CALCS_Loads'!AE183) -> 0.03329777027 | I13: =IF('1. ENTER DATA'!$E$14="Yes",'3. CALCS_Loads'!AH183,'3. CALCS_Loads'!AI183) -> 0.0006341133312 | J13: =IF('1. ENTER DATA'!$E$14="Yes",'3. CALCS_Loads'!AJ183,'3. CALCS_Loads'!AK183) -> YES
A14: TSS | B14: lbs/yr | C14: ='3. CALCS_Loads'!Z184 -> 0.002418403404 | D14: ='3. CALCS_Loads'!AA184 -> 0 | E14: ='3. CALCS_Loads'!AB184 -> 0 | F14: ='3. CALCS_Loads'!AC184 -> 0 | G14: 0.002418403404 | H14: =IF('1. ENTER DATA'!$E$14="Yes",'3. CALCS_Loads'!AD184,'3. CALCS_Loads'!AE184) -> 44.57604729 | I14: =IF('1. ENTER DATA'!$E$14="Yes",'3. CALCS_Loads'!AH184,'3. CALCS_Loads'!AI184) -> 5.425342872e-05 | J14: =IF('1. ENTER DATA'!$E$14="Yes",'3. CALCS_Loads'!AJ184,'3. CALCS_Loads'!AK184) -> YES
A15: Zn | B15: lbs/yr | C15: ='3. CALCS_Loads'!Z185 -> 2.970172799e-06 | D15: ='3. CALCS_Loads'!AA185 -> 0 | E15: ='3. CALCS_Loads'!AB185 -> 0 | F15: ='3. CALCS_Loads'!AC185 -> 0 | G15: 2.970172799e-06 | H15: =IF('1. ENTER DATA'!$E$14="Yes",'3. CALCS_Loads'!AD185,'3. CALCS_Loads'!AE185) -> 0.006327919002 | I15: =IF('1. ENTER DATA'!$E$14="Yes",'3. CALCS_Loads'!AH185,'3. CALCS_Loads'!AI185) -> 0.0004693759192 | J15: =IF('1. ENTER DATA'!$E$14="Yes",'3. CALCS_Loads'!AJ185,'3. CALCS_Loads'!AK185) -> YES
G18: =IF(I8<=1,IF(I9<=1,IF(I10<=1,IF(I11<=1,IF(I13<=1,IF(I14<=1,IF(I15<=1,"COMPLIANT","NOT COMPLIANT"),"NOT COMPLIANT"),"NOT COMPLIANT"),"NOT COMPLIANT"),"NOT COMPLIANT"),"NOT COMPLIANT"),"NOT COMPLIANT") -> COMPLIANT
A24: SUMMARY OF INPUTS
D26: Drainage Area A | E26: Drainage Area B | F26: Drainage Area C | G26: Drainage Area D | H26: TOTALS
A27: Drainage Area, An (Ac) | D27: =DA_A -> 1 | E27: =IF(n_DA=1,"N/A",DA_B) -> N/A | F27: =IF(n_DA<3,"N/A",DA_C) -> N/A | G27: =IF(n_DA<4,"N/A",DA_D) -> N/A | H27: =SUM(D27:G27) -> 1
A28: Developed IC, ICD (%) | D28: =ICA_d -> 0 | E28: =IF(n_DA=1,"N/A",ICB_d) -> N/A | F28: =IF(n_DA<3,"N/A",ICC_d) -> N/A | G28: =IF(n_DA<4,"N/A",ICD_d) -> N/A | H28: =(D28*D27+IF(n_DA>1,E28*E27,0)+IF(n_DA>2,F28*F27,0)+IF(n_DA>3,G28*G27,0))/(100*H27) -> 0
A29: SCM 1 | D29: ='1. ENTER DATA'!E26 -> Retention Basin | E29: =IF(n_DA=1,"N/A",'1. ENTER DATA'!F26) -> N/A | F29: =IF(n_DA<3,"N/A",'1. ENTER DATA'!G26) -> N/A | G29: =IF(n_DA<4,"N/A",'1. ENTER DATA'!H26) -> N/A | H29: -
A32: Water Qual. Vol, WQV (in) | D32: =WQV_A1 -> 2.5 | E32: =IF(n_DA=1,"N/A",WQV_B1) -> N/A | F32: =IF(n_DA<3,"N/A",WQV_C1) -> N/A | G32: =IF(n_DA<4,"N/A",WQV_D1) -> N/A | H32: -
A33: Actual Volume (ft3) | D33: =D32*D27/12*43560 -> 9075 | E33: =IF(n_DA=1,"N/A",E32*E27/12*43560) -> N/A | F33: =IF(n_DA<3,"N/A",F32*F27/12*43560) -> N/A | G33: =IF(n_DA<4,"N/A",G32*G27/12*43560) -> N/A | H33: =SUM(D33:G33) -> 9075
A34: Drawdown Time, DDT (hrs) | D34: =DDT_A1 -> 60 | E34: =IF(n_DA=1,"N/A",DDT_B1) -> N/A | F34: =IF(n_DA<3,"N/A",DDT_C1) -> N/A | G34: =IF(n_DA<4,"N/A",DDT_D1) -> N/A | H34: -
A35: SCM 2 | D35: ='1. ENTER DATA'!E42 -> Infiltration Field | E35: =IF(n_DA=1,"N/A",'1. ENTER DATA'!F42) -> N/A | F35: =IF(n_DA<3,"N/A",'1. ENTER DATA'!G42) -> N/A | G35: =IF(n_DA<4,"N/A",'1. ENTER DATA'!H42) -> N/A | H35: -
A37: Infiltration Rate (in/hr) | D37: ='1. ENTER DATA'!E53 -> 0.2 | E37: =IF(n_DA=1,"N/A",'1. ENTER DATA'!F53) -> N/A | F37: =IF(n_DA<3,"N/A",'1. ENTER DATA'!G53) -> N/A | G37: =IF(n_DA<4,"N/A",'1. ENTER DATA'!H53) -> N/A | H37: -
A38: Infiltration Field Area (Ac) | D38: ='4. CALCS_Infiltration'!E37 -> 0.4166666667 | E38: =IF(n_DA=1,"N/A",'4. CALCS_Infiltration'!F37) -> N/A | F38: =IF(n_DA<3,"N/A",'4. CALCS_Infiltration'!G37) -> N/A | G38: =IF(n_DA<4,"N/A",'4. CALCS_Infiltration'!H37) -> N/A | H38: =SUM(D38:G38) -> 0.4166666667
A39: Error with Input Values? | D39: =IF(OR(AND('1. ENTER DATA'!E47="Yes",'1. ENTER DATA'!E48>'1. ENTER DATA'!E44),AND('1. ENTER DATA'!E55="Yes",'1. ENTER DATA'!E56<'1. ENTER DATA'!E57)),"YES","NO") -> NO | E39: =IF(OR(AND('1. ENTER DATA'!F47="Yes",'1. ENTER DATA'!F48>'1. ENTER DATA'!F44),AND('1. ENTER DATA'!F55="Yes",'1. ENTER DATA'!F56<'1. ENTER DATA'!F57)),"YES","NO") -> NO | F39: =IF(OR(AND('1. ENTER DATA'!G47="Yes",'1. ENTER DATA'!G48>'1. ENTER DATA'!G44),AND('1. ENTER DATA'!G55="Yes",'1. ENTER DATA'!G56<'1. ENTER DATA'!G57)),"YES","NO") -> NO | G39: =IF(OR(AND('1. ENTER DATA'!H47="Yes",'1. ENTER DATA'!H48>'1. ENTER DATA'!H44),AND('1. ENTER DATA'!H55="Yes",'1. ENTER DATA'!H56<'1. ENTER DATA'!H57)),"YES","NO") -> NO

Sheet 3. CALCS_Loads
A1: CONSTANTS
A2: 31.73 | B2: R, annual rainfall, in/yr | C2: (CM-09-04, Pg 51)
A3: 79.33 | B3: Annual no. rainfall events, θ, events/yr
A5: CONVERSION FACTORS
A6: CF_1 | B6: Pollutant in mg/L | C6: 0.2267 | D6: lb-L/(mg-Ac-in) | E6: Outputs to lb/Ac-yr
A7: CF_2 | B7: Pollutant in MPN/100 mL | C7: 1.0279 | D7: 100 mL/(Ac-in) | E7: Outputs to 10^6 MPN/Ac-yr
A9: ECM TABLE 1.9: Runoff (From Table 3.2, CM-09-03)
A10: IC (%) | B10: Rv | C10: Sd | D10: Runoff Events | E10: Runoff (in)
A11: 0 | B11: 0.064 | C11: 0.218 | D11: 46 | E11: 1.18
A12: 5 | B12: 0.1 | C12: 0.198 | D12: 48.4 | E12: 1.94
A13: 10 | B13: 0.136 | C13: 0.18 | D13: 50.6 | E13: 2.76
A14: 15 | B14: 0.172 | C14: 0.163 | D14: 52.8 | E14: 3.63
A15: 20 | B15: 0.208 | C15: 0.148 | D15: 54.8 | E15: 4.55
A16: 25 | B16: 0.243 | C16: 0.134 | D16: 56.7 | E16: 5.52
A17: 30 | B17: 0.279 | C17: 0.122 | D17: 58.5 | E17: 6.54
A18: 35 | B18: 0.315 | C18: 0.11 | D18: 60.2 | E18: 7.59
A19: 40 | B19: 0.351 | C19: 0.1 | D19: 61.8 | E19: 8.67
A20: 45 | B20: 0.387 | C20: 0.091 | D20: 63.2 | E20: 9.78
A21: 50 | B21: 0.423 | C21: 0.082 | D21: 64.6 | E21: 10.91
A22: 55 | B22: 0.458 | C22: 0.075 | D22: 65.8 | E22: 12.06
A23: 60 | B23: 0.494 | C23: 0.068 | D23: 66.9 | E23: 13.23
A24: 65 | B24: 0.53 | C24: 0.062 | D24: 68 | E24: 14.42
A25: 70 | B25: 0.566 | C25: 0.056 | D25: 69 | E25: 15.61
A26: 75 | B26: 0.602 | C26: 0.051 | D26: 69.9 | E26: 16.82
A27: 80 | B27: 0.637 | C27: 0.046 | D27: 70.7 | E27: 18.03
A28: 85 | B28: 0.673 | C28: 0.042 | D28: 71.5 | E28: 19.24
A29: 90 | B29: 0.709 | C29: 0.038 | D29: 72.2 | E29: 20.46
A30: 95 | B30: 0.745 | C30: 0.034 | D30: 72.8 | E30: 21.69
A31: 100 | B31: 0.781 | C31: 0.031 | D31: 73.4 | E31: 22.91
A33: ECM TABLE 1.10: Pollutant Concentrations
A34: From CM-09-04, Table 4.8
D35: EXISTING | I35: DEVELOPED
A36: Pollutant | B36: Units | C36: Conversion Factor | D36: Undeveloped (0% IC) Concentration | E36: Drainage Area A | F36: Drainage Area B | G36: Drainage Area C | H36: Drainage Area D | I36: Drainage Area A | J36: Drainage Area B | K36: Drainage Area C | L36: Drainage Area D
A37: COD | B37: mg/L | C37: CF_1 | D37: =38.9+66.6*ICA_b/100 -> 38.9 | E37: =38.9+66.6*ICA_b/100 -> 38.9 | F37: =38.9+66.6*ICB_b/100 -> 38.9 | G37: =38.9+66.6*ICC_b/100 -> 38.9 | H37: =38.9+66.6*ICD_b/100 -> 38.9 | I37: =38.9+66.6*ICA_d/100 -> 38.9 | J37: =38.9+66.6*ICB_d/100 -> 38.9 | K37: =38.9+66.6*ICC_d/100 -> 38.9 | L37: =38.9+66.6*ICD_d/100 -> 38.9 | M37: *Function of IC
A38: E. coli | B38: CFU/100mL | C38: CF_2 | D38: 8372 | E38: =IF(ICA_b=0,$D38,$I38) -> 8372 | F38: =IF(ICB_b=0,$D38,$I38) -> 8372 | G38: =IF(ICC_b=0,$D38,$I38) -> 8372 | H38: =IF(ICD_b=0,$D38,$I38) -> 8372 | I38: 24963 | J38: 24963 | K38: 24963 | L38: 24963
A39: Pb | B39: mg/L | C39: CF_1 | D39: =(4.283*EXP(2.424*ICA_b/100))/1000 -> 0.004283 | E39: =(4.283*EXP(2.424*ICA_b/100))/1000 -> 0.004283 | F39: =(4.283*EXP(2.424*ICB_b/100))/1000 -> 0.004283 | G39: =(4.283*EXP(2.424*ICC_b/100))/1000 -> 0.004283 | H39: =(4.283*EXP(2.424*ICD_b/100))/1000 -> 0.004283 | I39: =(4.283*EXP(2.424*ICA_d/100))/1000 -> 0.004283 | J39: =(4.283*EXP(2.424*ICB_d/100))/1000 -> 0.004283 | K39: =(4.283*EXP(2.424*ICC_d/100))/1000 -> 0.004283 | L39: =(4.283*EXP(2.424*ICD_d/100))/1000 -> 0.004283 | M39: *Function of IC
A40: TN | B40: mg/L | C40: CF_1 | D40: 1.19 | E40: =IF(ICA_b=0,$D40,$I40) -> 1.19 | F40: =IF(ICB_b=0,$D40,$I40) -> 1.19 | G40: =IF(ICC_b=0,$D40,$I40) -> 1.19 | H40: =IF(ICD_b=0,$D40,$I40) -> 1.19 | I40: 2.22 | J40: 2.22 | K40: 2.22 | L40: 2.22
A41: TOC | B41: mg/L | C41: CF_1 | D41: 13.03 | E41: =IF(ICA_b=0,$D41,$I41) -> 13.03 | F41: =IF(ICB_b=0,$D41,$I41) -> 13.03 | G41: =IF(ICC_b=0,$D41,$I41) -> 13.03 | H41: =IF(ICD_b=0,$D41,$I41) -> 13.03 | I41: 13.03 | J41: 13.03 | K41: 13.03 | L41: 13.03
A42: TP | B42: mg/L | C42: CF_1 | D42: 0.124 | E42: =IF(ICA_b=0,$D42,$I42) -> 0.124 | F42: =IF(ICB_b=0,$D42,$I42) -> 0.124 | G42: =IF(ICC_b=0,$D42,$I42) -> 0.124 | H42: =IF(ICD_b=0,$D42,$I42) -> 0.124 | I42: 0.396 | J42: 0.396 | K42: 0.396 | L42: 0.396
A43: TSS | B43: mg/L | C43: CF_1 | D43: 166 | E43: =$D43 -> 166 | F43: =$D43 -> 166 | G43: =$D43 -> 166 | H43: =$D43 -> 166 | I43: 166 | J43: 166 | K43: 166 | L43: 166
A44: Zn | B44: mg/L | C44: CF_1 | D44: =(23.565*EXP(2.179*ICA_b/100))/1000 -> 0.023565 | E44: =(23.565*EXP(2.179*ICA_b/100))/1000 -> 0.023565 | F44: =(23.565*EXP(2.179*ICB_b/100))/1000 -> 0.023565 | G44: =(23.565*EXP(2.179*ICC_b/100))/1000 -> 0.023565 | H44: =(23.565*EXP(2.179*ICD_b/100))/1000 -> 0.023565 | I44: =(23.565*EXP(2.179*ICA_d/100))/1000 -> 0.023565 | J44: =(23.565*EXP(2.179*ICB_d/100))/1000 -> 0.023565 | K44: =(23.565*EXP(2.179*ICC_d/100))/1000 -> 0.023565 | L44: =(23.565*EXP(2.179*ICD_d/100))/1000 -> 0.023565 | M44: *Function of IC
A46: ECM TABLE 1.11: Treated Surface Effluent Concentrations
A47: Source: Glick et all. Impacts of Stormwater Control Measures on Water Quality in Austin, TX. CM-13-02. City of Austin Watershed Protection Department: September 2013.
A48: Pollutant | B48: Units | C48: Biofiltration | D48: Rainwater Harvesting | E48: Retention Basin | F48: Sedimentation/Filtration | G48: Wet Pond
A49: COD | B49: mg/L | C49: 22.4 | D49: 43.79 | E49: 43.79 | F49: 22.4 | G49: 31.58
A50: E. coli | B50: CFU/100mL | C50: 4895 | D50: 11065 | E50: 11065 | F50: 4895 | G50: 12138
A51: Pb | B51: mg/L | C51: 0.00574 | D51: 0.00831 | E51: 0.00831 | F51: 0.00574 | G51: 0.00994
A52: TN | B52: mg/L | C52: 1.07 | D52: 1.42 | E52: 1.42 | F52: 1.07 | G52: 1.24
A53: TOC | B53: mg/L | C53: 7.33 | D53: 11.45 | E53: 11.45 | F53: 7.33 | G53: 7.77
A54: TP | B54: mg/L | C54: 0.099 | D54: 0.224 | E54: 0.224 | F54: 0.099 | G54: 0.211
A55: TSS | B55: mg/L | C55: 20.62 | D55: 133.8 | E55: 133.8 | F55: 20.62 | G55: 44.6
A56: Zn | B56: mg/L | C56: 0.023 | D56: 0.0453 | E56: 0.0453 | F56: 0.023 | G56: 0.04388
C57: *Sand or bio, equal to sed/fil | D57: *Equal to Sedimentation | E57: *Equal to Sedimentation
A59: ECM TABLE 1.12: Bypass Concentrations As a Function of Runoff Captured
C61: Drainage Area A | D61: Drainage Area A | E61: Drainage Area B | F61: Drainage Area B | G61: Drainage Area C | H61: Drainage Area C | I61: Drainage Area D | J61: Drainage Area D | K61: Drainage Area A | L61: Drainage Area B | M61: Drainage Area C | N61: Drainage Area D
A62: Pollutant | C62: ='1. ENTER DATA'!E63 -> Retention Basin | D62: =C62 -> Retention Basin | E62: ='1. ENTER DATA'!F63 -> Retention Basin | F62: =E62 -> Retention Basin | G62: ='1. ENTER DATA'!G63 -> Retention Basin | H62: =G62 -> Retention Basin | I62: ='1. ENTER DATA'!H63 -> Retention Basin | J62: =I62 -> Retention Basin | K62: Sed/Fil Equivalent | L62: =K62 -> Sed/Fil Equivalent | M62: =K62 -> Sed/Fil Equivalent | N62: =K62 -> Sed/Fil Equivalent
B63: WQV | C63: =WQV_A1 -> 2.5 | D63: =WQV_A1 -> 2.5 | E63: =WQV_B1 -> 2.5 | F63: =WQV_B1 -> 2.5 | G63: =WQV_C1 -> 2.5 | H63: =WQV_C1 -> 2.5 | I63: =WQV_D1 -> 2.5 | J63: =WQV_D1 -> 2.5 | K63: =C93 -> 0.5 | L63: =D93 -> 0.5 | M63: 0.5 | N63: 0.5
B64: Method | C64: Yes (Off-Line) | D64: No (On-Line) | E64: =C64 -> Yes (Off-Line) | F64: =D64 -> No (On-Line) | G64: =C64 -> Yes (Off-Line) | H64: =D64 -> No (On-Line) | I64: =C64 -> Yes (Off-Line) | J64: =D64 -> No (On-Line) | K64: =$E$64 -> Yes (Off-Line) | L64: =$E$64 -> Yes (Off-Line) | M64: =$E$64 -> Yes (Off-Line) | N64: =$E$64 -> Yes (Off-Line)
A65: COD | B65: mg/L | C65: =IF(C$63>0.0053,EXP(4.493-0.5104*C$63),EXP(5.6158-212.362*C$63)) -> 24.95314833 | D65: =IF(D$63>0.0053,EXP(4.9161-0.5447*D$63),EXP(6.1257-228.771*D$63)) -> 34.96508527 | E65: =IF(E$63>0.0053,EXP(4.493-0.5104*E$63),EXP(5.6158-212.362*E$63)) -> 24.95314833 | F65: =IF(F$63>0.0053,EXP(4.9161-0.5447*F$63),EXP(6.1257-228.771*F$63)) -> 34.96508527 | G65: =IF(G$63>0.0053,EXP(4.493-0.5104*G$63),EXP(5.6158-212.362*G$63)) -> 24.95314833 | H65: =IF(H$63>0.0053,EXP(4.9161-0.5447*H$63),EXP(6.1257-228.771*H$63)) -> 34.96508527 | I65: =IF(I$63>0.0053,EXP(4.493-0.5104*I$63),EXP(5.6158-212.362*I$63)) -> 24.95314833 | J65: =IF(J$63>0.0053,EXP(4.9161-0.5447*J$63),EXP(6.1257-228.771*J$63)) -> 34.96508527 | K65: =IF(K$63>0.0053,EXP(4.493-0.5104*K$63),EXP(5.6158-212.362*K$63)) -> 69.25532241 | L65: =IF(L$63>0.0053,EXP(4.493-0.5104*L$63),EXP(5.6158-212.362*L$63)) -> 69.25532241 | M65: =IF(M$63>0.0053,EXP(4.493-0.5104*M$63),EXP(5.6158-212.362*M$63)) -> 69.25532241 | N65: =IF(N$63>0.0053,EXP(4.493-0.5104*N$63),EXP(5.6158-212.362*N$63)) -> 69.25532241
A66: E. coli | B66: CFU/100mL | C66: =IF(C$63>0.0091,EXP(10.1772-0.4647*C$63),EXP(10.4384-29.1718*C$63)) -> 8229.248687 | D66: =IF(D$63>0.0091,EXP(10.7915-0.6241*D$63),EXP(11.4771-75.97*D$63)) -> 10211.29766 | E66: =IF(E$63>0.0091,EXP(10.1772-0.4647*E$63),EXP(10.4384-29.1718*E$63)) -> 8229.248687 | F66: =IF(F$63>0.0091,EXP(10.7915-0.6241*F$63),EXP(11.4771-75.97*F$63)) -> 10211.29766 | G66: =IF(G$63>0.0091,EXP(10.1772-0.4647*G$63),EXP(10.4384-29.1718*G$63)) -> 8229.248687 | H66: =IF(H$63>0.0091,EXP(10.7915-0.6241*H$63),EXP(11.4771-75.97*H$63)) -> 10211.29766 | I66: =IF(I$63>0.0091,EXP(10.1772-0.4647*I$63),EXP(10.4384-29.1718*I$63)) -> 8229.248687 | J66: =IF(J$63>0.0091,EXP(10.7915-0.6241*J$63),EXP(11.4771-75.97*J$63)) -> 10211.29766 | K66: =IF(K$63>0.0091,EXP(10.1772-0.4647*K$63),EXP(10.4384-29.1718*K$63)) -> 20844.59581 | L66: =IF(L$63>0.0091,EXP(10.1772-0.4647*L$63),EXP(10.4384-29.1718*L$63)) -> 20844.59581 | M66: =IF(M$63>0.0091,EXP(10.1772-0.4647*M$63),EXP(10.4384-29.1718*M$63)) -> 20844.59581 | N66: =IF(N$63>0.0091,EXP(10.1772-0.4647*N$63),EXP(10.4384-29.1718*N$63)) -> 20844.59581
A67: Pb | B67: mg/L | C67: =IF(C$63>0.014,EXP(2.8821-0.4893*C$63),EXP(3.6322-54.0678*C$63))/1000 -> 0.005253266113 | D67: =IF(D$63>0.014,EXP(3.5221-0.5291*D$63),EXP(4.2534-52.7676*D$63))/1000 -> 0.009019149147 | E67: =IF(E$63>0.014,EXP(2.8821-0.4893*E$63),EXP(3.6322-54.0678*E$63))/1000 -> 0.005253266113 | F67: =IF(F$63>0.014,EXP(3.5221-0.5291*F$63),EXP(4.2534-52.7676*F$63))/1000 -> 0.009019149147 | G67: =IF(G$63>0.014,EXP(2.8821-0.4893*G$63),EXP(3.6322-54.0678*G$63))/1000 -> 0.005253266113 | H67: =IF(H$63>0.014,EXP(3.5221-0.5291*H$63),EXP(4.2534-52.7676*H$63))/1000 -> 0.009019149147 | I67: =IF(I$63>0.014,EXP(2.8821-0.4893*I$63),EXP(3.6322-54.0678*I$63))/1000 -> 0.005253266113 | J67: =IF(J$63>0.014,EXP(3.5221-0.5291*J$63),EXP(4.2534-52.7676*J$63))/1000 -> 0.009019149147 | K67: =IF(K$63>0.014,EXP(2.8821-0.4893*K$63),EXP(3.6322-54.0678*K$63))/1000 -> 0.01397751546 | L67: =IF(L$63>0.014,EXP(2.8821-0.4893*L$63),EXP(3.6322-54.0678*L$63))/1000 -> 0.01397751546 | M67: =IF(M$63>0.014,EXP(2.8821-0.4893*M$63),EXP(3.6322-54.0678*M$63))/1000 -> 0.01397751546 | N67: =IF(N$63>0.014,EXP(2.8821-0.4893*N$63),EXP(3.6322-54.0678*N$63))/1000 -> 0.01397751546
A68: TN | B68: mg/L | C68: =IF(C$63>0.0145,EXP(0.9574-0.267*C$63),EXP(1.8156-59.4508*C$63)) -> 1.336293852 | D68: =IF(D$63>0.0145,EXP(1.3219-0.2364*D$63),EXP(2.2217-62.2914*D$63)) -> 2.076949021 | E68: =IF(E$63>0.0145,EXP(0.9574-0.267*E$63),EXP(1.8156-59.4508*E$63)) -> 1.336293852 | F68: =IF(F$63>0.0145,EXP(1.3219-0.2364*F$63),EXP(2.2217-62.2914*F$63)) -> 2.076949021 | G68: =IF(G$63>0.0145,EXP(0.9574-0.267*G$63),EXP(1.8156-59.4508*G$63)) -> 1.336293852 | H68: =IF(H$63>0.0145,EXP(1.3219-0.2364*H$63),EXP(2.2217-62.2914*H$63)) -> 2.076949021 | I68: =IF(I$63>0.0145,EXP(0.9574-0.267*I$63),EXP(1.8156-59.4508*I$63)) -> 1.336293852 | J68: =IF(J$63>0.0145,EXP(1.3219-0.2364*J$63),EXP(2.2217-62.2914*J$63)) -> 2.076949021 | K68: =IF(K$63>0.0145,EXP(0.9574-0.267*K$63),EXP(1.8156-59.4508*K$63)) -> 2.279372077 | L68: =IF(L$63>0.0145,EXP(0.9574-0.267*L$63),EXP(1.8156-59.4508*L$63)) -> 2.279372077 | M68: =IF(M$63>0.0145,EXP(0.9574-0.267*M$63),EXP(1.8156-59.4508*M$63)) -> 2.279372077 | N68: =IF(N$63>0.0145,EXP(0.9574-0.267*N$63),EXP(1.8156-59.4508*N$63)) -> 2.279372077
A69: TOC | B69: mg/L | C69: =IF(C$63>0.00608,EXP(2.724-0.1886*C$63),EXP(2.724-0.1886*C$63)) -> 9.51148485 | D69: =IF(D$63>0.00608,EXP(3.1124-0.2821*D$63),EXP(3.1124-0.2821*D$63)) -> 11.10227453 | E69: =IF(E$63>0.00608,EXP(2.724-0.1886*E$63),EXP(2.724-0.1886*E$63)) -> 9.51148485 | F69: =IF(F$63>0.00608,EXP(3.1124-0.2821*F$63),EXP(3.1124-0.2821*F$63)) -> 11.10227453 | G69: =IF(G$63>0.00608,EXP(2.724-0.1886*G$63),EXP(2.724-0.1886*G$63)) -> 9.51148485 | H69: =IF(H$63>0.00608,EXP(3.1124-0.2821*H$63),EXP(3.1124-0.2821*H$63)) -> 11.10227453 | I69: =IF(I$63>0.00608,EXP(2.724-0.1886*I$63),EXP(2.724-0.1886*I$63)) -> 9.51148485 | J69: =IF(J$63>0.00608,EXP(3.1124-0.2821*J$63),EXP(3.1124-0.2821*J$63)) -> 11.10227453 | K69: =IF(K$63>0.00608,EXP(2.724-0.1886*K$63),EXP(2.724-0.1886*K$63)) -> 13.8696084 | L69: =IF(L$63>0.00608,EXP(2.724-0.1886*L$63),EXP(2.724-0.1886*L$63)) -> 13.8696084 | M69: =IF(M$63>0.00608,EXP(2.724-0.1886*M$63),EXP(2.724-0.1886*M$63)) -> 13.8696084 | N69: =IF(N$63>0.00608,EXP(2.724-0.1886*N$63),EXP(2.724-0.1886*N$63)) -> 13.8696084
A70: TP | B70: mg/L | C70: =IF(C$63>0.00426,EXP(-0.6134-0.4693*C$63),EXP(0.0336-152.341*C$63)) -> 0.1675204241 | D70: =IF(D$63>0.00426,EXP(-0.2231-0.4003*D$63),EXP(0.5338-178.08*D$63)) -> 0.294095716 | E70: =IF(E$63>0.00426,EXP(-0.6134-0.4693*E$63),EXP(0.0336-152.341*E$63)) -> 0.1675204241 | F70: =IF(F$63>0.00426,EXP(-0.2231-0.4003*F$63),EXP(0.5338-178.08*F$63)) -> 0.294095716 | G70: =IF(G$63>0.00426,EXP(-0.6134-0.4693*G$63),EXP(0.0336-152.341*G$63)) -> 0.1675204241 | H70: =IF(H$63>0.00426,EXP(-0.2231-0.4003*H$63),EXP(0.5338-178.08*H$63)) -> 0.294095716 | I70: =IF(I$63>0.00426,EXP(-0.6134-0.4693*I$63),EXP(0.0336-152.341*I$63)) -> 0.1675204241 | J70: =IF(J$63>0.00426,EXP(-0.2231-0.4003*J$63),EXP(0.5338-178.08*J$63)) -> 0.294095716 | K70: =IF(K$63>0.00426,EXP(-0.6134-0.4693*K$63),EXP(0.0336-152.341*K$63)) -> 0.4282492042 | L70: =IF(L$63>0.00426,EXP(-0.6134-0.4693*L$63),EXP(0.0336-152.341*L$63)) -> 0.4282492042 | M70: =IF(M$63>0.00426,EXP(-0.6134-0.4693*M$63),EXP(0.0336-152.341*M$63)) -> 0.4282492042 | N70: =IF(N$63>0.00426,EXP(-0.6134-0.4693*N$63),EXP(0.0336-152.341*N$63)) -> 0.4282492042
A71: TSS | B71: mg/L | C71: =IF(C$63>0.00399,EXP(5.2895-0.9341*C$63),EXP(6.3181-258.741*C$63)) -> 19.18732683 | D71: =IF(D$63>0.00399,EXP(5.8622-0.7645*D$63),EXP(6.8265-242.449*D$63)) -> 51.98472888 | E71: =IF(E$63>0.00399,EXP(5.2895-0.9341*E$63),EXP(6.3181-258.741*E$63)) -> 19.18732683 | F71: =IF(F$63>0.00399,EXP(5.8622-0.7645*F$63),EXP(6.8265-242.449*F$63)) -> 51.98472888 | G71: =IF(G$63>0.00399,EXP(5.2895-0.9341*G$63),EXP(6.3181-258.741*G$63)) -> 19.18732683 | H71: =IF(H$63>0.00399,EXP(5.8622-0.7645*H$63),EXP(6.8265-242.449*H$63)) -> 51.98472888 | I71: =IF(I$63>0.00399,EXP(5.2895-0.9341*I$63),EXP(6.3181-258.741*I$63)) -> 19.18732683 | J71: =IF(J$63>0.00399,EXP(5.8622-0.7645*J$63),EXP(6.8265-242.449*J$63)) -> 51.98472888 | K71: =IF(K$63>0.00399,EXP(5.2895-0.9341*K$63),EXP(6.3181-258.741*K$63)) -> 124.2691776 | L71: =IF(L$63>0.00399,EXP(5.2895-0.9341*L$63),EXP(6.3181-258.741*L$63)) -> 124.2691776 | M71: =IF(M$63>0.00399,EXP(5.2895-0.9341*M$63),EXP(6.3181-258.741*M$63)) -> 124.2691776 | N71: =IF(N$63>0.00399,EXP(5.2895-0.9341*N$63),EXP(6.3181-258.741*N$63)) -> 124.2691776
A72: Zn | B72: mg/L | C72: =IF(C$63>0.0147,EXP(4.61-0.4424*C$63),EXP(5.5439-63.9761*C$63))/1000 -> 0.03324817904 | D72: =IF(D$63>0.0147,EXP(5.1995-0.531*D$63),EXP(6.1534-65.4251*D$63))/1000 -> 0.0480383668 | E72: =IF(E$63>0.0147,EXP(4.61-0.4424*E$63),EXP(5.5439-63.9761*E$63))/1000 -> 0.03324817904 | F72: =IF(F$63>0.0147,EXP(5.1995-0.531*F$63),EXP(6.1534-65.4251*F$63))/1000 -> 0.0480383668 | G72: =IF(G$63>0.0147,EXP(4.61-0.4424*G$63),EXP(5.5439-63.9761*G$63))/1000 -> 0.03324817904 | H72: =IF(H$63>0.0147,EXP(5.1995-0.531*H$63),EXP(6.1534-65.4251*H$63))/1000 -> 0.0480383668 | I72: =IF(I$63>0.0147,EXP(4.61-0.4424*I$63),EXP(5.5439-63.9761*I$63))/1000 -> 0.03324817904 | J72: =IF(J$63>0.0147,EXP(5.1995-0.531*J$63),EXP(6.1534-65.4251*J$63))/1000 -> 0.0480383668 | K72: =IF(K$63>0.0147,EXP(4.61-0.4424*K$63),EXP(5.5439-63.9761*K$63))/1000 -> 0.08054370852 | L72: =IF(L$63>0.0147,EXP(4.61-0.4424*L$63),EXP(5.5439-63.9761*L$63))/1000 -> 0.08054370852 | M72: =IF(M$63>0.0147,EXP(4.61-0.4424*M$63),EXP(5.5439-63.9761*M$63))/1000 -> 0.08054370852 | N72: =IF(N$63>0.0147,EXP(4.61-0.4424*N$63),EXP(5.5439-63.9761*N$63))/1000 -> 0.08054370852
C73: *CM-14-10, "Offline" uses 80th pct, "online" uses 90th pct regressions
A76: CALCULATE: RUNOFF
C77: Drainage Area 1 | D77: Drainage Area 2 | E77: Drainage Area 3 | F77: Drainage Area 4
B78: Analyze? | C78: 1 | D78: =IF(n_DA>1,1,0) -> 0 | E78: =IF(n_DA>2,1,0) -> 0 | F78: =IF(n_DA>3,1,0) -> 0
B79: Drainage Area (Ac) | C79: =DA_A -> 1 | D79: =DA_B -> 1 | E79: =DA_C -> 1 | F79: =DA_D -> 1
A80: Existing | B80: IC % | C80: =ICA_b -> 0 | D80: =ICB_b -> 0 | E80: =ICC_b -> 0 | F80: =ICD_b -> 0
B81: Rv (Runoff Coeff) | C81: =0.7162*C80/100+0.0644 -> 0.0644 | D81: =0.7162*D80/100+0.0644 -> 0.0644 | E81: =0.7162*E80/100+0.0644 -> 0.0644 | F81: =0.7162*F80/100+0.0644 -> 0.0644
B82: Sd (Dep Storage) | C82: =0.2181*EXP(-1.9456*C80/100) -> 0.2181 | D82: =0.2181*EXP(-1.9456*D80/100) -> 0.2181 | E82: =0.2181*EXP(-1.9456*E80/100) -> 0.2181 | F82: =0.2181*EXP(-1.9456*F80/100) -> 0.2181
B83: Runoff (in/yr) | C83: =C$78*$A$2*C81*EXP(-$A$3/$A$2*C82) -> 1.184518771 | D83: =D$78*$A$2*D81*EXP(-$A$3/$A$2*D82) -> 0 | E83: =E$78*$A$2*E81*EXP(-$A$3/$A$2*E82) -> 0 | F83: =F$78*$A$2*F81*EXP(-$A$3/$A$2*F82) -> 0
B84: Runoff (Ac-in/yr) | C84: =C79*C83 -> 1.184518771 | D84: =D79*D83 -> 0 | E84: 0 | F84: 0
A85: Developed | B85: IC % | C85: =ICA_d -> 0 | D85: =ICB_d -> 0 | E85: =ICC_d -> 0 | F85: =ICD_d -> 0
B86: Rv (Runoff Coeff) | C86: =0.7162*C85/100+0.0644 -> 0.0644 | D86: =0.7162*D85/100+0.0644 -> 0.0644 | E86: =0.7162*E85/100+0.0644 -> 0.0644 | F86: =0.7162*F85/100+0.0644 -> 0.0644
B87: Sd (Dep Storage) | C87: =0.2181*EXP(-1.9456*C85/100) -> 0.2181 | D87: =0.2181*EXP(-1.9456*D85/100) -> 0.2181 | E87: =0.2181*EXP(-1.9456*E85/100) -> 0.2181 | F87: =0.2181*EXP(-1.9456*F85/100) -> 0.2181
B88: Runoff (in/yr) | C88: =C$78*$A$2*C86*EXP(-$A$3/$A$2*C87) -> 1.184518771 | D88: =D$78*$A$2*D86*EXP(-$A$3/$A$2*D87) -> 0 | E88: =E$78*$A$2*E86*EXP(-$A$3/$A$2*E87) -> 0 | F88: =F$78*$A$2*F86*EXP(-$A$3/$A$2*F87) -> 0
B89: Runoff (Ac-in/yr) | C89: =C79*C88 -> 1.184518771 | D89: =D79*D88 -> 0 | E89: 0 | F89: 0
A91: CALCULATE: '1/2" PLUS' (MINIMUM) WATER QUALITY VOLUME
C92: Drainage Area A | D92: Drainage Area B | E92: Drainage Area C | F92: Drainage Area D
B93: WQV (in) | C93: =MAX(0.5,0.5+(ICA_d-20)/100) -> 0.5 | D93: =MAX(0.5,0.5+(ICB_d-20)/100) -> 0.5 | E93: =MAX(0.5,0.5+(ICC_d-20)/100) -> 0.5 | F93: =MAX(0.5,0.5+(ICD_d-20)/100) -> 0.5
A96: CALCULATE: Effluent Concentrations For Each SCM
C97: SCM A.1 | D97: SCM B.1 | E97: SCM C.1 | F97: SCM D.1
A98: Pollutant | B98: Units | C98: ='1. ENTER DATA'!E63 -> Retention Basin | D98: ='1. ENTER DATA'!F63 -> Retention Basin | E98: ='1. ENTER DATA'!G63 -> Retention Basin | F98: ='1. ENTER DATA'!H63 -> Retention Basin
A99: COD | B99: mg/L | C99: =IF(C$98="None",I37,MIN(IF(C$98="Alternative",'1. ENTER DATA'!E64,LOOKUP(C$98,$C$48:$G$48,$C49:$G49)),I37)) -> 38.9 | D99: =IF(D$98="None",J37,MIN(IF(D$98="Alternative",'1. ENTER DATA'!F64,LOOKUP(D$98,$C$48:$G$48,$C49:$G49)),J37)) -> 38.9 | E99: =IF(E$98="None",K37,MIN(IF(E$98="Alternative",'1. ENTER DATA'!G64,LOOKUP(E$98,$C$48:$G$48,$C49:$G49)),K37)) -> 38.9 | F99: =IF(F$98="None",L37,MIN(IF(F$98="Alternative",'1. ENTER DATA'!H64,LOOKUP(F$98,$C$48:$G$48,$C49:$G49)),L37)) -> 38.9
A100: E. coli | B100: CFU/100mL | C100: =IF(C$98="None",I38,MIN(IF(C$98="Alternative",'1. ENTER DATA'!E65,LOOKUP(C$98,$C$48:$G$48,$C50:$G50)),I38)) -> 11065 | D100: =IF(D$98="None",J38,MIN(IF(D$98="Alternative",'1. ENTER DATA'!F65,LOOKUP(D$98,$C$48:$G$48,$C50:$G50)),J38)) -> 11065 | E100: =IF(E$98="None",K38,MIN(IF(E$98="Alternative",'1. ENTER DATA'!G65,LOOKUP(E$98,$C$48:$G$48,$C50:$G50)),K38)) -> 11065 | F100: =IF(F$98="None",L38,MIN(IF(F$98="Alternative",'1. ENTER DATA'!H65,LOOKUP(F$98,$C$48:$G$48,$C50:$G50)),L38)) -> 11065
A101: Pb | B101: mg/L | C101: =IF(C$98="None",I39,MIN(IF(C$98="Alternative",'1. ENTER DATA'!E66,LOOKUP(C$98,$C$48:$G$48,$C51:$G51)),I39)) -> 0.004283 | D101: =IF(D$98="None",J39,MIN(IF(D$98="Alternative",'1. ENTER DATA'!F66,LOOKUP(D$98,$C$48:$G$48,$C51:$G51)),J39)) -> 0.004283 | E101: =IF(E$98="None",K39,MIN(IF(E$98="Alternative",'1. ENTER DATA'!G66,LOOKUP(E$98,$C$48:$G$48,$C51:$G51)),K39)) -> 0.004283 | F101: =IF(F$98="None",L39,MIN(IF(F$98="Alternative",'1. ENTER DATA'!H66,LOOKUP(F$98,$C$48:$G$48,$C51:$G51)),L39)) -> 0.004283
A102: TN | B102: mg/L | C102: =IF(C$98="None",I40,MIN(IF(C$98="Alternative",'1. ENTER DATA'!E67,LOOKUP(C$98,$C$48:$G$48,$C52:$G52)),I40)) -> 1.42 | D102: =IF(D$98="None",J40,MIN(IF(D$98="Alternative",'1. ENTER DATA'!F67,LOOKUP(D$98,$C$48:$G$48,$C52:$G52)),J40)) -> 1.42 | E102: =IF(E$98="None",K40,MIN(IF(E$98="Alternative",'1. ENTER DATA'!G67,LOOKUP(E$98,$C$48:$G$48,$C52:$G52)),K40)) -> 1.42 | F102: =IF(F$98="None",L40,MIN(IF(F$98="Alternative",'1. ENTER DATA'!H67,LOOKUP(F$98,$C$48:$G$48,$C52:$G52)),L40)) -> 1.42
A103: TOC | B103: mg/L | C103: =IF(C$98="None",I41,MIN(IF(C$98="Alternative",'1. ENTER DATA'!E68,LOOKUP(C$98,$C$48:$G$48,$C53:$G53)),I41)) -> 11.45 | D103: =IF(D$98="None",J41,MIN(IF(D$98="Alternative",'1. ENTER DATA'!F68,LOOKUP(D$98,$C$48:$G$48,$C53:$G53)),J41)) -> 11.45 | E103: =IF(E$98="None",K41,MIN(IF(E$98="Alternative",'1. ENTER DATA'!G68,LOOKUP(E$98,$C$48:$G$48,$C53:$G53)),K41)) -> 11.45 | F103: =IF(F$98="None",L41,MIN(IF(F$98="Alternative",'1. ENTER DATA'!H68,LOOKUP(F$98,$C$48:$G$48,$C53:$G53)),L41)) -> 11.45
A104: TP | B104: mg/L | C104: =IF(C$98="None",I42,MIN(IF(C$98="Alternative",'1. ENTER DATA'!E69,LOOKUP(C$98,$C$48:$G$48,$C54:$G54)),I42)) -> 0.224 | D104: =IF(D$98="None",J42,MIN(IF(D$98="Alternative",'1. ENTER DATA'!F69,LOOKUP(D$98,$C$48:$G$48,$C54:$G54)),J42)) -> 0.224 | E104: =IF(E$98="None",K42,MIN(IF(E$98="Alternative",'1. ENTER DATA'!G69,LOOKUP(E$98,$C$48:$G$48,$C54:$G54)),K42)) -> 0.224 | F104: =IF(F$98="None",L42,MIN(IF(F$98="Alternative",'1. ENTER DATA'!H69,LOOKUP(F$98,$C$48:$G$48,$C54:$G54)),L42)) -> 0.224
A105: TSS | B105: mg/L | C105: =IF(C$98="None",I43,MIN(IF(C$98="Alternative",'1. ENTER DATA'!E70,LOOKUP(C$98,$C$48:$G$48,$C55:$G55)),I43)) -> 133.8 | D105: =IF(D$98="None",J43,MIN(IF(D$98="Alternative",'1. ENTER DATA'!F70,LOOKUP(D$98,$C$48:$G$48,$C55:$G55)),J43)) -> 133.8 | E105: =IF(E$98="None",K43,MIN(IF(E$98="Alternative",'1. ENTER DATA'!G70,LOOKUP(E$98,$C$48:$G$48,$C55:$G55)),K43)) -> 133.8 | F105: =IF(F$98="None",L43,MIN(IF(F$98="Alternative",'1. ENTER DATA'!H70,LOOKUP(F$98,$C$48:$G$48,$C55:$G55)),L43)) -> 133.8
A106: Zn | B106: mg/L | C106: =IF(C$98="None",I44,MIN(IF(C$98="Alternative",'1. ENTER DATA'!E71,LOOKUP(C$98,$C$48:$G$48,$C56:$G56)),I44)) -> 0.023565 | D106: =IF(D$98="None",J44,MIN(IF(D$98="Alternative",'1. ENTER DATA'!F71,LOOKUP(D$98,$C$48:$G$48,$C56:$G56)),J44)) -> 0.023565 | E106: =IF(E$98="None",K44,MIN(IF(E$98="Alternative",'1. ENTER DATA'!G71,LOOKUP(E$98,$C$48:$G$48,$C56:$G56)),K44)) -> 0.023565 | F106: =IF(F$98="None",L44,MIN(IF(F$98="Alternative",'1. ENTER DATA'!H71,LOOKUP(F$98,$C$48:$G$48,$C56:$G56)),L44)) -> 0.023565
C107: SCM A.2 | D107: SCM B.2 | E107: SCM C.2 | F107: SCM D.2
A108: Pollutant | B108: Units | C108: ='1. ENTER DATA'!E73 -> Infiltration Field | D108: ='1. ENTER DATA'!F73 -> Infiltration Field | E108: ='1. ENTER DATA'!G73 -> Infiltration Field | F108: ='1. ENTER DATA'!H73 -> Infiltration Field
A109: COD | B109: mg/L | C109: =MIN(IF(C$108="Alternative",'1. ENTER DATA'!E74,IF(OR(C$108="Infiltration Field",C$108="None",C$108="Beneficial Reuse"),C99,LOOKUP(C$108,$C$48:$G$48,$C49:$G49))),C99) -> 38.9 | D109: =MIN(IF(D$108="Alternative",'1. ENTER DATA'!F74,IF(OR(D$108="Infiltration Field",D$108="None",D$108="Beneficial Reuse"),D99,LOOKUP(D$108,$C$48:$G$48,$C49:$G49))),D99) -> 38.9 | E109: =MIN(IF(E$108="Alternative",'1. ENTER DATA'!G74,IF(OR(E$108="Infiltration Field",E$108="None",E$108="Beneficial Reuse"),E99,LOOKUP(E$108,$C$48:$G$48,$C49:$G49))),E99) -> 38.9 | F109: =MIN(IF(F$108="Alternative",'1. ENTER DATA'!H74,IF(OR(F$108="Infiltration Field",F$108="None",F$108="Beneficial Reuse"),F99,LOOKUP(F$108,$C$48:$G$48,$C49:$G49))),F99) -> 38.9
A110: E. coli | B110: CFU/100mL | C110: =MIN(IF(C$108="Alternative",'1. ENTER DATA'!E75,IF(OR(C$108="Infiltration Field",C$108="None",C$108="Beneficial Reuse"),C100,LOOKUP(C$108,$C$48:$G$48,$C50:$G50))),C100) -> 11065 | D110: =MIN(IF(D$108="Alternative",'1. ENTER DATA'!F75,IF(OR(D$108="Infiltration Field",D$108="None",D$108="Beneficial Reuse"),D100,LOOKUP(D$108,$C$48:$G$48,$C50:$G50))),D100) -> 11065 | E110: =MIN(IF(E$108="Alternative",'1. ENTER DATA'!G75,IF(OR(E$108="Infiltration Field",E$108="None",E$108="Beneficial Reuse"),E100,LOOKUP(E$108,$C$48:$G$48,$C50:$G50))),E100) -> 11065 | F110: =MIN(IF(F$108="Alternative",'1. ENTER DATA'!H75,IF(OR(F$108="Infiltration Field",F$108="None",F$108="Beneficial Reuse"),F100,LOOKUP(F$108,$C$48:$G$48,$C50:$G50))),F100) -> 11065
A111: Pb | B111: mg/L | C111: =MIN(IF(C$108="Alternative",'1. ENTER DATA'!E76,IF(OR(C$108="Infiltration Field",C$108="None",C$108="Beneficial Reuse"),C101,LOOKUP(C$108,$C$48:$G$48,$C51:$G51))),C101) -> 0.004283 | D111: =MIN(IF(D$108="Alternative",'1. ENTER DATA'!F76,IF(OR(D$108="Infiltration Field",D$108="None",D$108="Beneficial Reuse"),D101,LOOKUP(D$108,$C$48:$G$48,$C51:$G51))),D101) -> 0.004283 | E111: =MIN(IF(E$108="Alternative",'1. ENTER DATA'!G76,IF(OR(E$108="Infiltration Field",E$108="None",E$108="Beneficial Reuse"),E101,LOOKUP(E$108,$C$48:$G$48,$C51:$G51))),E101) -> 0.004283 | F111: =MIN(IF(F$108="Alternative",'1. ENTER DATA'!H76,IF(OR(F$108="Infiltration Field",F$108="None",F$108="Beneficial Reuse"),F101,LOOKUP(F$108,$C$48:$G$48,$C51:$G51))),F101) -> 0.004283
A112: TN | B112: mg/L | C112: =MIN(IF(C$108="Alternative",'1. ENTER DATA'!E77,IF(OR(C$108="Infiltration Field",C$108="None",C$108="Beneficial Reuse"),C102,LOOKUP(C$108,$C$48:$G$48,$C52:$G52))),C102) -> 1.42 | D112: =MIN(IF(D$108="Alternative",'1. ENTER DATA'!F77,IF(OR(D$108="Infiltration Field",D$108="None",D$108="Beneficial Reuse"),D102,LOOKUP(D$108,$C$48:$G$48,$C52:$G52))),D102) -> 1.42 | E112: =MIN(IF(E$108="Alternative",'1. ENTER DATA'!G77,IF(OR(E$108="Infiltration Field",E$108="None",E$108="Beneficial Reuse"),E102,LOOKUP(E$108,$C$48:$G$48,$C52:$G52))),E102) -> 1.42 | F112: =MIN(IF(F$108="Alternative",'1. ENTER DATA'!H77,IF(OR(F$108="Infiltration Field",F$108="None",F$108="Beneficial Reuse"),F102,LOOKUP(F$108,$C$48:$G$48,$C52:$G52))),F102) -> 1.42
A113: TOC | B113: mg/L | C113: =MIN(IF(C$108="Alternative",'1. ENTER DATA'!E78,IF(OR(C$108="Infiltration Field",C$108="None",C$108="Beneficial Reuse"),C103,LOOKUP(C$108,$C$48:$G$48,$C53:$G53))),C103) -> 11.45 | D113: =MIN(IF(D$108="Alternative",'1. ENTER DATA'!F78,IF(OR(D$108="Infiltration Field",D$108="None",D$108="Beneficial Reuse"),D103,LOOKUP(D$108,$C$48:$G$48,$C53:$G53))),D103) -> 11.45 | E113: =MIN(IF(E$108="Alternative",'1. ENTER DATA'!G78,IF(OR(E$108="Infiltration Field",E$108="None",E$108="Beneficial Reuse"),E103,LOOKUP(E$108,$C$48:$G$48,$C53:$G53))),E103) -> 11.45 | F113: =MIN(IF(F$108="Alternative",'1. ENTER DATA'!H78,IF(OR(F$108="Infiltration Field",F$108="None",F$108="Beneficial Reuse"),F103,LOOKUP(F$108,$C$48:$G$48,$C53:$G53))),F103) -> 11.45
A114: TP | B114: mg/L | C114: =MIN(IF(C$108="Alternative",'1. ENTER DATA'!E79,IF(OR(C$108="Infiltration Field",C$108="None",C$108="Beneficial Reuse"),C104,LOOKUP(C$108,$C$48:$G$48,$C54:$G54))),C104) -> 0.224 | D114: =MIN(IF(D$108="Alternative",'1. ENTER DATA'!F79,IF(OR(D$108="Infiltration Field",D$108="None",D$108="Beneficial Reuse"),D104,LOOKUP(D$108,$C$48:$G$48,$C54:$G54))),D104) -> 0.224 | E114: =MIN(IF(E$108="Alternative",'1. ENTER DATA'!G79,IF(OR(E$108="Infiltration Field",E$108="None",E$108="Beneficial Reuse"),E104,LOOKUP(E$108,$C$48:$G$48,$C54:$G54))),E104) -> 0.224 | F114: =MIN(IF(F$108="Alternative",'1. ENTER DATA'!H79,IF(OR(F$108="Infiltration Field",F$108="None",F$108="Beneficial Reuse"),F104,LOOKUP(F$108,$C$48:$G$48,$C54:$G54))),F104) -> 0.224
A115: TSS | B115: mg/L | C115: =MIN(IF(C$108="Alternative",'1. ENTER DATA'!E80,IF(OR(C$108="Infiltration Field",C$108="None",C$108="Beneficial Reuse"),C105,LOOKUP(C$108,$C$48:$G$48,$C55:$G55))),C105) -> 133.8 | D115: =MIN(IF(D$108="Alternative",'1. ENTER DATA'!F80,IF(OR(D$108="Infiltration Field",D$108="None",D$108="Beneficial Reuse"),D105,LOOKUP(D$108,$C$48:$G$48,$C55:$G55))),D105) -> 133.8 | E115: =MIN(IF(E$108="Alternative",'1. ENTER DATA'!G80,IF(OR(E$108="Infiltration Field",E$108="None",E$108="Beneficial Reuse"),E105,LOOKUP(E$108,$C$48:$G$48,$C55:$G55))),E105) -> 133.8 | F115: =MIN(IF(F$108="Alternative",'1. ENTER DATA'!H80,IF(OR(F$108="Infiltration Field",F$108="None",F$108="Beneficial Reuse"),F105,LOOKUP(F$108,$C$48:$G$48,$C55:$G55))),F105) -> 133.8
A116: Zn | B116: mg/L | C116: =MIN(IF(C$108="Alternative",'1. ENTER DATA'!E81,IF(OR(C$108="Infiltration Field",C$108="None",C$108="Beneficial Reuse"),C106,LOOKUP(C$108,$C$48:$G$48,$C56:$G56))),C106) -> 0.023565 | D116: =MIN(IF(D$108="Alternative",'1. ENTER DATA'!F81,IF(OR(D$108="Infiltration Field",D$108="None",D$108="Beneficial Reuse"),D106,LOOKUP(D$108,$C$48:$G$48,$C56:$G56))),D106) -> 0.023565 | E116: =MIN(IF(E$108="Alternative",'1. ENTER DATA'!G81,IF(OR(E$108="Infiltration Field",E$108="None",E$108="Beneficial Reuse"),E106,LOOKUP(E$108,$C$48:$G$48,$C56:$G56))),E106) -> 0.023565 | F116: =MIN(IF(F$108="Alternative",'1. ENTER DATA'!H81,IF(OR(F$108="Infiltration Field",F$108="None",F$108="Beneficial Reuse"),F106,LOOKUP(F$108,$C$48:$G$48,$C56:$G56))),F106) -> 0.023565
A118: CALCULATE: Bypass Concentrations For Each SCM
C119: Drainage Area A | D119: Drainage Area B | E119: Drainage Area C | F119: Drainage Area D
C120: SCM A.1 | D120: SCM B.1 | E120: SCM C.1 | F120: SCM D.1
A121: Pollutant | B121: Units | C121: ='1. ENTER DATA'!E63 -> Retention Basin | D121: ='1. ENTER DATA'!F63 -> Retention Basin | E121: ='1. ENTER DATA'!G63 -> Retention Basin | F121: ='1. ENTER DATA'!H63 -> Retention Basin
A122: COD | B122: mg/L | C122: =IF(C$121="None",I37,MIN(I37,IF('1. ENTER DATA'!E$27="Yes (Off-Line)",C65,D65))) -> 24.95314833 | D122: =IF(D$121="None",J37,MIN(J37,IF('1. ENTER DATA'!F$27="Yes (Off-Line)",E65,F65))) -> 24.95314833 | E122: =IF(E$121="None",K37,MIN(K37,IF('1. ENTER DATA'!G$27="Yes (Off-Line)",G65,H65))) -> 24.95314833 | F122: =IF(F$121="None",L37,MIN(L37,IF('1. ENTER DATA'!H$27="Yes (Off-Line)",I65,J65))) -> 24.95314833
A123: E. coli | B123: CFU/100mL | C123: =IF(C$121="None",I38,MIN(I38,IF('1. ENTER DATA'!E$27="Yes (Off-Line)",C66,D66))) -> 8229.248687 | D123: =IF(D$121="None",J38,MIN(J38,IF('1. ENTER DATA'!F$27="Yes (Off-Line)",E66,F66))) -> 8229.248687 | E123: =IF(E$121="None",K38,MIN(K38,IF('1. ENTER DATA'!G$27="Yes (Off-Line)",G66,H66))) -> 8229.248687 | F123: =IF(F$121="None",L38,MIN(L38,IF('1. ENTER DATA'!H$27="Yes (Off-Line)",I66,J66))) -> 8229.248687
A124: Pb | B124: mg/L | C124: =IF(C$121="None",I39,MIN(I39,IF('1. ENTER DATA'!E$27="Yes (Off-Line)",C67,D67))) -> 0.004283 | D124: =IF(D$121="None",J39,MIN(J39,IF('1. ENTER DATA'!F$27="Yes (Off-Line)",E67,F67))) -> 0.004283 | E124: =IF(E$121="None",K39,MIN(K39,IF('1. ENTER DATA'!G$27="Yes (Off-Line)",G67,H67))) -> 0.004283 | F124: =IF(F$121="None",L39,MIN(L39,IF('1. ENTER DATA'!H$27="Yes (Off-Line)",I67,J67))) -> 0.004283
A125: TN | B125: mg/L | C125: =IF(C$121="None",I40,MIN(I40,IF('1. ENTER DATA'!E$27="Yes (Off-Line)",C68,D68))) -> 1.336293852 | D125: =IF(D$121="None",J40,MIN(J40,IF('1. ENTER DATA'!F$27="Yes (Off-Line)",E68,F68))) -> 1.336293852 | E125: =IF(E$121="None",K40,MIN(K40,IF('1. ENTER DATA'!G$27="Yes (Off-Line)",G68,H68))) -> 1.336293852 | F125: =IF(F$121="None",L40,MIN(L40,IF('1. ENTER DATA'!H$27="Yes (Off-Line)",I68,J68))) -> 1.336293852
A126: TOC | B126: mg/L | C126: =IF(C$121="None",I41,MIN(I41,IF('1. ENTER DATA'!E$27="Yes (Off-Line)",C69,D69))) -> 9.51148485 | D126: =IF(D$121="None",J41,MIN(J41,IF('1. ENTER DATA'!F$27="Yes (Off-Line)",E69,F69))) -> 9.51148485 | E126: =IF(E$121="None",K41,MIN(K41,IF('1. ENTER DATA'!G$27="Yes (Off-Line)",G69,H69))) -> 9.51148485 | F126: =IF(F$121="None",L41,MIN(L41,IF('1. ENTER DATA'!H$27="Yes (Off-Line)",I69,J69))) -> 9.51148485
A127: TP | B127: mg/L | C127: =IF(C$121="None",I42,MIN(I42,IF('1. ENTER DATA'!E$27="Yes (Off-Line)",C70,D70))) -> 0.1675204241 | D127: =IF(D$121="None",J42,MIN(J42,IF('1. ENTER DATA'!F$27="Yes (Off-Line)",E70,F70))) -> 0.1675204241 | E127: =IF(E$121="None",K42,MIN(K42,IF('1. ENTER DATA'!G$27="Yes (Off-Line)",G70,H70))) -> 0.1675204241 | F127: =IF(F$121="None",L42,MIN(L42,IF('1. ENTER DATA'!H$27="Yes (Off-Line)",I70,J70))) -> 0.1675204241
A128: TSS | B128: mg/L | C128: =IF(C$121="None",I43,MIN(I43,IF('1. ENTER DATA'!E$27="Yes (Off-Line)",C71,D71))) -> 19.18732683 | D128: =IF(D$121="None",J43,MIN(J43,IF('1. ENTER DATA'!F$27="Yes (Off-Line)",E71,F71))) -> 19.18732683 | E128: =IF(E$121="None",K43,MIN(K43,IF('1. ENTER DATA'!G$27="Yes (Off-Line)",G71,H71))) -> 19.18732683 | F128: =IF(F$121="None",L43,MIN(L43,IF('1. ENTER DATA'!H$27="Yes (Off-Line)",I71,J71))) -> 19.18732683
A129: Zn | B129: mg/L | C129: =IF(C$121="None",I44,MIN(I44,IF('1. ENTER DATA'!E$27="Yes (Off-Line)",C72,D72))) -> 0.023565 | D129: =IF(D$121="None",J44,MIN(J44,IF('1. ENTER DATA'!F$27="Yes (Off-Line)",E72,F72))) -> 0.023565 | E129: =IF(E$121="None",K44,MIN(K44,IF('1. ENTER DATA'!G$27="Yes (Off-Line)",G72,H72))) -> 0.023565 | F129: =IF(F$121="None",L44,MIN(L44,IF('1. ENTER DATA'!H$27="Yes (Off-Line)",I72,J72))) -> 0.023565
C130: SCM A.2 | D130: SCM B.2 | E130: SCM C.2 | F130: SCM D.2
A131: Pollutant | B131: Units | C131: ='1. ENTER DATA'!E73 -> Infiltration Field | D131: ='1. ENTER DATA'!F73 -> Infiltration Field | E131: ='1. ENTER DATA'!G73 -> Infiltration Field | F131: ='1. ENTER DATA'!H73 -> Infiltration Field
A132: COD | B132: mg/L | C132: =C99 -> 38.9 | D132: 38.9 | E132: 38.9 | F132: 38.9
A133: E. coli | B133: CFU/100mL | C133: 11065 | D133: 11065 | E133: 11065 | F133: 11065
A134: Pb | B134: mg/L | C134: 0.004283 | D134: 0.004283 | E134: 0.004283 | F134: 0.004283
A135: TN | B135: mg/L | C135: 1.42 | D135: 1.42 | E135: 1.42 | F135: 1.42
A136: TOC | B136: mg/L | C136: 11.45 | D136: 11.45 | E136: 11.45 | F136: 11.45
A137: TP | B137: mg/L | C137: 0.224 | D137: 0.224 | E137: 0.224 | F137: 0.224
A138: TSS | B138: mg/L | C138: 133.8 | D138: 133.8 | E138: 133.8 | F138: 133.8
A139: Zn | B139: mg/L | C139: 0.023565 | D139: 0.023565 | E139: 0.023565 | F139: 0.023565
A141: CALCULATE: SCM Volumes
C142: SCM A.1 | D142: SCM B.1 | E142: SCM C.1 | F142: SCM D.1
A143: Control is not "None"? | C143: =IF('1. ENTER DATA'!E26<>"None",1,0) -> 1 | D143: =IF('1. ENTER DATA'!F26<>"None",1,0) -> 1 | E143: =IF('1. ENTER DATA'!G26<>"None",1,0) -> 1 | F143: =IF('1. ENTER DATA'!H26<>"None",1,0) -> 1
A144: Volume treated by SCM 1 (in/yr) | C144: =RCE_A1/100*'3. CALCS_Loads'!C88*C143 -> 1.183962786 | D144: =RCE_B1/100*'3. CALCS_Loads'!D88*D143 -> 0 | E144: =RCE_C1/100*'3. CALCS_Loads'!E88*E143 -> 0 | F144: =RCE_D1/100*'3. CALCS_Loads'!F88*F143 -> 0
A145: Volume treated by SCM 1 (Ac-in/yr) | C145: =RCE_A1/100*'3. CALCS_Loads'!C89 -> 1.183962786 | D145: =RCE_B1/100*'3. CALCS_Loads'!D89 -> 0 | E145: =RCE_C1/100*'3. CALCS_Loads'!E89 -> 0 | F145: =RCE_D1/100*'3. CALCS_Loads'!F89 -> 0
A146: Bypass Volume (in/yr) | C146: ='3. CALCS_Loads'!C88-C144 -> 0.000555984587 | D146: ='3. CALCS_Loads'!D88-D144 -> 0 | E146: ='3. CALCS_Loads'!E88-E144 -> 0 | F146: ='3. CALCS_Loads'!F88-F144 -> 0
A147: Bypass Volume (Ac-in/yr) | C147: ='3. CALCS_Loads'!C89-C145 -> 0.000555984587 | D147: ='3. CALCS_Loads'!D89-D145 -> 0 | E147: ='3. CALCS_Loads'!E89-E145 -> 0 | F147: ='3. CALCS_Loads'!F89-F145 -> 0
C148: SCM A.2 | D148: SCM B.2 | E148: SCM C.2 | F148: SCM D.2
A149: Control is not "None"? | C149: =IF('1. ENTER DATA'!E42<>"None",1,0) -> 1 | D149: =IF('1. ENTER DATA'!F42<>"None",1,0) -> 1 | E149: =IF('1. ENTER DATA'!G42<>"None",1,0) -> 1 | F149: =IF('1. ENTER DATA'!H42<>"None",1,0) -> 1
A150: Volume routed to SCM 2 (in/yr) | C150: ='5.CALCS_Adams&Papa'!B53*C78*C149 -> 1.183962786 | D150: ='5.CALCS_Adams&Papa'!C53*D78*D149 -> 0 | E150: ='5.CALCS_Adams&Papa'!D53*E78*E149 -> 0 | F150: ='5.CALCS_Adams&Papa'!E53*F78*F149 -> 0
A151: Volume routed to SCM 2 (Ac-in/yr) | C151: =C79*C150 -> 1.183962786 | D151: =D79*D150 -> 0 | E151: =E79*E150 -> 0 | F151: =F79*F150 -> 0
A152: Infiltrated Volume (in/yr) | C152: =C$78*IF('1. ENTER DATA'!E46="Yes",'4. CALCS_Infiltration'!E38,0)*C149 -> 1.183962786 | D152: =D$78*IF('1. ENTER DATA'!F46="Yes",'4. CALCS_Infiltration'!F38,0)*D149 -> 0 | E152: =E$78*IF('1. ENTER DATA'!G46="Yes",'4. CALCS_Infiltration'!G38,0)*E149 -> 0 | F152: =F$78*IF('1. ENTER DATA'!H46="Yes",'4. CALCS_Infiltration'!H38,0)*F149 -> 0
A153: Infiltrated Volume (Ac-in/yr) - for calcs | C153: =C79*C152 -> 1.183962786 | D153: =D79*D152 -> 0 | E153: =E79*E152 -> 0 | F153: =F79*F152 -> 0
A154: Non-infiltrated Volume Treated by SCM 2 (in/yr) | C154: =C150-C152 -> 0 | D154: =D150-D152 -> 0 | E154: =E150-E152 -> 0 | F154: =F150-F152 -> 0
A155: Non-infiltrated Volume Treated by SCM 2 (Acre-in/yr) | C155: =C79*C154 -> 0 | D155: =D79*D154 -> 0 | E155: =E79*E154 -> 0 | F155: =F79*F154 -> 0
A156: Volume treated by only SCM 1 (bypasses SCM 2) (in/yr) | C156: ='3. CALCS_Loads'!C144-'3. CALCS_Loads'!C150 -> 0 | D156: ='3. CALCS_Loads'!D144-'3. CALCS_Loads'!D150 -> 0 | E156: ='3. CALCS_Loads'!E144-'3. CALCS_Loads'!E150 -> 0 | F156: ='3. CALCS_Loads'!F144-'3. CALCS_Loads'!F150 -> 0
A157: Volume treated by only SCM 1 (bypasses SCM 2) (Acre-in/yr) | C157: ='3. CALCS_Loads'!C145-'3. CALCS_Loads'!C151 -> 0 | D157: ='3. CALCS_Loads'!D145-'3. CALCS_Loads'!D151 -> 0 | E157: ='3. CALCS_Loads'!E145-'3. CALCS_Loads'!E151 -> 0 | F157: ='3. CALCS_Loads'!F145-'3. CALCS_Loads'!F151 -> 0
O159: =J164 -> 10.44583277
A160: CALCULATE: Min infiltration volumes to achieve existing load (per drainage area)
B161: Loads (lb/yr or 10^6 MPN/yr) | R161: Conc (mg/L or CFU/100 mL) | V161: Volume to inf (in/yr)
B162: SCM 1 only | F162: Bypassed | J162: Existing | N162: Remaining Load to treat
A163: POLLUTANT | B163: Drainage Area A | C163: Drainage Area B | D163: Drainage Area C | E163: Drainage Area D | F163: Drainage Area A | G163: Drainage Area B | H163: Drainage Area C | I163: Drainage Area D | J163: Drainage Area A | K163: Drainage Area B | L163: Drainage Area C | M163: Drainage Area D | N163: Drainage Area A | O163: Drainage Area B | P163: Drainage Area C | Q163: Drainage Area D | R163: Drainage Area A | S163: Drainage Area B | T163: Drainage Area C | U163: Drainage Area D | V163: Drainage Area A | W163: Drainage Area B | X163: Drainage Area C | Y163: Drainage Area D
A164: COD | B164: ='3. CALCS_Loads'!B178 -> 10.44092975 | C164: ='3. CALCS_Loads'!C178 -> 0 | D164: ='3. CALCS_Loads'!D178 -> 0 | E164: ='3. CALCS_Loads'!E178 -> 0 | F164: ='3. CALCS_Loads'!N178 -> 0.003145137383 | G164: ='3. CALCS_Loads'!O178 -> 0 | H164: ='3. CALCS_Loads'!P178 -> 0 | I164: ='3. CALCS_Loads'!Q178 -> 0 | J164: ='3. CALCS_Loads'!R178 -> 10.44583277 | K164: ='3. CALCS_Loads'!S178 -> 0 | L164: ='3. CALCS_Loads'!T178 -> 0 | M164: ='3. CALCS_Loads'!U178 -> 0 | N164: =B164+F164-J164 -> -0.001757884975 | O164: =C164+G164-K164 -> 0 | P164: =D164+H164-L164 -> 0 | Q164: =E164+I164-M164 -> 0 | R164: =C99 -> 38.9 | S164: 38.9 | T164: 38.9 | U164: 38.9 | V164: =N164/R164/IF(LOOKUP($A164,'3. CALCS_Loads'!$A$37:$A$44,'3. CALCS_Loads'!$C$37:$C$44)="CF_1",CF_1,CF_2)/DA_A -> -0.0001993376494 | W164: =O164/S164/IF(LOOKUP($A164,'3. CALCS_Loads'!$A$37:$A$44,'3. CALCS_Loads'!$C$37:$C$44)="CF_1",CF_1,CF_2)/DA_B -> 0 | X164: =P164/T164/IF(LOOKUP($A164,'3. CALCS_Loads'!$A$37:$A$44,'3. CALCS_Loads'!$C$37:$C$44)="CF_1",CF_1,CF_2)/DA_C -> 0 | Y164: =Q164/U164/IF(LOOKUP($A164,'3. CALCS_Loads'!$A$37:$A$44,'3. CALCS_Loads'!$C$37:$C$44)="CF_1",CF_1,CF_2)/DA_D -> 0
A165: E. coli | B165: ='3. CALCS_Loads'!B179 -> 13466.05353 | C165: ='3. CALCS_Loads'!C179 -> 0 | D165: ='3. CALCS_Loads'!D179 -> 0 | E165: ='3. CALCS_Loads'!E179 -> 0 | F165: ='3. CALCS_Loads'!N179 -> 4.702987291 | G165: ='3. CALCS_Loads'!O179 -> 0 | H165: ='3. CALCS_Loads'!P179 -> 0 | I165: ='3. CALCS_Loads'!Q179 -> 0 | J165: ='3. CALCS_Loads'!R179 -> 10193.46962 | K165: ='3. CALCS_Loads'!S179 -> 0 | L165: ='3. CALCS_Loads'!T179 -> 0 | M165: ='3. CALCS_Loads'!U179 -> 0 | N165: =B165+F165-J165 -> 3277.28689 | O165: 0 | P165: 0 | Q165: =E165+I165-M165 -> 0 | R165: 11065 | S165: 11065 | T165: 11065 | U165: 11065 | V165: =N165/R165/IF(LOOKUP($A165,'3. CALCS_Loads'!$A$37:$A$44,'3. CALCS_Loads'!$C$37:$C$44)="CF_1",CF_1,CF_2)/DA_A -> 0.2881457222 | W165: =O165/S165/IF(LOOKUP($A165,'3. CALCS_Loads'!$A$37:$A$44,'3. CALCS_Loads'!$C$37:$C$44)="CF_1",CF_1,CF_2)/DA_B -> 0 | X165: =P165/T165/IF(LOOKUP($A165,'3. CALCS_Loads'!$A$37:$A$44,'3. CALCS_Loads'!$C$37:$C$44)="CF_1",CF_1,CF_2)/DA_C -> 0 | Y165: =Q165/U165/IF(LOOKUP($A165,'3. CALCS_Loads'!$A$37:$A$44,'3. CALCS_Loads'!$C$37:$C$44)="CF_1",CF_1,CF_2)/DA_D -> 0
A166: Pb | B166: ='3. CALCS_Loads'!B180 -> 0.00114957589 | C166: ='3. CALCS_Loads'!C180 -> 0 | D166: ='3. CALCS_Loads'!D180 -> 0 | E166: ='3. CALCS_Loads'!E180 -> 0 | F166: ='3. CALCS_Loads'!N180 -> 5.398366262e-07 | G166: ='3. CALCS_Loads'!O180 -> 0 | H166: ='3. CALCS_Loads'!P180 -> 0 | I166: ='3. CALCS_Loads'!Q180 -> 0 | J166: ='3. CALCS_Loads'!R180 -> 0.001150115726 | K166: ='3. CALCS_Loads'!S180 -> 0 | L166: ='3. CALCS_Loads'!T180 -> 0 | M166: ='3. CALCS_Loads'!U180 -> 0 | N166: 0 | O166: 0 | P166: 0 | Q166: 0 | R166: 0.004283 | S166: 0.004283 | T166: 0.004283 | U166: 0.004283 | V166: =N166/R166/IF(LOOKUP($A166,'3. CALCS_Loads'!$A$37:$A$44,'3. CALCS_Loads'!$C$37:$C$44)="CF_1",CF_1,CF_2)/DA_A -> 0 | W166: =O166/S166/IF(LOOKUP($A166,'3. CALCS_Loads'!$A$37:$A$44,'3. CALCS_Loads'!$C$37:$C$44)="CF_1",CF_1,CF_2)/DA_B -> 0 | X166: =P166/T166/IF(LOOKUP($A166,'3. CALCS_Loads'!$A$37:$A$44,'3. CALCS_Loads'!$C$37:$C$44)="CF_1",CF_1,CF_2)/DA_C -> 0 | Y166: =Q166/U166/IF(LOOKUP($A166,'3. CALCS_Loads'!$A$37:$A$44,'3. CALCS_Loads'!$C$37:$C$44)="CF_1",CF_1,CF_2)/DA_D -> 0
A167: TN | B167: ='3. CALCS_Loads'!B181 -> 0.3811341964 | C167: ='3. CALCS_Loads'!C181 -> 0 | D167: ='3. CALCS_Loads'!D181 -> 0 | E167: ='3. CALCS_Loads'!E181 -> 0 | F167: ='3. CALCS_Loads'!N181 -> 0.0001684287566 | G167: ='3. CALCS_Loads'!O181 -> 0 | H167: ='3. CALCS_Loads'!P181 -> 0 | I167: ='3. CALCS_Loads'!Q181 -> 0 | J167: ='3. CALCS_Loads'!R181 -> 0.3195511824 | K167: ='3. CALCS_Loads'!S181 -> 0 | L167: ='3. CALCS_Loads'!T181 -> 0 | M167: ='3. CALCS_Loads'!U181 -> 0 | N167: 0.06175144277 | O167: 0 | P167: 0 | Q167: 0 | R167: 1.42 | S167: 1.42 | T167: 1.42 | U167: 1.42 | V167: =N167/R167/IF(LOOKUP($A167,'3. CALCS_Loads'!$A$37:$A$44,'3. CALCS_Loads'!$C$37:$C$44)="CF_1",CF_1,CF_2)/DA_A -> 0.1918259 | W167: =O167/S167/IF(LOOKUP($A167,'3. CALCS_Loads'!$A$37:$A$44,'3. CALCS_Loads'!$C$37:$C$44)="CF_1",CF_1,CF_2)/DA_B -> 0 | X167: =P167/T167/IF(LOOKUP($A167,'3. CALCS_Loads'!$A$37:$A$44,'3. CALCS_Loads'!$C$37:$C$44)="CF_1",CF_1,CF_2)/DA_C -> 0 | Y167: =Q167/U167/IF(LOOKUP($A167,'3. CALCS_Loads'!$A$37:$A$44,'3. CALCS_Loads'!$C$37:$C$44)="CF_1",CF_1,CF_2)/DA_D -> 0
A168: TOC | B168: ='3. CALCS_Loads'!B183 -> 0.06012257746 | C168: ='3. CALCS_Loads'!C183 -> 0 | D168: ='3. CALCS_Loads'!D183 -> 0 | E168: ='3. CALCS_Loads'!E183 -> 0 | F168: ='3. CALCS_Loads'!N183 -> 2.111456003e-05 | G168: ='3. CALCS_Loads'!O183 -> 0 | H168: ='3. CALCS_Loads'!P183 -> 0 | I168: ='3. CALCS_Loads'!Q183 -> 0 | J168: ='3. CALCS_Loads'!R183 -> 0.03329777027 | K168: ='3. CALCS_Loads'!S183 -> 0 | L168: ='3. CALCS_Loads'!T183 -> 0 | M168: ='3. CALCS_Loads'!U183 -> 0 | N168: =B168+F168-J168 -> 0.02684592175 | O168: =C168+G168-K168 -> 0 | P168: =D168+H168-L168 -> 0 | Q168: =E168+I168-M168 -> 0 | R168: 11.45 | S168: 11.45 | T168: 11.45 | U168: 11.45 | V168: =N168/R168/IF(LOOKUP($A168,'3. CALCS_Loads'!$A$37:$A$44,'3. CALCS_Loads'!$C$37:$C$44)="CF_1",CF_1,CF_2)/DA_A -> 0.01034239959 | W168: =O168/S168/IF(LOOKUP($A168,'3. CALCS_Loads'!$A$37:$A$44,'3. CALCS_Loads'!$C$37:$C$44)="CF_1",CF_1,CF_2)/DA_B -> 0 | X168: =P168/T168/IF(LOOKUP($A168,'3. CALCS_Loads'!$A$37:$A$44,'3. CALCS_Loads'!$C$37:$C$44)="CF_1",CF_1,CF_2)/DA_C -> 0 | Y168: =Q168/U168/IF(LOOKUP($A168,'3. CALCS_Loads'!$A$37:$A$44,'3. CALCS_Loads'!$C$37:$C$44)="CF_1",CF_1,CF_2)/DA_D -> 0
A169: TP | B169: ='3. CALCS_Loads'!B183 -> 0.06012257746 | C169: ='3. CALCS_Loads'!C183 -> 0 | D169: ='3. CALCS_Loads'!D183 -> 0 | E169: ='3. CALCS_Loads'!E183 -> 0 | F169: ='3. CALCS_Loads'!N183 -> 2.111456003e-05 | G169: ='3. CALCS_Loads'!O183 -> 0 | H169: ='3. CALCS_Loads'!P183 -> 0 | I169: ='3. CALCS_Loads'!Q183 -> 0 | J169: ='3. CALCS_Loads'!R183 -> 0.03329777027 | K169: ='3. CALCS_Loads'!S183 -> 0 | L169: ='3. CALCS_Loads'!T183 -> 0 | M169: ='3. CALCS_Loads'!U183 -> 0 | N169: 0.02684592175 | O169: 0 | P169: 0 | Q169: 0 | R169: 0.224 | S169: 0.224 | T169: 0.224 | U169: 0.224 | V169: =N169/R169/IF(LOOKUP($A169,'3. CALCS_Loads'!$A$37:$A$44,'3. CALCS_Loads'!$C$37:$C$44)="CF_1",CF_1,CF_2)/DA_A -> 0.5286628362 | W169: =O169/S169/IF(LOOKUP($A169,'3. CALCS_Loads'!$A$37:$A$44,'3. CALCS_Loads'!$C$37:$C$44)="CF_1",CF_1,CF_2)/DA_B -> 0 | X169: =P169/T169/IF(LOOKUP($A169,'3. CALCS_Loads'!$A$37:$A$44,'3. CALCS_Loads'!$C$37:$C$44)="CF_1",CF_1,CF_2)/DA_C -> 0 | Y169: =Q169/U169/IF(LOOKUP($A169,'3. CALCS_Loads'!$A$37:$A$44,'3. CALCS_Loads'!$C$37:$C$44)="CF_1",CF_1,CF_2)/DA_D -> 0
A170: TSS | B170: ='3. CALCS_Loads'!B184 -> 35.91250386 | C170: ='3. CALCS_Loads'!C184 -> 0 | D170: ='3. CALCS_Loads'!D184 -> 0 | E170: ='3. CALCS_Loads'!E184 -> 0 | F170: ='3. CALCS_Loads'!N184 -> 0.002418403404 | G170: ='3. CALCS_Loads'!O184 -> 0 | H170: ='3. CALCS_Loads'!P184 -> 0 | I170: ='3. CALCS_Loads'!Q184 -> 0 | J170: ='3. CALCS_Loads'!R184 -> 44.57604729 | K170: ='3. CALCS_Loads'!S184 -> 0 | L170: ='3. CALCS_Loads'!T184 -> 0 | M170: ='3. CALCS_Loads'!U184 -> 0 | N170: -8.66112503 | O170: 0 | P170: 0 | Q170: 0 | R170: 133.8 | S170: 133.8 | T170: 133.8 | U170: 133.8 | V170: =N170/R170/IF(LOOKUP($A170,'3. CALCS_Loads'!$A$37:$A$44,'3. CALCS_Loads'!$C$37:$C$44)="CF_1",CF_1,CF_2)/DA_A -> -0.2855398154 | W170: =O170/S170/IF(LOOKUP($A170,'3. CALCS_Loads'!$A$37:$A$44,'3. CALCS_Loads'!$C$37:$C$44)="CF_1",CF_1,CF_2)/DA_B -> 0 | X170: =P170/T170/IF(LOOKUP($A170,'3. CALCS_Loads'!$A$37:$A$44,'3. CALCS_Loads'!$C$37:$C$44)="CF_1",CF_1,CF_2)/DA_C -> 0 | Y170: =Q170/U170/IF(LOOKUP($A170,'3. CALCS_Loads'!$A$37:$A$44,'3. CALCS_Loads'!$C$37:$C$44)="CF_1",CF_1,CF_2)/DA_D -> 0
A171: Zn | B171: ='3. CALCS_Loads'!B185 -> 0.00632494883 | C171: ='3. CALCS_Loads'!C185 -> 0 | D171: ='3. CALCS_Loads'!D185 -> 0 | E171: ='3. CALCS_Loads'!E185 -> 0 | F171: ='3. CALCS_Loads'!N185 -> 2.970172799e-06 | G171: ='3. CALCS_Loads'!O185 -> 0 | H171: ='3. CALCS_Loads'!P185 -> 0 | I171: ='3. CALCS_Loads'!Q185 -> 0 | J171: ='3. CALCS_Loads'!R185 -> 0.006327919002 | K171: ='3. CALCS_Loads'!S185 -> 0 | L171: ='3. CALCS_Loads'!T185 -> 0 | M171: ='3. CALCS_Loads'!U185 -> 0 | N171: 0 | O171: 0 | P171: 0 | Q171: 0 | R171: 0.023565 | S171: 0.023565 | T171: 0.023565 | U171: 0.023565 | V171: =N171/R171/IF(LOOKUP($A171,'3. CALCS_Loads'!$A$37:$A$44,'3. CALCS_Loads'!$C$37:$C$44)="CF_1",CF_1,CF_2)/DA_A -> 0 | W171: =O171/S171/IF(LOOKUP($A171,'3. CALCS_Loads'!$A$37:$A$44,'3. CALCS_Loads'!$C$37:$C$44)="CF_1",CF_1,CF_2)/DA_B -> 0 | X171: =P171/T171/IF(LOOKUP($A171,'3. CALCS_Loads'!$A$37:$A$44,'3. CALCS_Loads'!$C$37:$C$44)="CF_1",CF_1,CF_2)/DA_C -> 0 | Y171: =Q171/U171/IF(LOOKUP($A171,'3. CALCS_Loads'!$A$37:$A$44,'3. CALCS_Loads'!$C$37:$C$44)="CF_1",CF_1,CF_2)/DA_D -> 0
A172: Min Volume to Infiltrate (Most Conservative), in/yr | V172: =IF(MAX(V164:V171)<0,0,MAX(V164:V171)) -> 0.5286628362 | W172: =IF(MAX(W164:W171)<0,0,MAX(W164:W171)) -> 0 | X172: =IF(MAX(X164:X171)<0,0,MAX(X164:X171)) -> 0 | Y172: =IF(MAX(Y164:Y171)<0,0,MAX(Y164:Y171)) -> 0
A174: CALCULATE: Developed, Existing, and Sed/Fil Loadings - For Results Table
B175: POLLUTANT EFFLUENT LOADS, lb/(yr) or 10^6 MPN/(yr) | AD175: Total Site EXISTING Load, L_ex | AE175: Total Site SED/FIL Load, L_sf | AF175: Total Site BYPASSED Load, L_un | AG175: Total Site DEVELOPED, TREATED Load, L_out | AH175: Compliance Factor | AI175: Compliance Factor | AJ175: BSZ COMPLIANT? Is L_out<L_base? | AK175: Non-BSZ COMPLIANT? Is L_out<L_sf?
B176: SCM 1 All Effluent | F176: Bypasses SCM 2 | J176: SCM 2 Effluent | N176: Bypassed | R176: Existing | V176: Sed/Fil Equivalent | Z176: Developed (Treated) Load | AH176: Compare to Existing | AI176: Compare to Sed/Fil
A177: POLLUTANT | B177: SCM A1 | C177: SCM B1 | D177: SCM C1 | E177: SCM D1 | F177: SCM A1 | G177: SCM B1 | H177: SCM C1 | I177: SCM D1 | J177: SCM A2 | K177: SCM B2 | L177: SCM C2 | M177: SCM D1 | N177: Drainage Area A | O177: Drainage Area B | P177: Drainage Area C | Q177: Drainage Area D | R177: Drainage Area A | S177: Drainage Area B | T177: Drainage Area C | U177: Drainage Area D | V177: Drainage Area A | W177: Drainage Area B | X177: Drainage Area C | Y177: Drainage Area D | Z177: Drainage Area A | AA177: Drainage Area B | AB177: Drainage Area C | AC177: Drainage Area D | AD177: lb/(yr) or 10^6 MPN/(yr) | AE177: lb/(yr) or 10^6 MPN/(yr) | AF177: lb/(yr) or 10^6 MPN/(yr) | AG177: lb/(yr) or 10^6 MPN/(yr)
A178: COD | B178: ='3. CALCS_Loads'!C$145*'3. CALCS_Loads'!C99*IF(LOOKUP($A178,'3. CALCS_Loads'!$A$37:$A$44,'3. CALCS_Loads'!$C$37:$C$44)="CF_1",CF_1,CF_2) -> 10.44092975 | C178: ='3. CALCS_Loads'!D$145*'3. CALCS_Loads'!D99*IF(LOOKUP($A178,'3. CALCS_Loads'!$A$37:$A$44,'3. CALCS_Loads'!$C$37:$C$44)="CF_1",CF_1,CF_2) -> 0 | D178: ='3. CALCS_Loads'!E$145*'3. CALCS_Loads'!E99*IF(LOOKUP($A178,'3. CALCS_Loads'!$A$37:$A$44,'3. CALCS_Loads'!$C$37:$C$44)="CF_1",CF_1,CF_2) -> 0 | E178: ='3. CALCS_Loads'!F$145*'3. CALCS_Loads'!F99*IF(LOOKUP($A178,'3. CALCS_Loads'!$A$37:$A$44,'3. CALCS_Loads'!$C$37:$C$44)="CF_1",CF_1,CF_2) -> 0 | F178: ='3. CALCS_Loads'!C$157*'3. CALCS_Loads'!C132*IF(LOOKUP($A178,'3. CALCS_Loads'!$A$37:$A$44,'3. CALCS_Loads'!$C$37:$C$44)="CF_1",CF_1,CF_2) -> 0 | G178: ='3. CALCS_Loads'!D$157*'3. CALCS_Loads'!D132*IF(LOOKUP($A178,'3. CALCS_Loads'!$A$37:$A$44,'3. CALCS_Loads'!$C$37:$C$44)="CF_1",CF_1,CF_2) -> 0 | H178: ='3. CALCS_Loads'!E$157*'3. CALCS_Loads'!E132*IF(LOOKUP($A178,'3. CALCS_Loads'!$A$37:$A$44,'3. CALCS_Loads'!$C$37:$C$44)="CF_1",CF_1,CF_2) -> 0 | I178: ='3. CALCS_Loads'!F$157*'3. CALCS_Loads'!F132*IF(LOOKUP($A178,'3. CALCS_Loads'!$A$37:$A$44,'3. CALCS_Loads'!$C$37:$C$44)="CF_1",CF_1,CF_2) -> 0 | J178: ='3. CALCS_Loads'!C$155*'3. CALCS_Loads'!C109*IF(LOOKUP($A178,'3. CALCS_Loads'!$A$37:$A$44,'3. CALCS_Loads'!$C$37:$C$44)="CF_1",CF_1,CF_2) -> 0 | K178: ='3. CALCS_Loads'!D$155*'3. CALCS_Loads'!D109*IF(LOOKUP($A178,'3. CALCS_Loads'!$A$37:$A$44,'3. CALCS_Loads'!$C$37:$C$44)="CF_1",CF_1,CF_2) -> 0 | L178: ='3. CALCS_Loads'!E$155*'3. CALCS_Loads'!E109*IF(LOOKUP($A178,'3. CALCS_Loads'!$A$37:$A$44,'3. CALCS_Loads'!$C$37:$C$44)="CF_1",CF_1,CF_2) -> 0 | M178: ='3. CALCS_Loads'!F$155*'3. CALCS_Loads'!F109*IF(LOOKUP($A178,'3. CALCS_Loads'!$A$37:$A$44,'3. CALCS_Loads'!$C$37:$C$44)="CF_1",CF_1,CF_2) -> 0 | N178: ='3. CALCS_Loads'!C$147*'3. CALCS_Loads'!C122*IF(LOOKUP($A178,'3. CALCS_Loads'!$A$37:$A$44,'3. CALCS_Loads'!$C$37:$C$44)="CF_1",CF_1,CF_2) -> 0.003145137383 | O178: ='3. CALCS_Loads'!D$147*'3. CALCS_Loads'!D122*IF(LOOKUP($A178,'3. CALCS_Loads'!$A$37:$A$44,'3. CALCS_Loads'!$C$37:$C$44)="CF_1",CF_1,CF_2) -> 0 | P178: ='3. CALCS_Loads'!E$147*'3. CALCS_Loads'!E122*IF(LOOKUP($A178,'3. CALCS_Loads'!$A$37:$A$44,'3. CALCS_Loads'!$C$37:$C$44)="CF_1",CF_1,CF_2) -> 0 | Q178: ='3. CALCS_Loads'!F$147*'3. CALCS_Loads'!F122*IF(LOOKUP($A178,'3. CALCS_Loads'!$A$37:$A$44,'3. CALCS_Loads'!$C$37:$C$44)="CF_1",CF_1,CF_2) -> 0 | R178: ='3. CALCS_Loads'!E37*C$84*IF(LOOKUP($A178,'3. CALCS_Loads'!$A$37:$A$44,'3. CALCS_Loads'!$C$37:$C$44)="CF_1",CF_1,CF_2) -> 10.44583277 | S178: ='3. CALCS_Loads'!F37*D$84*IF(LOOKUP($A178,'3. CALCS_Loads'!$A$37:$A$44,'3. CALCS_Loads'!$C$37:$C$44)="CF_1",CF_1,CF_2) -> 0 | T178: ='3. CALCS_Loads'!G37*E$84*IF(LOOKUP($A178,'3. CALCS_Loads'!$A$37:$A$44,'3. CALCS_Loads'!$C$37:$C$44)="CF_1",CF_1,CF_2) -> 0 | U178: ='3. CALCS_Loads'!H37*F$84*IF(LOOKUP($A178,'3. CALCS_Loads'!$A$37:$A$44,'3. CALCS_Loads'!$C$37:$C$44)="CF_1",CF_1,CF_2) -> 0 | V178: =('5.CALCS_Adams&Papa'!G$39*'3. CALCS_Loads'!$F49+'5.CALCS_Adams&Papa'!G$40*'3. CALCS_Loads'!K65)*IF(LOOKUP($A178,'3. CALCS_Loads'!$A$37:$A$44,'3. CALCS_Loads'!$C$37:$C$44)="CF_1",CF_1,CF_2)*C$78 -> 6.13133233 | W178: =('5.CALCS_Adams&Papa'!H$39*'3. CALCS_Loads'!$F49+'5.CALCS_Adams&Papa'!H$40*'3. CALCS_Loads'!L65)*IF(LOOKUP($A178,'3. CALCS_Loads'!$A$37:$A$44,'3. CALCS_Loads'!$C$37:$C$44)="CF_1",CF_1,CF_2)*D$78 -> 0 | X178: =('5.CALCS_Adams&Papa'!I$39*'3. CALCS_Loads'!$F49+'5.CALCS_Adams&Papa'!I$40*'3. CALCS_Loads'!M65)*IF(LOOKUP($A178,'3. CALCS_Loads'!$A$37:$A$44,'3. CALCS_Loads'!$C$37:$C$44)="CF_1",CF_1,CF_2)*E$78 -> 0 | Y178: =('5.CALCS_Adams&Papa'!J$39*'3. CALCS_Loads'!$F49+'5.CALCS_Adams&Papa'!J$40*'3. CALCS_Loads'!N65)*IF(LOOKUP($A178,'3. CALCS_Loads'!$A$37:$A$44,'3. CALCS_Loads'!$C$37:$C$44)="CF_1",CF_1,CF_2)*F$78 -> 0 | Z178: =F178+J178+N178 -> 0.003145137383 | AA178: 0 | AB178: 0 | AC178: 0 | AD178: =SUM(R178:U178) -> 10.44583277 | AE178: =SUM(V178:Y178) -> 6.13133233 | AF178: =SUM(N178:Q178) -> 0.003145137383 | AG178: =SUM(Z178:AC178) -> 0.003145137383 | AH178: =AG178/AD178 -> 0.0003010901526 | AI178: =AG178/AE178 -> 0.0005129614925 | AJ178: =IF(AH178<=1,"YES","NO") -> YES | AK178: =IF(AI178<=1,"YES","NO") -> YES
A179: E. coli | B179: ='3. CALCS_Loads'!C$145*'3. CALCS_Loads'!C100*IF(LOOKUP($A179,'3. CALCS_Loads'!$A$37:$A$44,'3. CALCS_Loads'!$C$37:$C$44)="CF_1",CF_1,CF_2) -> 13466.05353 | C179: ='3. CALCS_Loads'!D$145*'3. CALCS_Loads'!D100*IF(LOOKUP($A179,'3. CALCS_Loads'!$A$37:$A$44,'3. CALCS_Loads'!$C$37:$C$44)="CF_1",CF_1,CF_2) -> 0 | D179: ='3. CALCS_Loads'!E$145*'3. CALCS_Loads'!E100*IF(LOOKUP($A179,'3. CALCS_Loads'!$A$37:$A$44,'3. CALCS_Loads'!$C$37:$C$44)="CF_1",CF_1,CF_2) -> 0 | E179: ='3. CALCS_Loads'!F$145*'3. CALCS_Loads'!F100*IF(LOOKUP($A179,'3. CALCS_Loads'!$A$37:$A$44,'3. CALCS_Loads'!$C$37:$C$44)="CF_1",CF_1,CF_2) -> 0 | F179: ='3. CALCS_Loads'!C$157*'3. CALCS_Loads'!C133*IF(LOOKUP($A179,'3. CALCS_Loads'!$A$37:$A$44,'3. CALCS_Loads'!$C$37:$C$44)="CF_1",CF_1,CF_2) -> 0 | G179: ='3. CALCS_Loads'!D$157*'3. CALCS_Loads'!D133*IF(LOOKUP($A179,'3. CALCS_Loads'!$A$37:$A$44,'3. CALCS_Loads'!$C$37:$C$44)="CF_1",CF_1,CF_2) -> 0 | H179: ='3. CALCS_Loads'!E$157*'3. CALCS_Loads'!E133*IF(LOOKUP($A179,'3. CALCS_Loads'!$A$37:$A$44,'3. CALCS_Loads'!$C$37:$C$44)="CF_1",CF_1,CF_2) -> 0 | I179: ='3. CALCS_Loads'!F$157*'3. CALCS_Loads'!F133*IF(LOOKUP($A179,'3. CALCS_Loads'!$A$37:$A$44,'3. CALCS_Loads'!$C$37:$C$44)="CF_1",CF_1,CF_2) -> 0 | J179: ='3. CALCS_Loads'!C$155*'3. CALCS_Loads'!C110*IF(LOOKUP($A179,'3. CALCS_Loads'!$A$37:$A$44,'3. CALCS_Loads'!$C$37:$C$44)="CF_1",CF_1,CF_2) -> 0 | K179: ='3. CALCS_Loads'!D$155*'3. CALCS_Loads'!D110*IF(LOOKUP($A179,'3. CALCS_Loads'!$A$37:$A$44,'3. CALCS_Loads'!$C$37:$C$44)="CF_1",CF_1,CF_2) -> 0 | L179: ='3. CALCS_Loads'!E$155*'3. CALCS_Loads'!E110*IF(LOOKUP($A179,'3. CALCS_Loads'!$A$37:$A$44,'3. CALCS_Loads'!$C$37:$C$44)="CF_1",CF_1,CF_2) -> 0 | M179: ='3. CALCS_Loads'!F$155*'3. CALCS_Loads'!F110*IF(LOOKUP($A179,'3. CALCS_Loads'!$A$37:$A$44,'3. CALCS_Loads'!$C$37:$C$44)="CF_1",CF_1,CF_2) -> 0 | N179: ='3. CALCS_Loads'!C$147*'3. CALCS_Loads'!C123*IF(LOOKUP($A179,'3. CALCS_Loads'!$A$37:$A$44,'3. CALCS_Loads'!$C$37:$C$44)="CF_1",CF_1,CF_2) -> 4.702987291 | O179: ='3. CALCS_Loads'!D$147*'3. CALCS_Loads'!D123*IF(LOOKUP($A179,'3. CALCS_Loads'!$A$37:$A$44,'3. CALCS_Loads'!$C$37:$C$44)="CF_1",CF_1,CF_2) -> 0 | P179: ='3. CALCS_Loads'!E$147*'3. CALCS_Loads'!E123*IF(LOOKUP($A179,'3. CALCS_Loads'!$A$37:$A$44,'3. CALCS_Loads'!$C$37:$C$44)="CF_1",CF_1,CF_2) -> 0 | Q179: ='3. CALCS_Loads'!F$147*'3. CALCS_Loads'!F123*IF(LOOKUP($A179,'3. CALCS_Loads'!$A$37:$A$44,'3. CALCS_Loads'!$C$37:$C$44)="CF_1",CF_1,CF_2) -> 0 | R179: ='3. CALCS_Loads'!E38*C$84*IF(LOOKUP($A179,'3. CALCS_Loads'!$A$37:$A$44,'3. CALCS_Loads'!$C$37:$C$44)="CF_1",CF_1,CF_2) -> 10193.46962 | S179: ='3. CALCS_Loads'!F38*D$84*IF(LOOKUP($A179,'3. CALCS_Loads'!$A$37:$A$44,'3. CALCS_Loads'!$C$37:$C$44)="CF_1",CF_1,CF_2) -> 0 | T179: ='3. CALCS_Loads'!G38*E$84*IF(LOOKUP($A179,'3. CALCS_Loads'!$A$37:$A$44,'3. CALCS_Loads'!$C$37:$C$44)="CF_1",CF_1,CF_2) -> 0 | U179: ='3. CALCS_Loads'!H38*F$84*IF(LOOKUP($A179,'3. CALCS_Loads'!$A$37:$A$44,'3. CALCS_Loads'!$C$37:$C$44)="CF_1",CF_1,CF_2) -> 0 | V179: =('5.CALCS_Adams&Papa'!G$39*'3. CALCS_Loads'!$F50+'5.CALCS_Adams&Papa'!G$40*'3. CALCS_Loads'!K66)*IF(LOOKUP($A179,'3. CALCS_Loads'!$A$37:$A$44,'3. CALCS_Loads'!$C$37:$C$44)="CF_1",CF_1,CF_2)*C$78 -> 6139.416676 | W179: =('5.CALCS_Adams&Papa'!H$39*'3. CALCS_Loads'!$F50+'5.CALCS_Adams&Papa'!H$40*'3. CALCS_Loads'!L66)*IF(LOOKUP($A179,'3. CALCS_Loads'!$A$37:$A$44,'3. CALCS_Loads'!$C$37:$C$44)="CF_1",CF_1,CF_2)*D$78 -> 0 | X179: =('5.CALCS_Adams&Papa'!I$39*'3. CALCS_Loads'!$F50+'5.CALCS_Adams&Papa'!I$40*'3. CALCS_Loads'!M66)*IF(LOOKUP($A179,'3. CALCS_Loads'!$A$37:$A$44,'3. CALCS_Loads'!$C$37:$C$44)="CF_1",CF_1,CF_2)*E$78 -> 0 | Y179: =('5.CALCS_Adams&Papa'!J$39*'3. CALCS_Loads'!$F50+'5.CALCS_Adams&Papa'!J$40*'3. CALCS_Loads'!N66)*IF(LOOKUP($A179,'3. CALCS_Loads'!$A$37:$A$44,'3. CALCS_Loads'!$C$37:$C$44)="CF_1",CF_1,CF_2)*F$78 -> 0 | Z179: 4.702987291 | AA179: 0 | AB179: 0 | AC179: 0 | AD179: 10193.46962 | AE179: 6139.416676 | AF179: 4.702987291 | AG179: 4.702987291 | AH179: 0.0004613725713 | AI179: 0.0007660316181 | AJ179: =IF(AH179<=1,"YES","NO") -> YES | AK179: =IF(AI179<=1,"YES","NO") -> YES
A180: Pb | B180: ='3. CALCS_Loads'!C$145*'3. CALCS_Loads'!C101*IF(LOOKUP($A180,'3. CALCS_Loads'!$A$37:$A$44,'3. CALCS_Loads'!$C$37:$C$44)="CF_1",CF_1,CF_2) -> 0.00114957589 | C180: ='3. CALCS_Loads'!D$145*'3. CALCS_Loads'!D101*IF(LOOKUP($A180,'3. CALCS_Loads'!$A$37:$A$44,'3. CALCS_Loads'!$C$37:$C$44)="CF_1",CF_1,CF_2) -> 0 | D180: ='3. CALCS_Loads'!E$145*'3. CALCS_Loads'!E101*IF(LOOKUP($A180,'3. CALCS_Loads'!$A$37:$A$44,'3. CALCS_Loads'!$C$37:$C$44)="CF_1",CF_1,CF_2) -> 0 | E180: ='3. CALCS_Loads'!F$145*'3. CALCS_Loads'!F101*IF(LOOKUP($A180,'3. CALCS_Loads'!$A$37:$A$44,'3. CALCS_Loads'!$C$37:$C$44)="CF_1",CF_1,CF_2) -> 0 | F180: ='3. CALCS_Loads'!C$157*'3. CALCS_Loads'!C134*IF(LOOKUP($A180,'3. CALCS_Loads'!$A$37:$A$44,'3. CALCS_Loads'!$C$37:$C$44)="CF_1",CF_1,CF_2) -> 0 | G180: ='3. CALCS_Loads'!D$157*'3. CALCS_Loads'!D134*IF(LOOKUP($A180,'3. CALCS_Loads'!$A$37:$A$44,'3. CALCS_Loads'!$C$37:$C$44)="CF_1",CF_1,CF_2) -> 0 | H180: ='3. CALCS_Loads'!E$157*'3. CALCS_Loads'!E134*IF(LOOKUP($A180,'3. CALCS_Loads'!$A$37:$A$44,'3. CALCS_Loads'!$C$37:$C$44)="CF_1",CF_1,CF_2) -> 0 | I180: ='3. CALCS_Loads'!F$157*'3. CALCS_Loads'!F134*IF(LOOKUP($A180,'3. CALCS_Loads'!$A$37:$A$44,'3. CALCS_Loads'!$C$37:$C$44)="CF_1",CF_1,CF_2) -> 0 | J180: ='3. CALCS_Loads'!C$155*'3. CALCS_Loads'!C111*IF(LOOKUP($A180,'3. CALCS_Loads'!$A$37:$A$44,'3. CALCS_Loads'!$C$37:$C$44)="CF_1",CF_1,CF_2) -> 0 | K180: ='3. CALCS_Loads'!D$155*'3. CALCS_Loads'!D111*IF(LOOKUP($A180,'3. CALCS_Loads'!$A$37:$A$44,'3. CALCS_Loads'!$C$37:$C$44)="CF_1",CF_1,CF_2) -> 0 | L180: ='3. CALCS_Loads'!E$155*'3. CALCS_Loads'!E111*IF(LOOKUP($A180,'3. CALCS_Loads'!$A$37:$A$44,'3. CALCS_Loads'!$C$37:$C$44)="CF_1",CF_1,CF_2) -> 0 | M180: ='3. CALCS_Loads'!F$155*'3. CALCS_Loads'!F111*IF(LOOKUP($A180,'3. CALCS_Loads'!$A$37:$A$44,'3. CALCS_Loads'!$C$37:$C$44)="CF_1",CF_1,CF_2) -> 0 | N180: ='3. CALCS_Loads'!C$147*'3. CALCS_Loads'!C124*IF(LOOKUP($A180,'3. CALCS_Loads'!$A$37:$A$44,'3. CALCS_Loads'!$C$37:$C$44)="CF_1",CF_1,CF_2) -> 5.398366262e-07 | O180: ='3. CALCS_Loads'!D$147*'3. CALCS_Loads'!D124*IF(LOOKUP($A180,'3. CALCS_Loads'!$A$37:$A$44,'3. CALCS_Loads'!$C$37:$C$44)="CF_1",CF_1,CF_2) -> 0 | P180: ='3. CALCS_Loads'!E$147*'3. CALCS_Loads'!E124*IF(LOOKUP($A180,'3. CALCS_Loads'!$A$37:$A$44,'3. CALCS_Loads'!$C$37:$C$44)="CF_1",CF_1,CF_2) -> 0 | Q180: ='3. CALCS_Loads'!F$147*'3. CALCS_Loads'!F124*IF(LOOKUP($A180,'3. CALCS_Loads'!$A$37:$A$44,'3. CALCS_Loads'!$C$37:$C$44)="CF_1",CF_1,CF_2) -> 0 | R180: ='3. CALCS_Loads'!E39*C$84*IF(LOOKUP($A180,'3. CALCS_Loads'!$A$37:$A$44,'3. CALCS_Loads'!$C$37:$C$44)="CF_1",CF_1,CF_2) -> 0.001150115726 | S180: ='3. CALCS_Loads'!F39*D$84*IF(LOOKUP($A180,'3. CALCS_Loads'!$A$37:$A$44,'3. CALCS_Loads'!$C$37:$C$44)="CF_1",CF_1,CF_2) -> 0 | T180: ='3. CALCS_Loads'!G39*E$84*IF(LOOKUP($A180,'3. CALCS_Loads'!$A$37:$A$44,'3. CALCS_Loads'!$C$37:$C$44)="CF_1",CF_1,CF_2) -> 0 | U180: ='3. CALCS_Loads'!H39*F$84*IF(LOOKUP($A180,'3. CALCS_Loads'!$A$37:$A$44,'3. CALCS_Loads'!$C$37:$C$44)="CF_1",CF_1,CF_2) -> 0 | V180: =('5.CALCS_Adams&Papa'!G$39*'3. CALCS_Loads'!$F51+'5.CALCS_Adams&Papa'!G$40*'3. CALCS_Loads'!K67)*IF(LOOKUP($A180,'3. CALCS_Loads'!$A$37:$A$44,'3. CALCS_Loads'!$C$37:$C$44)="CF_1",CF_1,CF_2)*C$78 -> 0.001561802364 | W180: =('5.CALCS_Adams&Papa'!H$39*'3. CALCS_Loads'!$F51+'5.CALCS_Adams&Papa'!H$40*'3. CALCS_Loads'!L67)*IF(LOOKUP($A180,'3. CALCS_Loads'!$A$37:$A$44,'3. CALCS_Loads'!$C$37:$C$44)="CF_1",CF_1,CF_2)*D$78 -> 0 | X180: =('5.CALCS_Adams&Papa'!I$39*'3. CALCS_Loads'!$F51+'5.CALCS_Adams&Papa'!I$40*'3. CALCS_Loads'!M67)*IF(LOOKUP($A180,'3. CALCS_Loads'!$A$37:$A$44,'3. CALCS_Loads'!$C$37:$C$44)="CF_1",CF_1,CF_2)*E$78 -> 0 | Y180: =('5.CALCS_Adams&Papa'!J$39*'3. CALCS_Loads'!$F51+'5.CALCS_Adams&Papa'!J$40*'3. CALCS_Loads'!N67)*IF(LOOKUP($A180,'3. CALCS_Loads'!$A$37:$A$44,'3. CALCS_Loads'!$C$37:$C$44)="CF_1",CF_1,CF_2)*F$78 -> 0 | Z180: 5.398366262e-07 | AA180: 0 | AB180: 0 | AC180: 0 | AD180: 0.001150115726 | AE180: 0.001561802364 | AF180: 5.398366262e-07 | AG180: 5.398366262e-07 | AH180: 0.0004693759192 | AI180: 0.0003456497688 | AJ180: YES | AK180: YES
A181: TN | B181: ='3. CALCS_Loads'!C$145*'3. CALCS_Loads'!C102*IF(LOOKUP($A181,'3. CALCS_Loads'!$A$37:$A$44,'3. CALCS_Loads'!$C$37:$C$44)="CF_1",CF_1,CF_2) -> 0.3811341964 | C181: ='3. CALCS_Loads'!D$145*'3. CALCS_Loads'!D102*IF(LOOKUP($A181,'3. CALCS_Loads'!$A$37:$A$44,'3. CALCS_Loads'!$C$37:$C$44)="CF_1",CF_1,CF_2) -> 0 | D181: ='3. CALCS_Loads'!E$145*'3. CALCS_Loads'!E102*IF(LOOKUP($A181,'3. CALCS_Loads'!$A$37:$A$44,'3. CALCS_Loads'!$C$37:$C$44)="CF_1",CF_1,CF_2) -> 0 | E181: ='3. CALCS_Loads'!F$145*'3. CALCS_Loads'!F102*IF(LOOKUP($A181,'3. CALCS_Loads'!$A$37:$A$44,'3. CALCS_Loads'!$C$37:$C$44)="CF_1",CF_1,CF_2) -> 0 | F181: ='3. CALCS_Loads'!C$157*'3. CALCS_Loads'!C135*IF(LOOKUP($A181,'3. CALCS_Loads'!$A$37:$A$44,'3. CALCS_Loads'!$C$37:$C$44)="CF_1",CF_1,CF_2) -> 0 | G181: ='3. CALCS_Loads'!D$157*'3. CALCS_Loads'!D135*IF(LOOKUP($A181,'3. CALCS_Loads'!$A$37:$A$44,'3. CALCS_Loads'!$C$37:$C$44)="CF_1",CF_1,CF_2) -> 0 | H181: ='3. CALCS_Loads'!E$157*'3. CALCS_Loads'!E135*IF(LOOKUP($A181,'3. CALCS_Loads'!$A$37:$A$44,'3. CALCS_Loads'!$C$37:$C$44)="CF_1",CF_1,CF_2) -> 0 | I181: ='3. CALCS_Loads'!F$157*'3. CALCS_Loads'!F135*IF(LOOKUP($A181,'3. CALCS_Loads'!$A$37:$A$44,'3. CALCS_Loads'!$C$37:$C$44)="CF_1",CF_1,CF_2) -> 0 | J181: ='3. CALCS_Loads'!C$155*'3. CALCS_Loads'!C112*IF(LOOKUP($A181,'3. CALCS_Loads'!$A$37:$A$44,'3. CALCS_Loads'!$C$37:$C$44)="CF_1",CF_1,CF_2) -> 0 | K181: ='3. CALCS_Loads'!D$155*'3. CALCS_Loads'!D112*IF(LOOKUP($A181,'3. CALCS_Loads'!$A$37:$A$44,'3. CALCS_Loads'!$C$37:$C$44)="CF_1",CF_1,CF_2) -> 0 | L181: ='3. CALCS_Loads'!E$155*'3. CALCS_Loads'!E112*IF(LOOKUP($A181,'3. CALCS_Loads'!$A$37:$A$44,'3. CALCS_Loads'!$C$37:$C$44)="CF_1",CF_1,CF_2) -> 0 | M181: ='3. CALCS_Loads'!F$155*'3. CALCS_Loads'!F112*IF(LOOKUP($A181,'3. CALCS_Loads'!$A$37:$A$44,'3. CALCS_Loads'!$C$37:$C$44)="CF_1",CF_1,CF_2) -> 0 | N181: ='3. CALCS_Loads'!C$147*'3. CALCS_Loads'!C125*IF(LOOKUP($A181,'3. CALCS_Loads'!$A$37:$A$44,'3. CALCS_Loads'!$C$37:$C$44)="CF_1",CF_1,CF_2) -> 0.0001684287566 | O181: ='3. CALCS_Loads'!D$147*'3. CALCS_Loads'!D125*IF(LOOKUP($A181,'3. CALCS_Loads'!$A$37:$A$44,'3. CALCS_Loads'!$C$37:$C$44)="CF_1",CF_1,CF_2) -> 0 | P181: ='3. CALCS_Loads'!E$147*'3. CALCS_Loads'!E125*IF(LOOKUP($A181,'3. CALCS_Loads'!$A$37:$A$44,'3. CALCS_Loads'!$C$37:$C$44)="CF_1",CF_1,CF_2) -> 0 | Q181: ='3. CALCS_Loads'!F$147*'3. CALCS_Loads'!F125*IF(LOOKUP($A181,'3. CALCS_Loads'!$A$37:$A$44,'3. CALCS_Loads'!$C$37:$C$44)="CF_1",CF_1,CF_2) -> 0 | R181: ='3. CALCS_Loads'!E40*C$84*IF(LOOKUP($A181,'3. CALCS_Loads'!$A$37:$A$44,'3. CALCS_Loads'!$C$37:$C$44)="CF_1",CF_1,CF_2) -> 0.3195511824 | S181: ='3. CALCS_Loads'!F40*D$84*IF(LOOKUP($A181,'3. CALCS_Loads'!$A$37:$A$44,'3. CALCS_Loads'!$C$37:$C$44)="CF_1",CF_1,CF_2) -> 0 | T181: ='3. CALCS_Loads'!G40*E$84*IF(LOOKUP($A181,'3. CALCS_Loads'!$A$37:$A$44,'3. CALCS_Loads'!$C$37:$C$44)="CF_1",CF_1,CF_2) -> 0 | U181: ='3. CALCS_Loads'!H40*F$84*IF(LOOKUP($A181,'3. CALCS_Loads'!$A$37:$A$44,'3. CALCS_Loads'!$C$37:$C$44)="CF_1",CF_1,CF_2) -> 0 | V181: =('5.CALCS_Adams&Papa'!G$39*'3. CALCS_Loads'!$F52+'5.CALCS_Adams&Papa'!G$40*'3. CALCS_Loads'!K68)*IF(LOOKUP($A181,'3. CALCS_Loads'!$A$37:$A$44,'3. CALCS_Loads'!$C$37:$C$44)="CF_1",CF_1,CF_2)*C$78 -> 0.2903280683 | W181: =('5.CALCS_Adams&Papa'!H$39*'3. CALCS_Loads'!$F52+'5.CALCS_Adams&Papa'!H$40*'3. CALCS_Loads'!L68)*IF(LOOKUP($A181,'3. CALCS_Loads'!$A$37:$A$44,'3. CALCS_Loads'!$C$37:$C$44)="CF_1",CF_1,CF_2)*D$78 -> 0 | X181: =('5.CALCS_Adams&Papa'!I$39*'3. CALCS_Loads'!$F52+'5.CALCS_Adams&Papa'!I$40*'3. CALCS_Loads'!M68)*IF(LOOKUP($A181,'3. CALCS_Loads'!$A$37:$A$44,'3. CALCS_Loads'!$C$37:$C$44)="CF_1",CF_1,CF_2)*E$78 -> 0 | Y181: =('5.CALCS_Adams&Papa'!J$39*'3. CALCS_Loads'!$F52+'5.CALCS_Adams&Papa'!J$40*'3. CALCS_Loads'!N68)*IF(LOOKUP($A181,'3. CALCS_Loads'!$A$37:$A$44,'3. CALCS_Loads'!$C$37:$C$44)="CF_1",CF_1,CF_2)*F$78 -> 0 | Z181: 0.0001684287566 | AA181: 0 | AB181: 0 | AC181: 0 | AD181: 0.3195511824 | AE181: 0.2903280683 | AF181: 0.0001684287566 | AG181: 0.0001684287566 | AH181: 0.000527079122 | AI181: 0.0005801325294 | AJ181: YES | AK181: YES
A182: TOC | B182: ='3. CALCS_Loads'!C$145*'3. CALCS_Loads'!C103*IF(LOOKUP($A182,'3. CALCS_Loads'!$A$37:$A$44,'3. CALCS_Loads'!$C$37:$C$44)="CF_1",CF_1,CF_2) -> 3.073229964 | C182: ='3. CALCS_Loads'!D$145*'3. CALCS_Loads'!D103*IF(LOOKUP($A182,'3. CALCS_Loads'!$A$37:$A$44,'3. CALCS_Loads'!$C$37:$C$44)="CF_1",CF_1,CF_2) -> 0 | D182: ='3. CALCS_Loads'!E$145*'3. CALCS_Loads'!E103*IF(LOOKUP($A182,'3. CALCS_Loads'!$A$37:$A$44,'3. CALCS_Loads'!$C$37:$C$44)="CF_1",CF_1,CF_2) -> 0 | E182: ='3. CALCS_Loads'!F$145*'3. CALCS_Loads'!F103*IF(LOOKUP($A182,'3. CALCS_Loads'!$A$37:$A$44,'3. CALCS_Loads'!$C$37:$C$44)="CF_1",CF_1,CF_2) -> 0 | F182: ='3. CALCS_Loads'!C$157*'3. CALCS_Loads'!C136*IF(LOOKUP($A182,'3. CALCS_Loads'!$A$37:$A$44,'3. CALCS_Loads'!$C$37:$C$44)="CF_1",CF_1,CF_2) -> 0 | G182: ='3. CALCS_Loads'!D$157*'3. CALCS_Loads'!D136*IF(LOOKUP($A182,'3. CALCS_Loads'!$A$37:$A$44,'3. CALCS_Loads'!$C$37:$C$44)="CF_1",CF_1,CF_2) -> 0 | H182: ='3. CALCS_Loads'!E$157*'3. CALCS_Loads'!E136*IF(LOOKUP($A182,'3. CALCS_Loads'!$A$37:$A$44,'3. CALCS_Loads'!$C$37:$C$44)="CF_1",CF_1,CF_2) -> 0 | I182: ='3. CALCS_Loads'!F$157*'3. CALCS_Loads'!F136*IF(LOOKUP($A182,'3. CALCS_Loads'!$A$37:$A$44,'3. CALCS_Loads'!$C$37:$C$44)="CF_1",CF_1,CF_2) -> 0 | J182: ='3. CALCS_Loads'!C$155*'3. CALCS_Loads'!C113*IF(LOOKUP($A182,'3. CALCS_Loads'!$A$37:$A$44,'3. CALCS_Loads'!$C$37:$C$44)="CF_1",CF_1,CF_2) -> 0 | K182: ='3. CALCS_Loads'!D$155*'3. CALCS_Loads'!D113*IF(LOOKUP($A182,'3. CALCS_Loads'!$A$37:$A$44,'3. CALCS_Loads'!$C$37:$C$44)="CF_1",CF_1,CF_2) -> 0 | L182: ='3. CALCS_Loads'!E$155*'3. CALCS_Loads'!E113*IF(LOOKUP($A182,'3. CALCS_Loads'!$A$37:$A$44,'3. CALCS_Loads'!$C$37:$C$44)="CF_1",CF_1,CF_2) -> 0 | M182: ='3. CALCS_Loads'!F$155*'3. CALCS_Loads'!F113*IF(LOOKUP($A182,'3. CALCS_Loads'!$A$37:$A$44,'3. CALCS_Loads'!$C$37:$C$44)="CF_1",CF_1,CF_2) -> 0 | N182: ='3. CALCS_Loads'!C$147*'3. CALCS_Loads'!C126*IF(LOOKUP($A182,'3. CALCS_Loads'!$A$37:$A$44,'3. CALCS_Loads'!$C$37:$C$44)="CF_1",CF_1,CF_2) -> 0.001198843776 | O182: ='3. CALCS_Loads'!D$147*'3. CALCS_Loads'!D126*IF(LOOKUP($A182,'3. CALCS_Loads'!$A$37:$A$44,'3. CALCS_Loads'!$C$37:$C$44)="CF_1",CF_1,CF_2) -> 0 | P182: ='3. CALCS_Loads'!E$147*'3. CALCS_Loads'!E126*IF(LOOKUP($A182,'3. CALCS_Loads'!$A$37:$A$44,'3. CALCS_Loads'!$C$37:$C$44)="CF_1",CF_1,CF_2) -> 0 | Q182: ='3. CALCS_Loads'!F$147*'3. CALCS_Loads'!F126*IF(LOOKUP($A182,'3. CALCS_Loads'!$A$37:$A$44,'3. CALCS_Loads'!$C$37:$C$44)="CF_1",CF_1,CF_2) -> 0 | R182: ='3. CALCS_Loads'!E41*C$84*IF(LOOKUP($A182,'3. CALCS_Loads'!$A$37:$A$44,'3. CALCS_Loads'!$C$37:$C$44)="CF_1",CF_1,CF_2) -> 3.498951182 | S182: ='3. CALCS_Loads'!F41*D$84*IF(LOOKUP($A182,'3. CALCS_Loads'!$A$37:$A$44,'3. CALCS_Loads'!$C$37:$C$44)="CF_1",CF_1,CF_2) -> 0 | T182: ='3. CALCS_Loads'!G41*E$84*IF(LOOKUP($A182,'3. CALCS_Loads'!$A$37:$A$44,'3. CALCS_Loads'!$C$37:$C$44)="CF_1",CF_1,CF_2) -> 0 | U182: ='3. CALCS_Loads'!H41*F$84*IF(LOOKUP($A182,'3. CALCS_Loads'!$A$37:$A$44,'3. CALCS_Loads'!$C$37:$C$44)="CF_1",CF_1,CF_2) -> 0 | V182: =('5.CALCS_Adams&Papa'!G$39*'3. CALCS_Loads'!$F53+'5.CALCS_Adams&Papa'!G$40*'3. CALCS_Loads'!K69)*IF(LOOKUP($A182,'3. CALCS_Loads'!$A$37:$A$44,'3. CALCS_Loads'!$C$37:$C$44)="CF_1",CF_1,CF_2)*C$78 -> 1.984553086 | W182: =('5.CALCS_Adams&Papa'!H$39*'3. CALCS_Loads'!$F53+'5.CALCS_Adams&Papa'!H$40*'3. CALCS_Loads'!L69)*IF(LOOKUP($A182,'3. CALCS_Loads'!$A$37:$A$44,'3. CALCS_Loads'!$C$37:$C$44)="CF_1",CF_1,CF_2)*D$78 -> 0 | X182: =('5.CALCS_Adams&Papa'!I$39*'3. CALCS_Loads'!$F53+'5.CALCS_Adams&Papa'!I$40*'3. CALCS_Loads'!M69)*IF(LOOKUP($A182,'3. CALCS_Loads'!$A$37:$A$44,'3. CALCS_Loads'!$C$37:$C$44)="CF_1",CF_1,CF_2)*E$78 -> 0 | Y182: =('5.CALCS_Adams&Papa'!J$39*'3. CALCS_Loads'!$F53+'5.CALCS_Adams&Papa'!J$40*'3. CALCS_Loads'!N69)*IF(LOOKUP($A182,'3. CALCS_Loads'!$A$37:$A$44,'3. CALCS_Loads'!$C$37:$C$44)="CF_1",CF_1,CF_2)*F$78 -> 0 | Z182: =F182+J182+N182 -> 0.001198843776 | AA182: =G182+K182+O182 -> 0 | AB182: =H182+L182+P182 -> 0 | AC182: =I182+M182+Q182 -> 0 | AD182: =SUM(R182:U182) -> 3.498951182 | AE182: =SUM(V182:Y182) -> 1.984553086 | AF182: =SUM(N182:Q182) -> 0.001198843776 | AG182: =SUM(Z182:AC182) -> 0.001198843776 | AH182: =AG182/AD182 -> 0.0003426294662 | AI182: =AG182/AE182 -> 0.0006040875321 | AJ182: =IF(AH182<=1,"YES","NO") -> YES | AK182: =IF(AI182<=1,"YES","NO") -> YES
A183: TP | B183: ='3. CALCS_Loads'!C$145*'3. CALCS_Loads'!C104*IF(LOOKUP($A183,'3. CALCS_Loads'!$A$37:$A$44,'3. CALCS_Loads'!$C$37:$C$44)="CF_1",CF_1,CF_2) -> 0.06012257746 | C183: ='3. CALCS_Loads'!D$145*'3. CALCS_Loads'!D104*IF(LOOKUP($A183,'3. CALCS_Loads'!$A$37:$A$44,'3. CALCS_Loads'!$C$37:$C$44)="CF_1",CF_1,CF_2) -> 0 | D183: ='3. CALCS_Loads'!E$145*'3. CALCS_Loads'!E104*IF(LOOKUP($A183,'3. CALCS_Loads'!$A$37:$A$44,'3. CALCS_Loads'!$C$37:$C$44)="CF_1",CF_1,CF_2) -> 0 | E183: ='3. CALCS_Loads'!F$145*'3. CALCS_Loads'!F104*IF(LOOKUP($A183,'3. CALCS_Loads'!$A$37:$A$44,'3. CALCS_Loads'!$C$37:$C$44)="CF_1",CF_1,CF_2) -> 0 | F183: ='3. CALCS_Loads'!C$157*'3. CALCS_Loads'!C137*IF(LOOKUP($A183,'3. CALCS_Loads'!$A$37:$A$44,'3. CALCS_Loads'!$C$37:$C$44)="CF_1",CF_1,CF_2) -> 0 | G183: ='3. CALCS_Loads'!D$157*'3. CALCS_Loads'!D137*IF(LOOKUP($A183,'3. CALCS_Loads'!$A$37:$A$44,'3. CALCS_Loads'!$C$37:$C$44)="CF_1",CF_1,CF_2) -> 0 | H183: ='3. CALCS_Loads'!E$157*'3. CALCS_Loads'!E137*IF(LOOKUP($A183,'3. CALCS_Loads'!$A$37:$A$44,'3. CALCS_Loads'!$C$37:$C$44)="CF_1",CF_1,CF_2) -> 0 | I183: ='3. CALCS_Loads'!F$157*'3. CALCS_Loads'!F137*IF(LOOKUP($A183,'3. CALCS_Loads'!$A$37:$A$44,'3. CALCS_Loads'!$C$37:$C$44)="CF_1",CF_1,CF_2) -> 0 | J183: ='3. CALCS_Loads'!C$155*'3. CALCS_Loads'!C114*IF(LOOKUP($A183,'3. CALCS_Loads'!$A$37:$A$44,'3. CALCS_Loads'!$C$37:$C$44)="CF_1",CF_1,CF_2) -> 0 | K183: ='3. CALCS_Loads'!D$155*'3. CALCS_Loads'!D114*IF(LOOKUP($A183,'3. CALCS_Loads'!$A$37:$A$44,'3. CALCS_Loads'!$C$37:$C$44)="CF_1",CF_1,CF_2) -> 0 | L183: ='3. CALCS_Loads'!E$155*'3. CALCS_Loads'!E114*IF(LOOKUP($A183,'3. CALCS_Loads'!$A$37:$A$44,'3. CALCS_Loads'!$C$37:$C$44)="CF_1",CF_1,CF_2) -> 0 | M183: ='3. CALCS_Loads'!F$155*'3. CALCS_Loads'!F114*IF(LOOKUP($A183,'3. CALCS_Loads'!$A$37:$A$44,'3. CALCS_Loads'!$C$37:$C$44)="CF_1",CF_1,CF_2) -> 0 | N183: ='3. CALCS_Loads'!C$147*'3. CALCS_Loads'!C127*IF(LOOKUP($A183,'3. CALCS_Loads'!$A$37:$A$44,'3. CALCS_Loads'!$C$37:$C$44)="CF_1",CF_1,CF_2) -> 2.111456003e-05 | O183: ='3. CALCS_Loads'!D$147*'3. CALCS_Loads'!D127*IF(LOOKUP($A183,'3. CALCS_Loads'!$A$37:$A$44,'3. CALCS_Loads'!$C$37:$C$44)="CF_1",CF_1,CF_2) -> 0 | P183: ='3. CALCS_Loads'!E$147*'3. CALCS_Loads'!E127*IF(LOOKUP($A183,'3. CALCS_Loads'!$A$37:$A$44,'3. CALCS_Loads'!$C$37:$C$44)="CF_1",CF_1,CF_2) -> 0 | Q183: ='3. CALCS_Loads'!F$147*'3. CALCS_Loads'!F127*IF(LOOKUP($A183,'3. CALCS_Loads'!$A$37:$A$44,'3. CALCS_Loads'!$C$37:$C$44)="CF_1",CF_1,CF_2) -> 0 | R183: ='3. CALCS_Loads'!E42*C$84*IF(LOOKUP($A183,'3. CALCS_Loads'!$A$37:$A$44,'3. CALCS_Loads'!$C$37:$C$44)="CF_1",CF_1,CF_2) -> 0.03329777027 | S183: ='3. CALCS_Loads'!F42*D$84*IF(LOOKUP($A183,'3. CALCS_Loads'!$A$37:$A$44,'3. CALCS_Loads'!$C$37:$C$44)="CF_1",CF_1,CF_2) -> 0 | T183: ='3. CALCS_Loads'!G42*E$84*IF(LOOKUP($A183,'3. CALCS_Loads'!$A$37:$A$44,'3. CALCS_Loads'!$C$37:$C$44)="CF_1",CF_1,CF_2) -> 0 | U183: ='3. CALCS_Loads'!H42*F$84*IF(LOOKUP($A183,'3. CALCS_Loads'!$A$37:$A$44,'3. CALCS_Loads'!$C$37:$C$44)="CF_1",CF_1,CF_2) -> 0 | V183: =('5.CALCS_Adams&Papa'!G$39*'3. CALCS_Loads'!$F54+'5.CALCS_Adams&Papa'!G$40*'3. CALCS_Loads'!K70)*IF(LOOKUP($A183,'3. CALCS_Loads'!$A$37:$A$44,'3. CALCS_Loads'!$C$37:$C$44)="CF_1",CF_1,CF_2)*C$78 -> 0.02740139986 | W183: =('5.CALCS_Adams&Papa'!H$39*'3. CALCS_Loads'!$F54+'5.CALCS_Adams&Papa'!H$40*'3. CALCS_Loads'!L70)*IF(LOOKUP($A183,'3. CALCS_Loads'!$A$37:$A$44,'3. CALCS_Loads'!$C$37:$C$44)="CF_1",CF_1,CF_2)*D$78 -> 0 | X183: =('5.CALCS_Adams&Papa'!I$39*'3. CALCS_Loads'!$F54+'5.CALCS_Adams&Papa'!I$40*'3. CALCS_Loads'!M70)*IF(LOOKUP($A183,'3. CALCS_Loads'!$A$37:$A$44,'3. CALCS_Loads'!$C$37:$C$44)="CF_1",CF_1,CF_2)*E$78 -> 0 | Y183: =('5.CALCS_Adams&Papa'!J$39*'3. CALCS_Loads'!$F54+'5.CALCS_Adams&Papa'!J$40*'3. CALCS_Loads'!N70)*IF(LOOKUP($A183,'3. CALCS_Loads'!$A$37:$A$44,'3. CALCS_Loads'!$C$37:$C$44)="CF_1",CF_1,CF_2)*F$78 -> 0 | Z183: 2.111456003e-05 | AA183: 0 | AB183: 0 | AC183: 0 | AD183: 0.03329777027 | AE183: 0.02740139986 | AF183: 2.111456003e-05 | AG183: 2.111456003e-05 | AH183: 0.0006341133312 | AI183: 0.0007705650126 | AJ183: YES | AK183: YES
A184: TSS | B184: ='3. CALCS_Loads'!C$145*'3. CALCS_Loads'!C105*IF(LOOKUP($A184,'3. CALCS_Loads'!$A$37:$A$44,'3. CALCS_Loads'!$C$37:$C$44)="CF_1",CF_1,CF_2) -> 35.91250386 | C184: ='3. CALCS_Loads'!D$145*'3. CALCS_Loads'!D105*IF(LOOKUP($A184,'3. CALCS_Loads'!$A$37:$A$44,'3. CALCS_Loads'!$C$37:$C$44)="CF_1",CF_1,CF_2) -> 0 | D184: ='3. CALCS_Loads'!E$145*'3. CALCS_Loads'!E105*IF(LOOKUP($A184,'3. CALCS_Loads'!$A$37:$A$44,'3. CALCS_Loads'!$C$37:$C$44)="CF_1",CF_1,CF_2) -> 0 | E184: ='3. CALCS_Loads'!F$145*'3. CALCS_Loads'!F105*IF(LOOKUP($A184,'3. CALCS_Loads'!$A$37:$A$44,'3. CALCS_Loads'!$C$37:$C$44)="CF_1",CF_1,CF_2) -> 0 | F184: ='3. CALCS_Loads'!C$157*'3. CALCS_Loads'!C138*IF(LOOKUP($A184,'3. CALCS_Loads'!$A$37:$A$44,'3. CALCS_Loads'!$C$37:$C$44)="CF_1",CF_1,CF_2) -> 0 | G184: ='3. CALCS_Loads'!D$157*'3. CALCS_Loads'!D138*IF(LOOKUP($A184,'3. CALCS_Loads'!$A$37:$A$44,'3. CALCS_Loads'!$C$37:$C$44)="CF_1",CF_1,CF_2) -> 0 | H184: ='3. CALCS_Loads'!E$157*'3. CALCS_Loads'!E138*IF(LOOKUP($A184,'3. CALCS_Loads'!$A$37:$A$44,'3. CALCS_Loads'!$C$37:$C$44)="CF_1",CF_1,CF_2) -> 0 | I184: ='3. CALCS_Loads'!F$157*'3. CALCS_Loads'!F138*IF(LOOKUP($A184,'3. CALCS_Loads'!$A$37:$A$44,'3. CALCS_Loads'!$C$37:$C$44)="CF_1",CF_1,CF_2) -> 0 | J184: ='3. CALCS_Loads'!C$155*'3. CALCS_Loads'!C115*IF(LOOKUP($A184,'3. CALCS_Loads'!$A$37:$A$44,'3. CALCS_Loads'!$C$37:$C$44)="CF_1",CF_1,CF_2) -> 0 | K184: ='3. CALCS_Loads'!D$155*'3. CALCS_Loads'!D115*IF(LOOKUP($A184,'3. CALCS_Loads'!$A$37:$A$44,'3. CALCS_Loads'!$C$37:$C$44)="CF_1",CF_1,CF_2) -> 0 | L184: ='3. CALCS_Loads'!E$155*'3. CALCS_Loads'!E115*IF(LOOKUP($A184,'3. CALCS_Loads'!$A$37:$A$44,'3. CALCS_Loads'!$C$37:$C$44)="CF_1",CF_1,CF_2) -> 0 | M184: ='3. CALCS_Loads'!F$155*'3. CALCS_Loads'!F115*IF(LOOKUP($A184,'3. CALCS_Loads'!$A$37:$A$44,'3. CALCS_Loads'!$C$37:$C$44)="CF_1",CF_1,CF_2) -> 0 | N184: ='3. CALCS_Loads'!C$147*'3. CALCS_Loads'!C128*IF(LOOKUP($A184,'3. CALCS_Loads'!$A$37:$A$44,'3. CALCS_Loads'!$C$37:$C$44)="CF_1",CF_1,CF_2) -> 0.002418403404 | O184: ='3. CALCS_Loads'!D$147*'3. CALCS_Loads'!D128*IF(LOOKUP($A184,'3. CALCS_Loads'!$A$37:$A$44,'3. CALCS_Loads'!$C$37:$C$44)="CF_1",CF_1,CF_2) -> 0 | P184: ='3. CALCS_Loads'!E$147*'3. CALCS_Loads'!E128*IF(LOOKUP($A184,'3. CALCS_Loads'!$A$37:$A$44,'3. CALCS_Loads'!$C$37:$C$44)="CF_1",CF_1,CF_2) -> 0 | Q184: ='3. CALCS_Loads'!F$147*'3. CALCS_Loads'!F128*IF(LOOKUP($A184,'3. CALCS_Loads'!$A$37:$A$44,'3. CALCS_Loads'!$C$37:$C$44)="CF_1",CF_1,CF_2) -> 0 | R184: ='3. CALCS_Loads'!E43*C$84*IF(LOOKUP($A184,'3. CALCS_Loads'!$A$37:$A$44,'3. CALCS_Loads'!$C$37:$C$44)="CF_1",CF_1,CF_2) -> 44.57604729 | S184: ='3. CALCS_Loads'!F43*D$84*IF(LOOKUP($A184,'3. CALCS_Loads'!$A$37:$A$44,'3. CALCS_Loads'!$C$37:$C$44)="CF_1",CF_1,CF_2) -> 0 | T184: ='3. CALCS_Loads'!G43*E$84*IF(LOOKUP($A184,'3. CALCS_Loads'!$A$37:$A$44,'3. CALCS_Loads'!$C$37:$C$44)="CF_1",CF_1,CF_2) -> 0 | U184: ='3. CALCS_Loads'!H43*F$84*IF(LOOKUP($A184,'3. CALCS_Loads'!$A$37:$A$44,'3. CALCS_Loads'!$C$37:$C$44)="CF_1",CF_1,CF_2) -> 0 | V184: =('5.CALCS_Adams&Papa'!G$39*'3. CALCS_Loads'!$F55+'5.CALCS_Adams&Papa'!G$40*'3. CALCS_Loads'!K71)*IF(LOOKUP($A184,'3. CALCS_Loads'!$A$37:$A$44,'3. CALCS_Loads'!$C$37:$C$44)="CF_1",CF_1,CF_2)*C$78 -> 5.794257636 | W184: =('5.CALCS_Adams&Papa'!H$39*'3. CALCS_Loads'!$F55+'5.CALCS_Adams&Papa'!H$40*'3. CALCS_Loads'!L71)*IF(LOOKUP($A184,'3. CALCS_Loads'!$A$37:$A$44,'3. CALCS_Loads'!$C$37:$C$44)="CF_1",CF_1,CF_2)*D$78 -> 0 | X184: =('5.CALCS_Adams&Papa'!I$39*'3. CALCS_Loads'!$F55+'5.CALCS_Adams&Papa'!I$40*'3. CALCS_Loads'!M71)*IF(LOOKUP($A184,'3. CALCS_Loads'!$A$37:$A$44,'3. CALCS_Loads'!$C$37:$C$44)="CF_1",CF_1,CF_2)*E$78 -> 0 | Y184: =('5.CALCS_Adams&Papa'!J$39*'3. CALCS_Loads'!$F55+'5.CALCS_Adams&Papa'!J$40*'3. CALCS_Loads'!N71)*IF(LOOKUP($A184,'3. CALCS_Loads'!$A$37:$A$44,'3. CALCS_Loads'!$C$37:$C$44)="CF_1",CF_1,CF_2)*F$78 -> 0 | Z184: 0.002418403404 | AA184: 0 | AB184: 0 | AC184: 0 | AD184: 44.57604729 | AE184: 5.794257636 | AF184: 0.002418403404 | AG184: 0.002418403404 | AH184: 5.425342872e-05 | AI184: 0.0004173793359 | AJ184: YES | AK184: YES
A185: Zn | B185: ='3. CALCS_Loads'!C$145*'3. CALCS_Loads'!C106*IF(LOOKUP($A185,'3. CALCS_Loads'!$A$37:$A$44,'3. CALCS_Loads'!$C$37:$C$44)="CF_1",CF_1,CF_2) -> 0.00632494883 | C185: ='3. CALCS_Loads'!D$145*'3. CALCS_Loads'!D106*IF(LOOKUP($A185,'3. CALCS_Loads'!$A$37:$A$44,'3. CALCS_Loads'!$C$37:$C$44)="CF_1",CF_1,CF_2) -> 0 | D185: ='3. CALCS_Loads'!E$145*'3. CALCS_Loads'!E106*IF(LOOKUP($A185,'3. CALCS_Loads'!$A$37:$A$44,'3. CALCS_Loads'!$C$37:$C$44)="CF_1",CF_1,CF_2) -> 0 | E185: ='3. CALCS_Loads'!F$145*'3. CALCS_Loads'!F106*IF(LOOKUP($A185,'3. CALCS_Loads'!$A$37:$A$44,'3. CALCS_Loads'!$C$37:$C$44)="CF_1",CF_1,CF_2) -> 0 | F185: ='3. CALCS_Loads'!C$157*'3. CALCS_Loads'!C139*IF(LOOKUP($A185,'3. CALCS_Loads'!$A$37:$A$44,'3. CALCS_Loads'!$C$37:$C$44)="CF_1",CF_1,CF_2) -> 0 | G185: ='3. CALCS_Loads'!D$157*'3. CALCS_Loads'!D139*IF(LOOKUP($A185,'3. CALCS_Loads'!$A$37:$A$44,'3. CALCS_Loads'!$C$37:$C$44)="CF_1",CF_1,CF_2) -> 0 | H185: ='3. CALCS_Loads'!E$157*'3. CALCS_Loads'!E139*IF(LOOKUP($A185,'3. CALCS_Loads'!$A$37:$A$44,'3. CALCS_Loads'!$C$37:$C$44)="CF_1",CF_1,CF_2) -> 0 | I185: ='3. CALCS_Loads'!F$157*'3. CALCS_Loads'!F139*IF(LOOKUP($A185,'3. CALCS_Loads'!$A$37:$A$44,'3. CALCS_Loads'!$C$37:$C$44)="CF_1",CF_1,CF_2) -> 0 | J185: ='3. CALCS_Loads'!C$155*'3. CALCS_Loads'!C116*IF(LOOKUP($A185,'3. CALCS_Loads'!$A$37:$A$44,'3. CALCS_Loads'!$C$37:$C$44)="CF_1",CF_1,CF_2) -> 0 | K185: ='3. CALCS_Loads'!D$155*'3. CALCS_Loads'!D116*IF(LOOKUP($A185,'3. CALCS_Loads'!$A$37:$A$44,'3. CALCS_Loads'!$C$37:$C$44)="CF_1",CF_1,CF_2) -> 0 | L185: ='3. CALCS_Loads'!E$155*'3. CALCS_Loads'!E116*IF(LOOKUP($A185,'3. CALCS_Loads'!$A$37:$A$44,'3. CALCS_Loads'!$C$37:$C$44)="CF_1",CF_1,CF_2) -> 0 | M185: ='3. CALCS_Loads'!F$155*'3. CALCS_Loads'!F116*IF(LOOKUP($A185,'3. CALCS_Loads'!$A$37:$A$44,'3. CALCS_Loads'!$C$37:$C$44)="CF_1",CF_1,CF_2) -> 0 | N185: ='3. CALCS_Loads'!C$147*'3. CALCS_Loads'!C129*IF(LOOKUP($A185,'3. CALCS_Loads'!$A$37:$A$44,'3. CALCS_Loads'!$C$37:$C$44)="CF_1",CF_1,CF_2) -> 2.970172799e-06 | O185: ='3. CALCS_Loads'!D$147*'3. CALCS_Loads'!D129*IF(LOOKUP($A185,'3. CALCS_Loads'!$A$37:$A$44,'3. CALCS_Loads'!$C$37:$C$44)="CF_1",CF_1,CF_2) -> 0 | P185: ='3. CALCS_Loads'!E$147*'3. CALCS_Loads'!E129*IF(LOOKUP($A185,'3. CALCS_Loads'!$A$37:$A$44,'3. CALCS_Loads'!$C$37:$C$44)="CF_1",CF_1,CF_2) -> 0 | Q185: ='3. CALCS_Loads'!F$147*'3. CALCS_Loads'!F129*IF(LOOKUP($A185,'3. CALCS_Loads'!$A$37:$A$44,'3. CALCS_Loads'!$C$37:$C$44)="CF_1",CF_1,CF_2) -> 0 | R185: ='3. CALCS_Loads'!E44*C$84*IF(LOOKUP($A185,'3. CALCS_Loads'!$A$37:$A$44,'3. CALCS_Loads'!$C$37:$C$44)="CF_1",CF_1,CF_2) -> 0.006327919002 | S185: ='3. CALCS_Loads'!F44*D$84*IF(LOOKUP($A185,'3. CALCS_Loads'!$A$37:$A$44,'3. CALCS_Loads'!$C$37:$C$44)="CF_1",CF_1,CF_2) -> 0 | T185: ='3. CALCS_Loads'!G44*E$84*IF(LOOKUP($A185,'3. CALCS_Loads'!$A$37:$A$44,'3. CALCS_Loads'!$C$37:$C$44)="CF_1",CF_1,CF_2) -> 0 | U185: ='3. CALCS_Loads'!H44*F$84*IF(LOOKUP($A185,'3. CALCS_Loads'!$A$37:$A$44,'3. CALCS_Loads'!$C$37:$C$44)="CF_1",CF_1,CF_2) -> 0 | V185: =('5.CALCS_Adams&Papa'!G$39*'3. CALCS_Loads'!$F56+'5.CALCS_Adams&Papa'!G$40*'3. CALCS_Loads'!K72)*IF(LOOKUP($A185,'3. CALCS_Loads'!$A$37:$A$44,'3. CALCS_Loads'!$C$37:$C$44)="CF_1",CF_1,CF_2)*C$78 -> 0.006318969188 | W185: =('5.CALCS_Adams&Papa'!H$39*'3. CALCS_Loads'!$F56+'5.CALCS_Adams&Papa'!H$40*'3. CALCS_Loads'!L72)*IF(LOOKUP($A185,'3. CALCS_Loads'!$A$37:$A$44,'3. CALCS_Loads'!$C$37:$C$44)="CF_1",CF_1,CF_2)*D$78 -> 0 | X185: =('5.CALCS_Adams&Papa'!I$39*'3. CALCS_Loads'!$F56+'5.CALCS_Adams&Papa'!I$40*'3. CALCS_Loads'!M72)*IF(LOOKUP($A185,'3. CALCS_Loads'!$A$37:$A$44,'3. CALCS_Loads'!$C$37:$C$44)="CF_1",CF_1,CF_2)*E$78 -> 0 | Y185: =('5.CALCS_Adams&Papa'!J$39*'3. CALCS_Loads'!$F56+'5.CALCS_Adams&Papa'!J$40*'3. CALCS_Loads'!N72)*IF(LOOKUP($A185,'3. CALCS_Loads'!$A$37:$A$44,'3. CALCS_Loads'!$C$37:$C$44)="CF_1",CF_1,CF_2)*F$78 -> 0 | Z185: 2.970172799e-06 | AA185: 0 | AB185: 0 | AC185: 0 | AD185: 0.006327919002 | AE185: 0.006318969188 | AF185: 2.970172799e-06 | AG185: 2.970172799e-06 | AH185: 0.0004693759192 | AI185: 0.0004700407156 | AJ185: YES | AK185: YES
A187: PLOT: Developed, Existing, and Sed/Fil Loadings
A188: POLLUTANT | B188: =IF('1. ENTER DATA'!$E$14="Yes","Drainage Area A - Existing","Drainage Area A - Sed/Fil") -> Drainage Area A - Existing | C188: =IF('1. ENTER DATA'!$E$14="Yes","Drainage Area B - Existing","Drainage Area B - Sed/Fil") -> Drainage Area B - Existing | D188: =IF('1. ENTER DATA'!$E$14="Yes","Drainage Area C - Existing","Drainage Area C - Sed/Fil") -> Drainage Area C - Existing | E188: Drainage Area D - Existing | F188: Drainage Area A Developed (Treated) Load | G188: Drainage Area B Developed (Treated) Load | H188: Drainage Area C Developed (Treated) Load | I188: Drainage Area D Developed (Treated) Load
A189: COD | B189: =IF('1. ENTER DATA'!$E$14="Yes",'3. CALCS_Loads'!R178,'3. CALCS_Loads'!V178) -> 10.44583277 | C189: =IF('1. ENTER DATA'!$E$14="Yes",'3. CALCS_Loads'!S178,'3. CALCS_Loads'!W178) -> 0 | D189: =IF('1. ENTER DATA'!$E$14="Yes",'3. CALCS_Loads'!T178,'3. CALCS_Loads'!X178) -> 0 | E189: =IF('1. ENTER DATA'!$E$14="Yes",'3. CALCS_Loads'!U178,'3. CALCS_Loads'!Y178) -> 0 | F189: =Z178 -> 0.003145137383 | G189: 0 | H189: 0 | I189: 0
A190: E. coli | B190: =IF('1. ENTER DATA'!$E$14="Yes",'3. CALCS_Loads'!R179,'3. CALCS_Loads'!V179) -> 10193.46962 | C190: =IF('1. ENTER DATA'!$E$14="Yes",'3. CALCS_Loads'!S179,'3. CALCS_Loads'!W179) -> 0 | D190: =IF('1. ENTER DATA'!$E$14="Yes",'3. CALCS_Loads'!T179,'3. CALCS_Loads'!X179) -> 0 | E190: =IF('1. ENTER DATA'!$E$14="Yes",'3. CALCS_Loads'!U179,'3. CALCS_Loads'!Y179) -> 0 | F190: 4.702987291 | G190: 0 | H190: 0 | I190: 0
A191: Pb | B191: =IF('1. ENTER DATA'!$E$14="Yes",'3. CALCS_Loads'!R180,'3. CALCS_Loads'!V180) -> 0.001150115726 | C191: =IF('1. ENTER DATA'!$E$14="Yes",'3. CALCS_Loads'!S180,'3. CALCS_Loads'!W180) -> 0 | D191: =IF('1. ENTER DATA'!$E$14="Yes",'3. CALCS_Loads'!T180,'3. CALCS_Loads'!X180) -> 0 | E191: =IF('1. ENTER DATA'!$E$14="Yes",'3. CALCS_Loads'!U180,'3. CALCS_Loads'!Y180) -> 0 | F191: 5.398366262e-07 | G191: 0 | H191: 0 | I191: 0
A192: TN | B192: =IF('1. ENTER DATA'!$E$14="Yes",'3. CALCS_Loads'!R181,'3. CALCS_Loads'!V181) -> 0.3195511824 | C192: =IF('1. ENTER DATA'!$E$14="Yes",'3. CALCS_Loads'!S181,'3. CALCS_Loads'!W181) -> 0 | D192: =IF('1. ENTER DATA'!$E$14="Yes",'3. CALCS_Loads'!T181,'3. CALCS_Loads'!X181) -> 0 | E192: =IF('1. ENTER DATA'!$E$14="Yes",'3. CALCS_Loads'!U181,'3. CALCS_Loads'!Y181) -> 0 | F192: 0.0001684287566 | G192: 0 | H192: 0 | I192: 0
A193: TOC | B193: =IF('1. ENTER DATA'!$E$14="Yes",'3. CALCS_Loads'!R182,'3. CALCS_Loads'!V182) -> 3.498951182 | C193: =IF('1. ENTER DATA'!$E$14="Yes",'3. CALCS_Loads'!S182,'3. CALCS_Loads'!W182) -> 0 | D193: =IF('1. ENTER DATA'!$E$14="Yes",'3. CALCS_Loads'!T182,'3. CALCS_Loads'!X182) -> 0 | E193: =IF('1. ENTER DATA'!$E$14="Yes",'3. CALCS_Loads'!U182,'3. CALCS_Loads'!Y182) -> 0 | F193: 0.001198843776 | G193: 0 | H193: 0 | I193: 0
A194: TP | B194: =IF('1. ENTER DATA'!$E$14="Yes",'3. CALCS_Loads'!R183,'3. CALCS_Loads'!V183) -> 0.03329777027 | C194: =IF('1. ENTER DATA'!$E$14="Yes",'3. CALCS_Loads'!S183,'3. CALCS_Loads'!W183) -> 0 | D194: =IF('1. ENTER DATA'!$E$14="Yes",'3. CALCS_Loads'!T183,'3. CALCS_Loads'!X183) -> 0 | E194: =IF('1. ENTER DATA'!$E$14="Yes",'3. CALCS_Loads'!U183,'3. CALCS_Loads'!Y183) -> 0 | F194: =Z183 -> 2.111456003e-05 | G194: 0 | H194: 0 | I194: 0
A195: TSS | B195: =IF('1. ENTER DATA'!$E$14="Yes",'3. CALCS_Loads'!R184,'3. CALCS_Loads'!V184) -> 44.57604729 | C195: =IF('1. ENTER DATA'!$E$14="Yes",'3. CALCS_Loads'!S184,'3. CALCS_Loads'!W184) -> 0 | D195: =IF('1. ENTER DATA'!$E$14="Yes",'3. CALCS_Loads'!T184,'3. CALCS_Loads'!X184) -> 0 | E195: =IF('1. ENTER DATA'!$E$14="Yes",'3. CALCS_Loads'!U184,'3. CALCS_Loads'!Y184) -> 0 | F195: 0.002418403404 | G195: 0 | H195: 0 | I195: 0
A196: Zn | B196: =IF('1. ENTER DATA'!$E$14="Yes",'3. CALCS_Loads'!R185,'3. CALCS_Loads'!V185) -> 0.006327919002 | C196: =IF('1. ENTER DATA'!$E$14="Yes",'3. CALCS_Loads'!S185,'3. CALCS_Loads'!W185) -> 0 | D196: =IF('1. ENTER DATA'!$E$14="Yes",'3. CALCS_Loads'!T185,'3. CALCS_Loads'!X185) -> 0 | E196: =IF('1. ENTER DATA'!$E$14="Yes",'3. CALCS_Loads'!U185,'3. CALCS_Loads'!Y185) -> 0 | F196: 2.970172799e-06 | G196: 0 | H196: 0 | I196: 0
A198: PLOT: Load Equivalency Factor (LEF)
A199: POLLUTANT | B199: RED | C199: GREEN
B200: >1 | C200: <=1
A201: COD | B201: =IF(IF('1. ENTER DATA'!$E$14="No",LOOKUP($A201,'3. CALCS_Loads'!$A$178:$A$185,'3. CALCS_Loads'!$AI$178:$AI$185),LOOKUP('3. CALCS_Loads'!$A201,'3. CALCS_Loads'!$A$178:$A$185,'3. CALCS_Loads'!$AH$178:$AH$185))>1,IF('1. ENTER DATA'!$E$14="No",LOOKUP($A201,'3. CALCS_Loads'!$A$178:$A$185,'3. CALCS_Loads'!$AI$178:$AI$185),LOOKUP('3. CALCS_Loads'!$A201,'3. CALCS_Loads'!$A$178:$A$185,'3. CALCS_Loads'!$AH$178:$AH$185)),#N/A) ->  | C201: =IF(IF('1. ENTER DATA'!$E$14="No",LOOKUP($A201,'3. CALCS_Loads'!$A$178:$A$185,'3. CALCS_Loads'!$AI$178:$AI$185),LOOKUP('3. CALCS_Loads'!$A201,'3. CALCS_Loads'!$A$178:$A$185,'3. CALCS_Loads'!$AH$178:$AH$185))<=1,IF('1. ENTER DATA'!$E$14="No",LOOKUP($A201,'3. CALCS_Loads'!$A$178:$A$185,'3. CALCS_Loads'!$AI$178:$AI$185),LOOKUP('3. CALCS_Loads'!$A201,'3. CALCS_Loads'!$A$178:$A$185,'3. CALCS_Loads'!$AH$178:$AH$185)),#N/A) -> 0.0003010901526
A202: E. coli | B202: =IF(IF('1. ENTER DATA'!$E$14="No",LOOKUP($A202,'3. CALCS_Loads'!$A$178:$A$185,'3. CALCS_Loads'!$AI$178:$AI$185),LOOKUP('3. CALCS_Loads'!$A202,'3. CALCS_Loads'!$A$178:$A$185,'3. CALCS_Loads'!$AH$178:$AH$185))>1,IF('1. ENTER DATA'!$E$14="No",LOOKUP($A202,'3. CALCS_Loads'!$A$178:$A$185,'3. CALCS_Loads'!$AI$178:$AI$185),LOOKUP('3. CALCS_Loads'!$A202,'3. CALCS_Loads'!$A$178:$A$185,'3. CALCS_Loads'!$AH$178:$AH$185)),#N/A) ->  | C202: =IF(IF('1. ENTER DATA'!$E$14="No",LOOKUP($A202,'3. CALCS_Loads'!$A$178:$A$185,'3. CALCS_Loads'!$AI$178:$AI$185),LOOKUP('3. CALCS_Loads'!$A202,'3. CALCS_Loads'!$A$178:$A$185,'3. CALCS_Loads'!$AH$178:$AH$185))<=1,IF('1. ENTER DATA'!$E$14="No",LOOKUP($A202,'3. CALCS_Loads'!$A$178:$A$185,'3. CALCS_Loads'!$AI$178:$AI$185),LOOKUP('3. CALCS_Loads'!$A202,'3. CALCS_Loads'!$A$178:$A$185,'3. CALCS_Loads'!$AH$178:$AH$185)),#N/A) -> 0.0004613725713
A203: Pb | B203: =IF(IF('1. ENTER DATA'!$E$14="No",LOOKUP($A203,'3. CALCS_Loads'!$A$178:$A$185,'3. CALCS_Loads'!$AI$178:$AI$185),LOOKUP('3. CALCS_Loads'!$A203,'3. CALCS_Loads'!$A$178:$A$185,'3. CALCS_Loads'!$AH$178:$AH$185))>1,IF('1. ENTER DATA'!$E$14="No",LOOKUP($A203,'3. CALCS_Loads'!$A$178:$A$185,'3. CALCS_Loads'!$AI$178:$AI$185),LOOKUP('3. CALCS_Loads'!$A203,'3. CALCS_Loads'!$A$178:$A$185,'3. CALCS_Loads'!$AH$178:$AH$185)),#N/A) ->  | C203: =IF(IF('1. ENTER DATA'!$E$14="No",LOOKUP($A203,'3. CALCS_Loads'!$A$178:$A$185,'3. CALCS_Loads'!$AI$178:$AI$185),LOOKUP('3. CALCS_Loads'!$A203,'3. CALCS_Loads'!$A$178:$A$185,'3. CALCS_Loads'!$AH$178:$AH$185))<=1,IF('1. ENTER DATA'!$E$14="No",LOOKUP($A203,'3. CALCS_Loads'!$A$178:$A$185,'3. CALCS_Loads'!$AI$178:$AI$185),LOOKUP('3. CALCS_Loads'!$A203,'3. CALCS_Loads'!$A$178:$A$185,'3. CALCS_Loads'!$AH$178:$AH$185)),#N/A) -> 0.0004693759192
A204: TN | B204: =IF(IF('1. ENTER DATA'!$E$14="No",LOOKUP($A204,'3. CALCS_Loads'!$A$178:$A$185,'3. CALCS_Loads'!$AI$178:$AI$185),LOOKUP('3. CALCS_Loads'!$A204,'3. CALCS_Loads'!$A$178:$A$185,'3. CALCS_Loads'!$AH$178:$AH$185))>1,IF('1. ENTER DATA'!$E$14="No",LOOKUP($A204,'3. CALCS_Loads'!$A$178:$A$185,'3. CALCS_Loads'!$AI$178:$AI$185),LOOKUP('3. CALCS_Loads'!$A204,'3. CALCS_Loads'!$A$178:$A$185,'3. CALCS_Loads'!$AH$178:$AH$185)),#N/A) ->  | C204: =IF(IF('1. ENTER DATA'!$E$14="No",LOOKUP($A204,'3. CALCS_Loads'!$A$178:$A$185,'3. CALCS_Loads'!$AI$178:$AI$185),LOOKUP('3. CALCS_Loads'!$A204,'3. CALCS_Loads'!$A$178:$A$185,'3. CALCS_Loads'!$AH$178:$AH$185))<=1,IF('1. ENTER DATA'!$E$14="No",LOOKUP($A204,'3. CALCS_Loads'!$A$178:$A$185,'3. CALCS_Loads'!$AI$178:$AI$185),LOOKUP('3. CALCS_Loads'!$A204,'3. CALCS_Loads'!$A$178:$A$185,'3. CALCS_Loads'!$AH$178:$AH$185)),#N/A) -> 0.000527079122
A205: TOC | B205: =IF(IF('1. ENTER DATA'!$E$14="No",LOOKUP($A205,'3. CALCS_Loads'!$A$178:$A$185,'3. CALCS_Loads'!$AI$178:$AI$185),LOOKUP('3. CALCS_Loads'!$A205,'3. CALCS_Loads'!$A$178:$A$185,'3. CALCS_Loads'!$AH$178:$AH$185))>1,IF('1. ENTER DATA'!$E$14="No",LOOKUP($A205,'3. CALCS_Loads'!$A$178:$A$185,'3. CALCS_Loads'!$AI$178:$AI$185),LOOKUP('3. CALCS_Loads'!$A205,'3. CALCS_Loads'!$A$178:$A$185,'3. CALCS_Loads'!$AH$178:$AH$185)),#N/A) ->  | C205: =IF(IF('1. ENTER DATA'!$E$14="No",LOOKUP($A205,'3. CALCS_Loads'!$A$178:$A$185,'3. CALCS_Loads'!$AI$178:$AI$185),LOOKUP('3. CALCS_Loads'!$A205,'3. CALCS_Loads'!$A$178:$A$185,'3. CALCS_Loads'!$AH$178:$AH$185))<=1,IF('1. ENTER DATA'!$E$14="No",LOOKUP($A205,'3. CALCS_Loads'!$A$178:$A$185,'3. CALCS_Loads'!$AI$178:$AI$185),LOOKUP('3. CALCS_Loads'!$A205,'3. CALCS_Loads'!$A$178:$A$185,'3. CALCS_Loads'!$AH$178:$AH$185)),#N/A) -> 0.0003426294662
A206: TP | B206: =IF(IF('1. ENTER DATA'!$E$14="No",LOOKUP($A206,'3. CALCS_Loads'!$A$178:$A$185,'3. CALCS_Loads'!$AI$178:$AI$185),LOOKUP('3. CALCS_Loads'!$A206,'3. CALCS_Loads'!$A$178:$A$185,'3. CALCS_Loads'!$AH$178:$AH$185))>1,IF('1. ENTER DATA'!$E$14="No",LOOKUP($A206,'3. CALCS_Loads'!$A$178:$A$185,'3. CALCS_Loads'!$AI$178:$AI$185),LOOKUP('3. CALCS_Loads'!$A206,'3. CALCS_Loads'!$A$178:$A$185,'3. CALCS_Loads'!$AH$178:$AH$185)),#N/A) ->  | C206: =IF(IF('1. ENTER DATA'!$E$14="No",LOOKUP($A206,'3. CALCS_Loads'!$A$178:$A$185,'3. CALCS_Loads'!$AI$178:$AI$185),LOOKUP('3. CALCS_Loads'!$A206,'3. CALCS_Loads'!$A$178:$A$185,'3. CALCS_Loads'!$AH$178:$AH$185))<=1,IF('1. ENTER DATA'!$E$14="No",LOOKUP($A206,'3. CALCS_Loads'!$A$178:$A$185,'3. CALCS_Loads'!$AI$178:$AI$185),LOOKUP('3. CALCS_Loads'!$A206,'3. CALCS_Loads'!$A$178:$A$185,'3. CALCS_Loads'!$AH$178:$AH$185)),#N/A) -> 0.0006341133312
A207: TSS | B207: =IF(IF('1. ENTER DATA'!$E$14="No",LOOKUP($A207,'3. CALCS_Loads'!$A$178:$A$185,'3. CALCS_Loads'!$AI$178:$AI$185),LOOKUP('3. CALCS_Loads'!$A207,'3. CALCS_Loads'!$A$178:$A$185,'3. CALCS_Loads'!$AH$178:$AH$185))>1,IF('1. ENTER DATA'!$E$14="No",LOOKUP($A207,'3. CALCS_Loads'!$A$178:$A$185,'3. CALCS_Loads'!$AI$178:$AI$185),LOOKUP('3. CALCS_Loads'!$A207,'3. CALCS_Loads'!$A$178:$A$185,'3. CALCS_Loads'!$AH$178:$AH$185)),#N/A) ->  | C207: =IF(IF('1. ENTER DATA'!$E$14="No",LOOKUP($A207,'3. CALCS_Loads'!$A$178:$A$185,'3. CALCS_Loads'!$AI$178:$AI$185),LOOKUP('3. CALCS_Loads'!$A207,'3. CALCS_Loads'!$A$178:$A$185,'3. CALCS_Loads'!$AH$178:$AH$185))<=1,IF('1. ENTER DATA'!$E$14="No",LOOKUP($A207,'3. CALCS_Loads'!$A$178:$A$185,'3. CALCS_Loads'!$AI$178:$AI$185),LOOKUP('3. CALCS_Loads'!$A207,'3. CALCS_Loads'!$A$178:$A$185,'3. CALCS_Loads'!$AH$178:$AH$185)),#N/A) -> 5.425342872e-05
A208: Zn | B208: =IF(IF('1. ENTER DATA'!$E$14="No",LOOKUP($A208,'3. CALCS_Loads'!$A$178:$A$185,'3. CALCS_Loads'!$AI$178:$AI$185),LOOKUP('3. CALCS_Loads'!$A208,'3. CALCS_Loads'!$A$178:$A$185,'3. CALCS_Loads'!$AH$178:$AH$185))>1,IF('1. ENTER DATA'!$E$14="No",LOOKUP($A208,'3. CALCS_Loads'!$A$178:$A$185,'3. CALCS_Loads'!$AI$178:$AI$185),LOOKUP('3. CALCS_Loads'!$A208,'3. CALCS_Loads'!$A$178:$A$185,'3. CALCS_Loads'!$AH$178:$AH$185)),#N/A) ->  | C208: =IF(IF('1. ENTER DATA'!$E$14="No",LOOKUP($A208,'3. CALCS_Loads'!$A$178:$A$185,'3. CALCS_Loads'!$AI$178:$AI$185),LOOKUP('3. CALCS_Loads'!$A208,'3. CALCS_Loads'!$A$178:$A$185,'3. CALCS_Loads'!$AH$178:$AH$185))<=1,IF('1. ENTER DATA'!$E$14="No",LOOKUP($A208,'3. CALCS_Loads'!$A$178:$A$185,'3. CALCS_Loads'!$AI$178:$AI$185),LOOKUP('3. CALCS_Loads'!$A208,'3. CALCS_Loads'!$A$178:$A$185,'3. CALCS_Loads'!$AH$178:$AH$185)),#N/A) -> 0.0004693759192

Sheet 4. CALCS_Infiltration
A1: SIZING INFILTRATION FIELDS
E3: SCM A2 | F3: SCM B2 | G3: SCM C2 | H3: SCM D2
A4: Drainage Area | D4: Ac | E4: =DA_A -> 1 | F4: =DA_B -> 1 | G4: =DA_C -> 1 | H4: =DA_D -> 1 | J4: *Assume: More helpful to start with "Volume treated" and then back-calculate the area required.
A5: Water application factor | E5: =1/'1. ENTER DATA'!E52 -> 0.5 | F5: =1/'1. ENTER DATA'!F52 -> 0.5 | G5: =1/'1. ENTER DATA'!G52 -> 0.5 | H5: =1/'1. ENTER DATA'!H52 -> 0.5 | J5: (Between 12 and 72 hours), longer duration = smaller field area
A6: Total irrigation time | D6: hrs | E6: ='1. ENTER DATA'!E54 -> 60 | F6: ='1. ENTER DATA'!F54 -> 60 | G6: ='1. ENTER DATA'!G54 -> 60 | H6: ='1. ENTER DATA'!H54 -> 60 | J6: Accounts for alternating on/off watering
A7: Water application time | D7: hrs | E7: =E6*E5 -> 30 | F7: =F6*F5 -> 30 | G7: =G6*G5 -> 30 | H7: =H6*H5 -> 30 | J7: 0.03 in/hr
A8: Soil Infiltration Rate (permeability) | D8: in/hr | E8: ='1. ENTER DATA'!E53 -> 0.2 | F8: ='1. ENTER DATA'!F53 -> 0.2 | G8: ='1. ENTER DATA'!G53 -> 0.2 | H8: ='1. ENTER DATA'!H53 -> 0.2
A10: 1. Volume Unknown to User, Use All Routed Volume, Calculate Area
A11: WQV | D11: in | E11: ='1. ENTER DATA'!E44 -> 2.5 | F11: ='1. ENTER DATA'!F44 -> 2.5 | G11: ='1. ENTER DATA'!G44 -> 2.5 | H11: ='1. ENTER DATA'!H44 -> 2.5
A12: Corresponding Yearly Volume infiltrated | D12: in/yr | E12: ='1. ENTER DATA'!E45 -> 1.183962786 | F12: ='1. ENTER DATA'!F45 -> 0 | G12: ='1. ENTER DATA'!G45 -> 0 | H12: ='1. ENTER DATA'!H45 -> 0
A13: Max Infiltrated Volume per event | D13: ft^3 | E13: =E11*E4*3630 -> 9075 | F13: =F11*F4*3630 -> 9075 | G13: 9075 | H13: 9075
A14: Field Area | D14: Acres | E14: =E13/(E$8*E$7*3630) -> 0.4166666667 | F14: =F13/(F$8*F$7*3630) -> 0.4166666667 | G14: 0.4166666667 | H14: 0.4166666667
A16: 2. Volume Known and User-Input, Calculate Area
A17: Corresponding WQV | D17: in | E17: ='1. ENTER DATA'!E48 -> 0 | F17: ='1. ENTER DATA'!F48 -> 0 | G17: ='1. ENTER DATA'!G48 -> 0 | H17: ='1. ENTER DATA'!H48 -> 0
A18: Corresponding Yearly Volume infiltrated | D18: in/yr | E18: =LOOKUP(E17,'5.CALCS_Adams&Papa'!$A$62:$A$1062,'5.CALCS_Adams&Papa'!B$62:B$1062) -> 0 | F18: =LOOKUP(F17,'5.CALCS_Adams&Papa'!$A$62:$A$1062,'5.CALCS_Adams&Papa'!C$62:C$1062) -> 0 | G18: =LOOKUP(G17,'5.CALCS_Adams&Papa'!$A$62:$A$1062,'5.CALCS_Adams&Papa'!D$62:D$1062) -> 0 | H18: =LOOKUP(H17,'5.CALCS_Adams&Papa'!$A$62:$A$1062,'5.CALCS_Adams&Papa'!E$62:E$1062) -> 0
A19: Max Infiltrated Volume per event | D19: ft^3 | E19: =E17*E4*3630 -> 0 | F19: =F17*F4*3630 -> 0 | G19: 0 | H19: 0
A20: Field Area | D20: Acres | E20: =E19/(E$8*E$7*3630) -> 0 | F20: =F19/(F$8*F$7*3630) -> 0 | G20: =G19/(G$8*G$7*3630) -> 0 | H20: =H19/(H$8*H$7*3630) -> 0
A22: 3. Area Known, Calculate Volume
A23: Corresponding WQV | D23: in | E23: =E25/DA_A/3630 -> 0 | F23: =F25/DA_B/3630 -> 0 | G23: =G25/DA_C/3630 -> 0 | H23: =H25/DA_D/3630 -> 0
A24: Corresponding Yearly Volume Infiltrated | D24: in/yr | E24: =LOOKUP(E23,'5.CALCS_Adams&Papa'!$A$62:$A$1062,'5.CALCS_Adams&Papa'!B$62:B$1062) -> 0 | F24: =LOOKUP(F23,'5.CALCS_Adams&Papa'!$A$62:$A$1062,'5.CALCS_Adams&Papa'!C$62:C$1062) -> 0 | G24: =LOOKUP(G23,'5.CALCS_Adams&Papa'!$A$62:$A$1062,'5.CALCS_Adams&Papa'!D$62:D$1062) -> 0 | H24: =LOOKUP(H23,'5.CALCS_Adams&Papa'!$A$62:$A$1062,'5.CALCS_Adams&Papa'!E$62:E$1062) -> 0
A25: Max Infiltrated Volume per event | D25: ft^3 | E25: =E26*E$8*E$7*3630 -> 0 | F25: =F26*F$8*F$7*3630 -> 0 | G25: =G26*G$8*G$7*3630 -> 0 | H25: =H26*H$8*H$7*3630 -> 0
A26: Field Area | D26: Acres | E26: ='1. ENTER DATA'!E56 -> 0 | F26: ='1. ENTER DATA'!F56 -> 0 | G26: ='1. ENTER DATA'!G56 -> 0 | H26: ='1. ENTER DATA'!H56 -> 0
A27: Sufficient Field Area Provided? | E27: =IF(E26>=E14,"Yes","No") -> No | F27: =IF(F26>=F14,"Yes","No") -> No | G27: =IF(G26>=G14,"Yes","No") -> No | H27: =IF(H26>=H14,"Yes","No") -> No
A29: 4. Minimum Volume Known, Calculate Minimum Area
A30: Yearly Volume infiltrated | D30: Ac-in/yr | E30: =ROUNDUP('3. CALCS_Loads'!V172,2) -> 0.53 | F30: =ROUNDUP('3. CALCS_Loads'!W172,2) -> 0 | G30: =ROUNDUP('3. CALCS_Loads'!X172,2) -> 0 | H30: =ROUNDUP('3. CALCS_Loads'!Y172,2) -> 0
A31: Corresponding WQV | D31: in | E31: =LOOKUP(E30,'5.CALCS_Adams&Papa'!B$62:B$1062,'5.CALCS_Adams&Papa'!$A$62:$A$1062)+0.01 -> 0.01 | F31: =LOOKUP(F30,'5.CALCS_Adams&Papa'!C$62:C$1062,'5.CALCS_Adams&Papa'!$A$62:$A$1062)+0.01 -> 0.01 | G31: =LOOKUP(G30,'5.CALCS_Adams&Papa'!D$62:D$1062,'5.CALCS_Adams&Papa'!$A$62:$A$1062)+0.01 -> 0.01 | H31: =LOOKUP(H30,'5.CALCS_Adams&Papa'!E$62:E$1062,'5.CALCS_Adams&Papa'!$A$62:$A$1062)+0.01 -> 0.01
A32: Infiltrated Volume | D32: ft^3 | E32: =E31*DA_A*3630 -> 36.3 | F32: =F31*DA_B*3630 -> 36.3 | G32: =G31*DA_C*3630 -> 36.3 | H32: =H31*DA_D*3630 -> 36.3
A33: Field Area | D33: Acres | E33: =E32/(E$8*E$7*3630) -> 0.001666666667 | F33: =F32/(F$8*F$7*3630) -> 0.001666666667 | G33: =G32/(G$8*G$7*3630) -> 0.001666666667 | H33: =H32/(H$8*H$7*3630) -> 0.001666666667
A35: 5. Values for Use in Calculator
E36: SCM A2 | F36: SCM B2 | G36: SCM C2 | H36: SCM D2
A37: Field Area to Use (Ac) | E37: =IF('1. ENTER DATA'!E55="Yes",E26,IF('1. ENTER DATA'!E47="Yes",E20,E14)) -> 0.4166666667 | F37: =IF('1. ENTER DATA'!F55="Yes",F26,IF('1. ENTER DATA'!F47="Yes",F20,F14)) -> 0.4166666667 | G37: =IF('1. ENTER DATA'!G55="Yes",G26,IF('1. ENTER DATA'!G47="Yes",G20,G14)) -> 0.4166666667 | H37: =IF('1. ENTER DATA'!H55="Yes",H26,IF('1. ENTER DATA'!H47="Yes",H20,H14)) -> 0.4166666667
A38: Yearly Volume Infiltrated to Use (Ac-in/yr) | E38: =IF('1. ENTER DATA'!E47="Yes",'4. CALCS_Infiltration'!E18,'4. CALCS_Infiltration'!E12) -> 1.183962786 | F38: =IF('1. ENTER DATA'!F47="Yes",'4. CALCS_Infiltration'!F18,'4. CALCS_Infiltration'!F12) -> 0 | G38: =IF('1. ENTER DATA'!G47="Yes",'4. CALCS_Infiltration'!G18,'4. CALCS_Infiltration'!G12) -> 0 | H38: =IF('1. ENTER DATA'!H47="Yes",'4. CALCS_Infiltration'!H18,'4. CALCS_Infiltration'!H12) -> 0
A39: Quality Check: Min. Field area for routed volume | E39: =IF('1. ENTER DATA'!E47="Yes",'4. CALCS_Infiltration'!E20,'4. CALCS_Infiltration'!E14) -> 0.4166666667 | F39: =IF('1. ENTER DATA'!F47="Yes",'4. CALCS_Infiltration'!F20,'4. CALCS_Infiltration'!F14) -> 0.4166666667 | G39: =IF('1. ENTER DATA'!G47="Yes",'4. CALCS_Infiltration'!G20,'4. CALCS_Infiltration'!G14) -> 0.4166666667 | H39: =IF('1. ENTER DATA'!H47="Yes",'4. CALCS_Infiltration'!H20,'4. CALCS_Infiltration'!H14) -> 0.4166666667

Sheet 5.CALCS_Adams&Papa
A1: ADAMS & PAPA FOR VOLUMETRIC STORMWATER CONTROL MEASURE
A3: Rainfall Statistics
A4: Parameter | B4: Symbol | C4: Value
A5: Mean annual rainfall event volume (in.) | B5: v | C5: ='3. CALCS_Loads'!$A$2/'3. CALCS_Loads'!$A$3 -> 0.3999747889
A6: Mean annual rainfall event duration (hr) | B6: t | C6: 5.77
A7: Mean annual rainfall event intensity (in/hr) | B7: i | C7: 0.083
A8: Delta = Time interval between storm event midpoints (hr) | B8: Δ | C8: 109.4 | E8: ='5.CALCS_Adams&Papa'!B53*C75*C141
A9: Interevent time, b (hr) - Figure 4.2 in A&P | B9: b | C9: =$C$8-$C$6 -> 103.63
A10: Minimum Interevent Time (hr) | B10: IETD | C10: 6
A11: Psi = 1/(b - IETD) but using simpler 1/b (1/hr) | B11: y | C11: =1/C9 -> 0.009649715333
A12: Theta = avg. annual number of rainfall events | B12: θ | C12: ='3. CALCS_Loads'!A3 -> 79.33
A13: Average Annual total rainfall (in.) | B13: P | C13: ='3. CALCS_Loads'!A2 -> 31.73
A14: Zeta = 1/mean rainfall event volume (1/in) | B14: z | C14: =1/v -> 2.50015758
A15: Lambda = 1/mean rainfall event duration (1/hr) | B15: l | C15: =1/t -> 0.1733102253
A17: Drainage Area | B17: Drainage Area A | C17: Drainage Area B | D17: Drainage Area C | E17: Drainage Area D | G17: Drainage Area A | H17: Drainage Area B | I17: Drainage Area C | J17: Drainage Area D
A19: DRAINAGE AREA CHARACTERISTICS
A20: Drainage Area (acres) DA | B20: ='1. ENTER DATA'!E17 -> 1 | C20: ='1. ENTER DATA'!F17 -> 1 | D20: ='1. ENTER DATA'!G17 -> 1 | E20: ='1. ENTER DATA'!H17 -> 1 | G20: =DA_A -> 1 | H20: =DA_B -> 1 | I20: =DA_C -> 1 | J20: =DA_D -> 1
A21: Runoff Coefficient Rv | B21: =RvA_d -> 0.0644 | C21: =RvB_d -> 0.0644 | D21: =RvC_d -> 0.0644 | E21: =RvD_d -> 0.0644 | G21: =RvA_d -> 0.0644 | H21: =RvB_d -> 0.0644 | I21: =RvC_d -> 0.0644 | J21: =RvD_d -> 0.0644
A22: Depression Storage, Sd (in.) | B22: =SdA_d -> 0.2181 | C22: =SdB_d -> 0.2181 | D22: =SdC_d -> 0.2181 | E22: =SdD_d -> 0.2181 | G22: =SdA_d -> 0.2181 | H22: =SdB_d -> 0.2181 | I22: =SdC_d -> 0.2181 | J22: =SdD_d -> 0.2181
A24: SCM 1 (First in Series) Type | B24: ='1. ENTER DATA'!E26 -> Retention Basin | C24: ='1. ENTER DATA'!F26 -> Retention Basin | D24: ='1. ENTER DATA'!G26 -> Retention Basin | E24: ='1. ENTER DATA'!H26 -> Retention Basin | G24: Sed/Fil Std | H24: Sed/Fil Std | I24: Sed/Fil Std | J24: Sed/Fil Std
A25: Water Quality Volume (in.) | B25: =WQV_A1 -> 2.5 | C25: =WQV_B1 -> 2.5 | D25: =WQV_C1 -> 2.5 | E25: =WQV_D1 -> 2.5 | G25: =0.5+(ICA_d-20)/10*0.1 -> 0.3 | H25: =0.5+(ICB_d-20)/10*0.1 -> 0.3 | I25: =0.5+(ICC_d-20)/10*0.1 -> 0.3 | J25: =0.5+(ICD_d-20)/10*0.1 -> 0.3
A26: Design Drawdown Time (hr), DDT | B26: =DDT_A1 -> 60 | C26: =DDT_B1 -> 60 | D26: =DDT_C1 -> 60 | E26: =DDT_D1 -> 60 | G26: 48 | H26: 48 | I26: 48 | J26: 48
A27: Effective Drawdown Time (add lag time) (hr), tD | B27: =B26+'1. ENTER DATA'!E39 -> 72 | C27: =C26+'1. ENTER DATA'!F39 -> 72 | D27: =D26+'1. ENTER DATA'!G39 -> 72 | E27: =E26+'1. ENTER DATA'!H39 -> 72 | G27: =G26 -> 48 | H27: =H26 -> 48 | I27: 48 | J27: =J26 -> 48
A29: AVERAGE ANNUAL RUNOFF CAPTURE ANALYSIS
A30: Design Treatment Rate (in/hr) | B30: =B25/B27 -> 0.03472222222 | C30: =C25/C27 -> 0.03472222222 | D30: 0.03472222222 | E30: 0.03472222222 | G30: 0.00625 | H30: 0.00625 | I30: 0.00625 | J30: 0.00625
A31: Avg. Annual Number of Runoff Events Eqn. 7.9 | B31: =THETA*EXP(-ZETA*B22) -> 45.98576993 | C31: =THETA*EXP(-ZETA*C22) -> 45.98576993 | D31: =THETA*EXP(-ZETA*D22) -> 45.98576993 | E31: =THETA*EXP(-ZETA*E22) -> 45.98576993 | G31: =THETA*EXP(-ZETA*G22) -> 45.98576993 | H31: =THETA*EXP(-ZETA*H22) -> 45.98576993 | I31: =THETA*EXP(-ZETA*I22) -> 45.98576993 | J31: =THETA*EXP(-ZETA*J22) -> 45.98576993
A32: Avg. Runoff Volume per event (in.) | B32: =$C$13/THETA*B21 -> 0.0257583764 | C32: =$C$13/THETA*C21 -> 0.0257583764 | D32: =$C$13/THETA*D21 -> 0.0257583764 | E32: =$C$13/THETA*E21 -> 0.0257583764 | G32: =$C$13/THETA*G21 -> 0.0257583764 | H32: =$C$13/THETA*H21 -> 0.0257583764 | I32: =$C$13/THETA*I21 -> 0.0257583764 | J32: =$C$13/THETA*J21 -> 0.0257583764
A33: R Average Annual Runoff Volume (in.) | B33: =B31*B32 -> 1.184518771 | C33: =C31*C32 -> 1.184518771 | D33: =D31*D32 -> 1.184518771 | E33: =E31*E32 -> 1.184518771 | G33: =G31*G32 -> 1.184518771 | H33: =H31*H32 -> 1.184518771 | I33: 1.184518771 | J33: =J31*J32 -> 1.184518771
A34: Probability of Spill Occurring (GP) Eqn. 8.4a | B34: =B27/(B27+t*B25/(v*B21))*(B27/(b*B25)+1/(v*B21)*EXP(-(B27/(b*B25)+1/(v*B21))*B25))/(B27/(b*B25)+1/(v*B21))*EXP(-B22/v) -> 0.0004693759192 | C34: =C27/(C27+t*C25/(v*C21))*(C27/(b*C25)+1/(v*C21)*EXP(-(C27/(b*C25)+1/(v*C21))*C25))/(C27/(b*C25)+1/(v*C21))*EXP(-C22/v) -> 0.0004693759192 | D34: =D27/(D27+t*D25/(v*D21))*(D27/(b*D25)+1/(v*D21)*EXP(-(D27/(b*D25)+1/(v*D21))*D25))/(D27/(b*D25)+1/(v*D21))*EXP(-D22/v) -> 0.0004693759192 | E34: =E27/(E27+t*E25/(v*E21))*(E27/(b*E25)+1/(v*E21)*EXP(-(E27/(b*E25)+1/(v*E21))*E25))/(E27/(b*E25)+1/(v*E21))*EXP(-E22/v) -> 0.0004693759192 | G34: =G27/(G27+t*G25/(v*G21))*(G27/(b*G25)+1/(v*G21)*EXP(-(G27/(b*G25)+1/(v*G21))*G25))/(G27/(b*G25)+1/(v*G21))*EXP(-G22/v) -> 0.009239431128 | H34: =H27/(H27+t*H25/(v*H21))*(H27/(b*H25)+1/(v*H21)*EXP(-(H27/(b*H25)+1/(v*H21))*H25))/(H27/(b*H25)+1/(v*H21))*EXP(-H22/v) -> 0.009239431128 | I34: =I27/(I27+t*I25/(v*I21))*(I27/(b*I25)+1/(v*I21)*EXP(-(I27/(b*I25)+1/(v*I21))*I25))/(I27/(b*I25)+1/(v*I21))*EXP(-I22/v) -> 0.009239431128 | J34: =J27/(J27+t*J25/(v*J21))*(J27/(b*J25)+1/(v*J21)*EXP(-(J27/(b*J25)+1/(v*J21))*J25))/(J27/(b*J25)+1/(v*J21))*EXP(-J22/v) -> 0.009239431128
A35: Avg. Annual Number of Spills Eqn. 8.18 | B35: =THETA*B34 -> 0.03723559167 | C35: =THETA*C34 -> 0.03723559167 | D35: =THETA*D34 -> 0.03723559167 | E35: =THETA*E34 -> 0.03723559167 | G35: =THETA*G34 -> 0.7329640714 | H35: =THETA*H34 -> 0.7329640714 | I35: =THETA*I34 -> 0.7329640714 | J35: =THETA*J34 -> 0.7329640714
A36: Pu Average Annual Spill Volume (in.) Eqn. 8.22 | B36: =B35*B21/ZETA -> 0.0009591283859 | C36: =C35*C21/ZETA -> 0.0009591283859 | D36: =D35*D21/ZETA -> 0.0009591283859 | E36: =E35*E21/ZETA -> 0.0009591283859 | G36: =G35*G21/ZETA -> 0.01887996444 | H36: =H35*H21/ZETA -> 0.01887996444 | I36: =I35*I21/ZETA -> 0.01887996444 | J36: =J35*J21/ZETA -> 0.01887996444
A37: Average Annual Runoff Capture Efficiency RCE (%) | B37: =1-B34 -> 0.9995306241 | C37: =1-C34 -> 0.9995306241 | D37: 0.9995306241 | E37: =1-E34 -> 0.9995306241 | G37: =1-G34 -> 0.9907605689 | H37: =1-H34 -> 0.9907605689 | I37: 0.9907605689 | J37: =1-J34 -> 0.9907605689
A38: Avg. Annual Runoff Volume Captured RC (in.) | B38: =B33*B37 -> 1.183962786 | C38: =C33*C37 -> 1.183962786 | D38: 1.183962786 | E38: =E33*E37 -> 1.183962786 | G38: =G33*G37 -> 1.173574491 | H38: =H33*H37 -> 1.173574491 | I38: 1.173574491 | J38: =J33*J37 -> 1.173574491
A39: Volume treated (Acre-in/yr) | B39: =B38*B20 -> 1.183962786 | C39: =C38*C20 -> 1.183962786 | D39: =D38*D20 -> 1.183962786 | E39: =E38*E20 -> 1.183962786 | G39: =G38*G20 -> 1.173574491 | H39: =H38*H20 -> 1.173574491 | I39: =I38*I20 -> 1.173574491 | J39: =J38*J20 -> 1.173574491
A40: Bypass Volume (Acre-in/yr) | B40: =B33*B34*B20 -> 0.000555984587 | C40: =C33*C34*C20 -> 0.000555984587 | D40: 0.000555984587 | E40: 0.000555984587 | G40: =G33*G34*G20 -> 0.0109442796 | H40: =H33*H34*H20 -> 0.0109442796 | I40: 0.0109442796 | J40: 0.0109442796
A42: SCM 2 (Second in Series) Type | B42: ='1. ENTER DATA'!E42 -> Infiltration Field | C42: ='1. ENTER DATA'!F42 -> Infiltration Field | D42: ='1. ENTER DATA'!G42 -> Infiltration Field | E42: ='1. ENTER DATA'!H42 -> Infiltration Field | G42: Sed/Fil Std | H42: Sed/Fil Std | I42: Sed/Fil Std | J42: Sed/Fil Std | K42: *Note: This is for calculating how much is routed to SCM 2, not focusing on SCM 2 properties specifically.
A43: Water Quality Volume (in.) Routed | B43: =IF(AND('1. ENTER DATA'!E46="Yes",'1. ENTER DATA'!E47="Yes"),'1. ENTER DATA'!E48,WQV_A1*'1. ENTER DATA'!E43/100) -> 2.5 | C43: =IF(AND('1. ENTER DATA'!F46="Yes",'1. ENTER DATA'!F47="Yes"),'1. ENTER DATA'!F48,WQV_B1*'1. ENTER DATA'!F43/100) -> 2.5 | D43: =IF(AND('1. ENTER DATA'!G46="Yes",'1. ENTER DATA'!G47="Yes"),'1. ENTER DATA'!G48,WQV_C1*'1. ENTER DATA'!G43/100) -> 2.5 | E43: =IF(AND('1. ENTER DATA'!H46="Yes",'1. ENTER DATA'!H47="Yes"),'1. ENTER DATA'!H48,WQV_D1*'1. ENTER DATA'!H43/100) -> 2.5 | G43: =WQV_A1*'1. ENTER DATA'!E43/100 -> 2.5 | H43: =WQV_B1*'1. ENTER DATA'!F43/100 -> 2.5 | I43: =WQV_C1*'1. ENTER DATA'!G43/100 -> 2.5 | J43: =WQV_D1*'1. ENTER DATA'!H43/100 -> 2.5
A44: Effective Drawdown Time (includes lag time) (hr) | B44: =B27 -> 72 | C44: =C27 -> 72 | D44: =D27 -> 72 | E44: =E27 -> 72 | G44: =DDT_A1+$C$6 -> 65.77 | H44: =DDT_B1+$C$6 -> 65.77 | I44: =DDT_C1+$C$6 -> 65.77 | J44: =DDT_D1+$C$6 -> 65.77
A45: Design Treatment Rate (in/hr) | B45: =B43/B44 -> 0.03472222222 | C45: =C43/C44 -> 0.03472222222 | D45: =D43/D44 -> 0.03472222222 | E45: =E43/E44 -> 0.03472222222 | G45: =G43/G44 -> 0.03801125133 | H45: =H43/H44 -> 0.03801125133 | I45: =I43/I44 -> 0.03801125133 | J45: =J43/J44 -> 0.03801125133
A47: AVERAGE ANNUAL RUNOFF CAPTURE ANALYSIS
A48: W Treatment Rate (in/hr) | B48: =B43/B44 -> 0.03472222222 | C48: =C43/C44 -> 0.03472222222 | D48: 0.03472222222 | E48: 0.03472222222 | G48: =G43/G44 -> 0.03801125133 | H48: 0.03801125133 | I48: 0.03801125133 | J48: 0.03801125133
A49: Probability of Spill Occurring (GP) Eqn. 8.4a | B49: =(LAMBDA/B48)/((LAMBDA/B48)+(ZETA/B21))*((PSI/B48)+((ZETA/B21)*EXP(-B43*((PSI/B48)+(ZETA/B21)))))/((PSI/B48)+(ZETA/B21))*EXP(-ZETA*B22) -> 0.0004693759192 | C49: =(LAMBDA/C48)/((LAMBDA/C48)+(ZETA/C21))*((PSI/C48)+((ZETA/C21)*EXP(-C43*((PSI/C48)+(ZETA/C21)))))/((PSI/C48)+(ZETA/C21))*EXP(-ZETA*C22) -> 0.0004693759192 | D49: =(LAMBDA/D48)/((LAMBDA/D48)+(ZETA/D21))*((PSI/D48)+((ZETA/D21)*EXP(-D43*((PSI/D48)+(ZETA/D21)))))/((PSI/D48)+(ZETA/D21))*EXP(-ZETA*D22) -> 0.0004693759192 | E49: =(LAMBDA/E48)/((LAMBDA/E48)+(ZETA/E21))*((PSI/E48)+((ZETA/E21)*EXP(-E43*((PSI/E48)+(ZETA/E21)))))/((PSI/E48)+(ZETA/E21))*EXP(-ZETA*E22) -> 0.0004693759192 | G49: =(LAMBDA/G48)/((LAMBDA/G48)+(ZETA/G21))*((PSI/G48)+((ZETA/G21)*EXP(-G43*((PSI/G48)+(ZETA/G21)))))/((PSI/G48)+(ZETA/G21))*EXP(-ZETA*G22) -> 0.0003958046857 | H49: =(LAMBDA/H48)/((LAMBDA/H48)+(ZETA/H21))*((PSI/H48)+((ZETA/H21)*EXP(-H43*((PSI/H48)+(ZETA/H21)))))/((PSI/H48)+(ZETA/H21))*EXP(-ZETA*H22) -> 0.0003958046857 | I49: =(LAMBDA/I48)/((LAMBDA/I48)+(ZETA/I21))*((PSI/I48)+((ZETA/I21)*EXP(-I43*((PSI/I48)+(ZETA/I21)))))/((PSI/I48)+(ZETA/I21))*EXP(-ZETA*I22) -> 0.0003958046857 | J49: =(LAMBDA/J48)/((LAMBDA/J48)+(ZETA/J21))*((PSI/J48)+((ZETA/J21)*EXP(-J43*((PSI/J48)+(ZETA/J21)))))/((PSI/J48)+(ZETA/J21))*EXP(-ZETA*J22) -> 0.0003958046857
A50: Avg. Annual Number of Spills Eqn. 8.18 | B50: =THETA*B49 -> 0.03723559167 | C50: =THETA*C49 -> 0.03723559167 | D50: =THETA*D49 -> 0.03723559167 | E50: =THETA*E49 -> 0.03723559167 | G50: =THETA*G49 -> 0.03139918572 | H50: =THETA*H49 -> 0.03139918572 | I50: =THETA*I49 -> 0.03139918572 | J50: =THETA*J49 -> 0.03139918572
A51: Pu Average Annual Spill Volume (in.) Eqn. 8.22 | B51: =B50*B21/ZETA -> 0.0009591283859 | C51: =C50*C21/ZETA -> 0.0009591283859 | D51: =D50*D21/ZETA -> 0.0009591283859 | E51: =E50*E21/ZETA -> 0.0009591283859 | G51: =G50*G21/ZETA -> 0.0008087920445 | H51: =H50*H21/ZETA -> 0.0008087920445 | I51: =I50*I21/ZETA -> 0.0008087920445 | J51: =J50*J21/ZETA -> 0.0008087920445
A52: Average Annual Runoff Capture Efficiency RCE (%) | B52: =1-B49 -> 0.9995306241 | C52: =1-C49 -> 0.9995306241 | D52: =1-D49 -> 0.9995306241 | E52: =1-E49 -> 0.9995306241 | G52: =1-G49 -> 0.9996041953 | H52: =1-H49 -> 0.9996041953 | I52: 0.9996041953 | J52: =1-J49 -> 0.9996041953
A53: Avg. Annual Runoff Volume Captured RC (in/yr) | B53: =B33*B52 -> 1.183962786 | C53: =C33*C52 -> 1.183962786 | D53: =D33*D52 -> 1.183962786 | E53: =E33*E52 -> 1.183962786 | G53: =G33*G52 -> 1.184049933 | H53: =H33*H52 -> 1.184049933 | I53: =I33*I52 -> 1.184049933 | J53: =J33*J52 -> 1.184049933
A54: Avg. Annual Volume Captured (Acre-in/yr) | B54: =B53*B20 -> 1.183962786 | C54: =C53*C20 -> 1.183962786 | D54: =D53*D20 -> 1.183962786 | E54: =E53*E20 -> 1.183962786 | G54: =G53*G20 -> 1.184049933 | H54: =H53*H20 -> 1.184049933 | I54: =I53*I20 -> 1.184049933 | J54: =J53*J20 -> 1.184049933
B57: =1/B33*B112 -> 0.9921617766
A59: RANGE OF WQVs
B60: Capture Volume (Acre-in/yr
A61: WQV | B61: Drainage Area 1 | C61: Drainage Area 2 | D61: Drainage Area 3 | E61: Drainage Area 4
A62: 0 | B62: 0 | C62: 0 | D62: 0 | E62: 0
A63: =A62+0.01 -> 0.01 | B63: =(B$31*B$32)*(1-(LAMBDA/$A63*B$27)/((LAMBDA/$A63*B$27)+(ZETA/B$21))*((PSI/$A63*B$27)+((ZETA/B$21)*EXP(-$A63*((PSI/$A63*B$27)+(ZETA/B$21)))))/((PSI/$A63*B$27)+(ZETA/B$21))*EXP(-ZETA*B$22)) -> 0.6764880389 | C63: 0.6764880389 | D63: 0.6764880389 | E63: 0.6764880389
A64: =A63+0.01 -> 0.02 | B64: 0.8009091643 | C64: 0.8009091643 | D64: 0.8009091643 | E64: 0.8009091643
A65: 0.03 | B65: 0.8885902253 | C65: 0.8885902253 | D65: 0.8885902253 | E65: 0.8885902253
A66: 0.04 | B66: 0.9511915275 | C66: 0.9511915275 | D66: 0.9511915275 | E66: 0.9511915275
A67: 0.05 | B67: 0.9965412725 | C67: 0.9965412725 | D67: 0.9965412725 | E67: 0.9965412725
A68: 0.06 | B68: 1.029921015 | C68: 1.029921015 | D68: 1.029921015 | E68: 1.029921015
A69: 0.07 | B69: 1.054913799 | C69: 1.054913799 | D69: 1.054913799 | E69: 1.054913799
A70: 0.08 | B70: 1.073965406 | C70: 1.073965406 | D70: 1.073965406 | E70: 1.073965406
A71: 0.09 | B71: 1.088756906 | C71: 1.088756906 | D71: 1.088756906 | E71: 1.088756906
A72: 0.1 | B72: 1.100452751 | C72: 1.100452751 | D72: 1.100452751 | E72: 1.100452751
A73: 0.11 | B73: 1.10986657 | C73: 1.10986657 | D73: 1.10986657 | E73: 1.10986657
A74: 0.12 | B74: 1.117572386 | C74: 1.117572386 | D74: 1.117572386 | E74: 1.117572386
A75: 0.13 | B75: 1.123979514 | C75: 1.123979514 | D75: 1.123979514 | E75: 1.123979514
A76: 0.14 | B76: 1.129383239 | C76: 1.129383239 | D76: 1.129383239 | E76: 1.129383239
A77: 0.15 | B77: 1.133999273 | C77: 1.133999273 | D77: 1.133999273 | E77: 1.133999273
A78: 0.16 | B78: 1.137987307 | C78: 1.137987307 | D78: 1.137987307 | E78: 1.137987307
A79: 0.17 | B79: 1.141467211 | C79: 1.141467211 | D79: 1.141467211 | E79: 1.141467211
A80: 0.18 | B80: 1.144530255 | C80: 1.144530255 | D80: 1.144530255 | E80: 1.144530255
A81: 0.19 | B81: 1.147246931 | C81: 1.147246931 | D81: 1.147246931 | E81: 1.147246931
A82: 0.2 | B82: 1.149672455 | C82: 1.149672455 | D82: 1.149672455 | E82: 1.149672455
A83: =A82+0.01 -> 0.21 | B83: =(B$31*B$32)*(1-(LAMBDA/$A83*B$27)/((LAMBDA/$A83*B$27)+(ZETA/B$21))*((PSI/$A83*B$27)+((ZETA/B$21)*EXP(-$A83*((PSI/$A83*B$27)+(ZETA/B$21)))))/((PSI/$A83*B$27)+(ZETA/B$21))*EXP(-ZETA*B$22)) -> 1.151850676 | C83: 1.151850676 | D83: 1.151850676 | E83: 1.151850676
A84: 0.22 | B84: 1.153816867 | C84: 1.153816867 | D84: 1.153816867 | E84: 1.153816867
A85: 0.23 | B85: 1.155599756 | C85: 1.155599756 | D85: 1.155599756 | E85: 1.155599756
A86: 0.24 | B86: 1.157223004 | C86: 1.157223004 | D86: 1.157223004 | E86: 1.157223004
A87: 0.25 | B87: 1.158706302 | C87: 1.158706302 | D87: 1.158706302 | E87: 1.158706302
A88: 0.26 | B88: 1.160066193 | C88: 1.160066193 | D88: 1.160066193 | E88: 1.160066193
A89: 0.27 | B89: 1.161316696 | C89: 1.161316696 | D89: 1.161316696 | E89: 1.161316696
A90: 0.28 | B90: 1.162469777 | C90: 1.162469777 | D90: 1.162469777 | E90: 1.162469777
A91: 0.29 | B91: 1.163535728 | C91: 1.163535728 | D91: 1.163535728 | E91: 1.163535728
A92: 0.3 | B92: 1.164523449 | C92: 1.164523449 | D92: 1.164523449 | E92: 1.164523449
A93: =A92+0.01 -> 0.31 | B93: 1.165440687 | C93: 1.165440687 | D93: 1.165440687 | E93: 1.165440687
A94: 0.32 | B94: 1.166294212 | C94: 1.166294212 | D94: 1.166294212 | E94: 1.166294212
A95: 0.33 | B95: 1.167089975 | C95: 1.167089975 | D95: 1.167089975 | E95: 1.167089975
A96: 0.34 | B96: 1.167833223 | C96: 1.167833223 | D96: 1.167833223 | E96: 1.167833223
A97: 0.35 | B97: 1.168528602 | C97: 1.168528602 | D97: 1.168528602 | E97: 1.168528602
A98: 0.36 | B98: 1.169180245 | C98: 1.169180245 | D98: 1.169180245 | E98: 1.169180245
A99: 0.37 | B99: 1.169791833 | C99: 1.169791833 | D99: 1.169791833 | E99: 1.169791833
A100: 0.38 | B100: 1.17036666 | C100: 1.17036666 | D100: 1.17036666 | E100: 1.17036666
A101: 0.39 | B101: 1.170907681 | C101: 1.170907681 | D101: 1.170907681 | E101: 1.170907681
A102: =A101+0.01 -> 0.4 | B102: 1.171417553 | C102: 1.171417553 | D102: 1.171417553 | E102: 1.171417553
A103: 0.41 | B103: =(B$31*B$32)*(1-(LAMBDA/$A103*B$27)/((LAMBDA/$A103*B$27)+(ZETA/B$21))*((PSI/$A103*B$27)+((ZETA/B$21)*EXP(-$A103*((PSI/$A103*B$27)+(ZETA/B$21)))))/((PSI/$A103*B$27)+(ZETA/B$21))*EXP(-ZETA*B$22)) -> 1.171898672 | C103: 1.171898672 | D103: 1.171898672 | E103: 1.171898672
A104: 0.42 | B104: 1.172353203 | C104: 1.172353203 | D104: 1.172353203 | E104: 1.172353203
A105: 0.43 | B105: 1.172783108 | C105: 1.172783108 | D105: 1.172783108 | E105: 1.172783108
A106: 0.44 | B106: 1.173190168 | C106: 1.173190168 | D106: 1.173190168 | E106: 1.173190168
A107: 0.45 | B107: 1.173576002 | C107: 1.173576002 | D107: 1.173576002 | E107: 1.173576002
A108: 0.46 | B108: 1.173942088 | C108: 1.173942088 | D108: 1.173942088 | E108: 1.173942088
A109: 0.47 | B109: 1.174289772 | C109: 1.174289772 | D109: 1.174289772 | E109: 1.174289772
A110: 0.48 | B110: 1.174620289 | C110: 1.174620289 | D110: 1.174620289 | E110: 1.174620289
A111: 0.49 | B111: 1.174934769 | C111: 1.174934769 | D111: 1.174934769 | E111: 1.174934769
A112: 0.5 | B112: 1.175234248 | C112: 1.175234248 | D112: 1.175234248 | E112: 1.175234248
A113: =A112+0.01 -> 0.51 | B113: 1.175519681 | C113: 1.175519681 | D113: 1.175519681 | E113: 1.175519681
A114: =A113+0.01 -> 0.52 | B114: 1.175791945 | C114: 1.175791945 | D114: 1.175791945 | E114: 1.175791945
A115: 0.53 | B115: 1.176051851 | C115: 1.176051851 | D115: 1.176051851 | E115: 1.176051851
A116: 0.54 | B116: 1.176300144 | C116: 1.176300144 | D116: 1.176300144 | E116: 1.176300144
A117: 0.55 | B117: 1.176537517 | C117: 1.176537517 | D117: 1.176537517 | E117: 1.176537517
A118: 0.56 | B118: 1.176764608 | C118: 1.176764608 | D118: 1.176764608 | E118: 1.176764608
A119: 0.57 | B119: 1.176982012 | C119: 1.176982012 | D119: 1.176982012 | E119: 1.176982012
A120: 0.58 | B120: 1.177190278 | C120: 1.177190278 | D120: 1.177190278 | E120: 1.177190278
A121: 0.59 | B121: 1.177389917 | C121: 1.177389917 | D121: 1.177389917 | E121: 1.177389917
A122: 0.6 | B122: 1.177581406 | C122: 1.177581406 | D122: 1.177581406 | E122: 1.177581406
A123: 0.61 | B123: =(B$31*B$32)*(1-(LAMBDA/$A123*B$27)/((LAMBDA/$A123*B$27)+(ZETA/B$21))*((PSI/$A123*B$27)+((ZETA/B$21)*EXP(-$A123*((PSI/$A123*B$27)+(ZETA/B$21)))))/((PSI/$A123*B$27)+(ZETA/B$21))*EXP(-ZETA*B$22)) -> 1.177765187 | C123: 1.177765187 | D123: 1.177765187 | E123: 1.177765187
A124: 0.62 | B124: 1.177941674 | C124: 1.177941674 | D124: 1.177941674 | E124: 1.177941674
A125: 0.63 | B125: 1.17811125 | C125: 1.17811125 | D125: 1.17811125 | E125: 1.17811125
A126: 0.64 | B126: 1.178274278 | C126: 1.178274278 | D126: 1.178274278 | E126: 1.178274278
A127: 0.65 | B127: 1.178431092 | C127: 1.178431092 | D127: 1.178431092 | E127: 1.178431092
A128: 0.66 | B128: 1.178582009 | C128: 1.178582009 | D128: 1.178582009 | E128: 1.178582009
A129: 0.67 | B129: 1.178727323 | C129: 1.178727323 | D129: 1.178727323 | E129: 1.178727323
A130: 0.68 | B130: 1.178867311 | C130: 1.178867311 | D130: 1.178867311 | E130: 1.178867311
A131: 0.69 | B131: 1.179002232 | C131: 1.179002232 | D131: 1.179002232 | E131: 1.179002232
A132: 0.7 | B132: 1.179132332 | C132: 1.179132332 | D132: 1.179132332 | E132: 1.179132332
A133: 0.71 | B133: 1.179257838 | C133: 1.179257838 | D133: 1.179257838 | E133: 1.179257838
A134: 0.72 | B134: 1.179378966 | C134: 1.179378966 | D134: 1.179378966 | E134: 1.179378966
A135: 0.73 | B135: 1.179495921 | C135: 1.179495921 | D135: 1.179495921 | E135: 1.179495921
A136: 0.74 | B136: 1.179608892 | C136: 1.179608892 | D136: 1.179608892 | E136: 1.179608892
A137: 0.75 | B137: 1.17971806 | C137: 1.17971806 | D137: 1.17971806 | E137: 1.17971806
A138: 0.76 | B138: 1.179823596 | C138: 1.179823596 | D138: 1.179823596 | E138: 1.179823596
A139: 0.77 | B139: 1.17992566 | C139: 1.17992566 | D139: 1.17992566 | E139: 1.17992566
A140: 0.78 | B140: 1.180024404 | C140: 1.180024404 | D140: 1.180024404 | E140: 1.180024404
A141: 0.79 | B141: 1.180119972 | C141: 1.180119972 | D141: 1.180119972 | E141: 1.180119972
A142: 0.8 | B142: 1.1802125 | C142: 1.1802125 | D142: 1.1802125 | E142: 1.1802125
A143: 0.81 | B143: =(B$31*B$32)*(1-(LAMBDA/$A143*B$27)/((LAMBDA/$A143*B$27)+(ZETA/B$21))*((PSI/$A143*B$27)+((ZETA/B$21)*EXP(-$A143*((PSI/$A143*B$27)+(ZETA/B$21)))))/((PSI/$A143*B$27)+(ZETA/B$21))*EXP(-ZETA*B$22)) -> 1.180302115 | C143: 1.180302115 | D143: 1.180302115 | E143: 1.180302115
A144: 0.82 | B144: 1.180388941 | C144: 1.180388941 | D144: 1.180388941 | E144: 1.180388941
A145: 0.83 | B145: 1.180473092 | C145: 1.180473092 | D145: 1.180473092 | E145: 1.180473092
A146: 0.84 | B146: 1.180554678 | C146: 1.180554678 | D146: 1.180554678 | E146: 1.180554678
A147: 0.85 | B147: 1.180633803 | C147: 1.180633803 | D147: 1.180633803 | E147: 1.180633803
A148: 0.86 | B148: 1.180710565 | C148: 1.180710565 | D148: 1.180710565 | E148: 1.180710565
A149: 0.87 | B149: 1.180785059 | C149: 1.180785059 | D149: 1.180785059 | E149: 1.180785059
A150: 0.88 | B150: 1.180857373 | C150: 1.180857373 | D150: 1.180857373 | E150: 1.180857373
A151: 0.89 | B151: 1.180927593 | C151: 1.180927593 | D151: 1.180927593 | E151: 1.180927593
A152: 0.9 | B152: 1.180995798 | C152: 1.180995798 | D152: 1.180995798 | E152: 1.180995798
A153: 0.91 | B153: 1.181062066 | C153: 1.181062066 | D153: 1.181062066 | E153: 1.181062066
A154: 0.92 | B154: 1.18112647 | C154: 1.18112647 | D154: 1.18112647 | E154: 1.18112647
A155: 0.93 | B155: 1.181189079 | C155: 1.181189079 | D155: 1.181189079 | E155: 1.181189079
A156: 0.94 | B156: 1.18124996 | C156: 1.18124996 | D156: 1.18124996 | E156: 1.18124996
A157: 0.95 | B157: 1.181309177 | C157: 1.181309177 | D157: 1.181309177 | E157: 1.181309177
A158: 0.96 | B158: 1.181366789 | C158: 1.181366789 | D158: 1.181366789 | E158: 1.181366789
A159: 0.97 | B159: 1.181422855 | C159: 1.181422855 | D159: 1.181422855 | E159: 1.181422855
A160: 0.98 | B160: 1.18147743 | C160: 1.18147743 | D160: 1.18147743 | E160: 1.18147743
A161: 0.99 | B161: 1.181530566 | C161: 1.181530566 | D161: 1.181530566 | E161: 1.181530566
A162: 1 | B162: 1.181582314 | C162: 1.181582314 | D162: 1.181582314 | E162: 1.181582314
A163: 1.01 | B163: =(B$31*B$32)*(1-(LAMBDA/$A163*B$27)/((LAMBDA/$A163*B$27)+(ZETA/B$21))*((PSI/$A163*B$27)+((ZETA/B$21)*EXP(-$A163*((PSI/$A163*B$27)+(ZETA/B$21)))))/((PSI/$A163*B$27)+(ZETA/B$21))*EXP(-ZETA*B$22)) -> 1.181632722 | C163: 1.181632722 | D163: 1.181632722 | E163: 1.181632722
A164: 1.02 | B164: 1.181681837 | C164: 1.181681837 | D164: 1.181681837 | E164: 1.181681837
A165: 1.03 | B165: 1.181729701 | C165: 1.181729701 | D165: 1.181729701 | E165: 1.181729701
A166: 1.04 | B166: 1.181776358 | C166: 1.181776358 | D166: 1.181776358 | E166: 1.181776358
A167: 1.05 | B167: 1.181821848 | C167: 1.181821848 | D167: 1.181821848 | E167: 1.181821848
A168: 1.06 | B168: 1.18186621 | C168: 1.18186621 | D168: 1.18186621 | E168: 1.18186621
A169: 1.07 | B169: 1.181909481 | C169: 1.181909481 | D169: 1.181909481 | E169: 1.181909481
A170: 1.08 | B170: 1.181951697 | C170: 1.181951697 | D170: 1.181951697 | E170: 1.181951697
A171: 1.09 | B171: 1.181992891 | C171: 1.181992891 | D171: 1.181992891 | E171: 1.181992891
A172: 1.1 | B172: 1.182033097 | C172: 1.182033097 | D172: 1.182033097 | E172: 1.182033097
A173: 1.11 | B173: 1.182072346 | C173: 1.182072346 | D173: 1.182072346 | E173: 1.182072346
A174: 1.12 | B174: 1.182110669 | C174: 1.182110669 | D174: 1.182110669 | E174: 1.182110669
A175: 1.13 | B175: 1.182148094 | C175: 1.182148094 | D175: 1.182148094 | E175: 1.182148094
A176: 1.14 | B176: 1.18218465 | C176: 1.18218465 | D176: 1.18218465 | E176: 1.18218465
A177: 1.15 | B177: 1.182220363 | C177: 1.182220363 | D177: 1.182220363 | E177: 1.182220363
A178: =A177+0.01 -> 1.16 | B178: 1.182255259 | C178: 1.182255259 | D178: 1.182255259 | E178: 1.182255259
A179: 1.17 | B179: 1.182289363 | C179: 1.182289363 | D179: 1.182289363 | E179: 1.182289363
A180: 1.18 | B180: 1.182322698 | C180: 1.182322698 | D180: 1.182322698 | E180: 1.182322698
A181: 1.19 | B181: 1.182355289 | C181: 1.182355289 | D181: 1.182355289 | E181: 1.182355289
A182: 1.2 | B182: 1.182387156 | C182: 1.182387156 | D182: 1.182387156 | E182: 1.182387156
A183: 1.21 | B183: =(B$31*B$32)*(1-(LAMBDA/$A183*B$27)/((LAMBDA/$A183*B$27)+(ZETA/B$21))*((PSI/$A183*B$27)+((ZETA/B$21)*EXP(-$A183*((PSI/$A183*B$27)+(ZETA/B$21)))))/((PSI/$A183*B$27)+(ZETA/B$21))*EXP(-ZETA*B$22)) -> 1.182418322 | C183: 1.182418322 | D183: 1.182418322 | E183: 1.182418322
A184: 1.22 | B184: 1.182448807 | C184: 1.182448807 | D184: 1.182448807 | E184: 1.182448807
A185: 1.23 | B185: 1.18247863 | C185: 1.18247863 | D185: 1.18247863 | E185: 1.18247863
A186: 1.24 | B186: 1.18250781 | C186: 1.18250781 | D186: 1.18250781 | E186: 1.18250781
A187: 1.25 | B187: 1.182536367 | C187: 1.182536367 | D187: 1.182536367 | E187: 1.182536367
A188: 1.26 | B188: 1.182564318 | C188: 1.182564318 | D188: 1.182564318 | E188: 1.182564318
A189: 1.27 | B189: 1.182591679 | C189: 1.182591679 | D189: 1.182591679 | E189: 1.182591679
A190: 1.28 | B190: 1.182618468 | C190: 1.182618468 | D190: 1.182618468 | E190: 1.182618468
A191: 1.29 | B191: 1.1826447 | C191: 1.1826447 | D191: 1.1826447 | E191: 1.1826447
A192: 1.3 | B192: 1.18267039 | C192: 1.18267039 | D192: 1.18267039 | E192: 1.18267039
A193: 1.31 | B193: 1.182695555 | C193: 1.182695555 | D193: 1.182695555 | E193: 1.182695555
A194: 1.32 | B194: 1.182720207 | C194: 1.182720207 | D194: 1.182720207 | E194: 1.182720207
A195: 1.33 | B195: 1.18274436 | C195: 1.18274436 | D195: 1.18274436 | E195: 1.18274436
A196: 1.34 | B196: 1.182768029 | C196: 1.182768029 | D196: 1.182768029 | E196: 1.182768029
A197: 1.35 | B197: 1.182791226 | C197: 1.182791226 | D197: 1.182791226 | E197: 1.182791226
A198: 1.36 | B198: 1.182813963 | C198: 1.182813963 | D198: 1.182813963 | E198: 1.182813963
A199: 1.37 | B199: 1.182836253 | C199: 1.182836253 | D199: 1.182836253 | E199: 1.182836253
A200: 1.38 | B200: 1.182858107 | C200: 1.182858107 | D200: 1.182858107 | E200: 1.182858107
A201: 1.39 | B201: 1.182879537 | C201: 1.182879537 | D201: 1.182879537 | E201: 1.182879537
A202: 1.4 | B202: 1.182900554 | C202: 1.182900554 | D202: 1.182900554 | E202: 1.182900554
A203: 1.41 | B203: =(B$31*B$32)*(1-(LAMBDA/$A203*B$27)/((LAMBDA/$A203*B$27)+(ZETA/B$21))*((PSI/$A203*B$27)+((ZETA/B$21)*EXP(-$A203*((PSI/$A203*B$27)+(ZETA/B$21)))))/((PSI/$A203*B$27)+(ZETA/B$21))*EXP(-ZETA*B$22)) -> 1.182921167 | C203: 1.182921167 | D203: 1.182921167 | E203: 1.182921167
A204: 1.42 | B204: 1.182941388 | C204: 1.182941388 | D204: 1.182941388 | E204: 1.182941388
A205: 1.43 | B205: 1.182961227 | C205: 1.182961227 | D205: 1.182961227 | E205: 1.182961227
A206: 1.44 | B206: 1.182980692 | C206: 1.182980692 | D206: 1.182980692 | E206: 1.182980692
A207: 1.45 | B207: 1.182999794 | C207: 1.182999794 | D207: 1.182999794 | E207: 1.182999794
A208: 1.46 | B208: 1.183018541 | C208: 1.183018541 | D208: 1.183018541 | E208: 1.183018541
A209: 1.47 | B209: 1.183036942 | C209: 1.183036942 | D209: 1.183036942 | E209: 1.183036942
A210: 1.48 | B210: 1.183055006 | C210: 1.183055006 | D210: 1.183055006 | E210: 1.183055006
... 852 more rows
